Workbook

Sheet INSTRUCTIONS

Sheet COMPS
A1: XYZ Company | G1: Notes
A2: Peer Company Comparisons
E5: Select Best
B6: Company A | C6: Company B | D6: Company C | E6: Comparison | F6: Projections
A7: Ratios | F7: Year 1 | G7: Year 2 | H7: Year 3 | I7: Year 4 | J7: Year 5
A8: Accounts Receivable % of Rev | B8: 0.1 | E8: 0.1 | F8: =WORKCAP!C10 -> 0.083 | G8: =WORKCAP!D10 -> 0.083 | H8: =WORKCAP!E10 -> 0.083 | I8: =WORKCAP!F10 -> 0.083 | J8: =WORKCAP!G10 -> 0.083
A9: Inventory % of Rev | B9: 0.15 | E9: 0.15 | F9: =WORKCAP!C16 -> 0.083 | G9: =WORKCAP!D16 -> 0.083 | H9: =WORKCAP!E16 -> 0.067 | I9: =WORKCAP!F16 -> 0.067 | J9: =WORKCAP!G16 -> 0.067
A10: Accounts Payable % of Rev | B10: 0.08 | E10: 0.08 | F10: =WORKCAP!C29 -> 0.087 | G10: =WORKCAP!D29 -> 0.087 | H10: =WORKCAP!E29 -> 0.087 | I10: =WORKCAP!F29 -> 0.087 | J10: =WORKCAP!G29 -> 0.087
A11: Working Capital % of Rev | B11: 0.16 | E11: 0.16 | F11: =WORKCAP!C10+WORKCAP!C16+WORKCAP!C23-WORKCAP!C29-WORKCAP!C35 -> 0.079 | G11: =WORKCAP!D10+WORKCAP!D16+WORKCAP!D23-WORKCAP!D29-WORKCAP!D35 -> 0.079 | H11: =WORKCAP!E10+WORKCAP!E16+WORKCAP!E23-WORKCAP!E29-WORKCAP!E35 -> 0.063 | I11: =WORKCAP!F10+WORKCAP!F16+WORKCAP!F23-WORKCAP!F29-WORKCAP!F35 -> 0.063 | J11: =WORKCAP!G10+WORKCAP!G16+WORKCAP!G23-WORKCAP!G29-WORKCAP!G35 -> 0.063
A12: Net Fixed Assets % of Rev | B12: 0.09 | E12: 0.09 | F12: ='PROP & EQUIP'!C54 -> 0.2366190476 | G12: ='PROP & EQUIP'!D54 -> 0.1152199546 | H12: ='PROP & EQUIP'!E54 -> 0.09341636142 | I12: ='PROP & EQUIP'!F54 -> 0.07305787546 | J12: ='PROP & EQUIP'!G54 -> 0.0548992674
A13: Current Ratio | B13: 2.3 | E13: 2.3 | F13: =BALANCE!C13/BALANCE!C23 -> 4.173208899 | G13: =BALANCE!D13/BALANCE!D23 -> 2.037896426 | H13: =BALANCE!E13/BALANCE!E23 -> 1.997009297 | I13: =BALANCE!F13/BALANCE!F23 -> 1.876098737 | J13: =BALANCE!G13/BALANCE!G23 -> 2.139735808
A14: Debt to Capital (LT Debt + Equity) | B14: 1.2 | E14: 1.2 | F14: =(BALANCE!C22+BALANCE!C25)/(BALANCE!C22+BALANCE!C25+BALANCE!C31) -> 0 | G14: =(BALANCE!D22+BALANCE!D25)/(BALANCE!D22+BALANCE!D25+BALANCE!D31) -> 0.3185109766 | H14: =(BALANCE!E22+BALANCE!E25)/(BALANCE!E22+BALANCE!E25+BALANCE!E31) -> 0.1839656146 | I14: =(BALANCE!F22+BALANCE!F25)/(BALANCE!F22+BALANCE!F25+BALANCE!F31) -> 0.09749565524 | J14: =(BALANCE!G22+BALANCE!G25)/(BALANCE!G22+BALANCE!G25+BALANCE!G31) -> 0.03861678923
A16: Profitability
A17: Gross Profit % of Rev | B17: 0.3 | E17: 0.3 | F17: =INCOME!C13 -> -0.1174642857 | G17: =INCOME!D13 -> 0.3272068027 | H17: =INCOME!E13 -> 0.4154432234 | I17: =INCOME!F13 -> 0.4252747253 | J17: =INCOME!G13 -> 0.4602637363
A18: Sales & Marketing % of Rev | B18: 0.3 | F18: ='OPER EXP'!C17 -> 0.229 | G18: ='OPER EXP'!D17 -> 0.190047619 | H18: ='OPER EXP'!E17 -> 0.1851692308 | I18: ='OPER EXP'!F17 -> 0.1791692308 | J18: ='OPER EXP'!G17 -> 0.1798461538
A19: Research & Development % of Rev | B19: 0.3 | F19: ='OPER EXP'!C26 -> 0.149 | G19: ='OPER EXP'!D26 -> 0.07866666667 | H19: ='OPER EXP'!E26 -> 0.07205641026 | I19: ='OPER EXP'!F26 -> 0.0764 | J19: ='OPER EXP'!G26 -> 0.06738461538
A20: General & Administration % of Rev | B20: 0.3 | F20: ='OPER EXP'!C39 -> 0.1716668167 | G20: ='OPER EXP'!D39 -> 0.0886 | H20: ='OPER EXP'!E39 -> 0.0810365812 | I20: ='OPER EXP'!F39 -> 0.07334974359 | J20: ='OPER EXP'!G39 -> 0.06813333333
A21: Operating Expenses % of Rev | B21: 0.4 | E21: 0.17 | F21: ='OPER EXP'!C42 -> 0.5496668167 | G21: ='OPER EXP'!D42 -> 0.3573142857 | H21: ='OPER EXP'!E42 -> 0.3382622222 | I21: ='OPER EXP'!F42 -> 0.3289189744 | J21: ='OPER EXP'!G42 -> 0.3153641026
A22: Earnings from Operations % of Rev | B22: 0.12 | E22: 0.12 | F22: =INCOME!C22/INCOME!C7 -> -0.6671311024 | G22: =INCOME!D22/INCOME!D7 -> -0.03010748299 | H22: =INCOME!E22/INCOME!E7 -> 0.07718100122 | I22: =INCOME!F22/INCOME!F7 -> 0.09635575092 | J22: =INCOME!G22/INCOME!G7 -> 0.1448996337
A23: EBIT % of Rev | B23: 0.12 | E23: 0.12 | F23: =INCOME!C26/INCOME!C7 -> -0.7121311024 | G23: =INCOME!D26/INCOME!D7 -> -0.03010748299 | H23: =INCOME!E26/INCOME!E7 -> 0.07718100122 | I23: =INCOME!F26/INCOME!F7 -> 0.09635575092 | J23: =INCOME!G26/INCOME!G7 -> 0.1448996337
A24: Depreciation % of Rev | B24: 0.03 | E24: 0.03 | F24: ='PROP & EQUIP'!C48 -> 0.04338095238 | G24: ='PROP & EQUIP'!D48 -> 0.02508843537 | H24: ='PROP & EQUIP'!E48 -> 0.02503540904 | I24: ='PROP & EQUIP'!F48 -> 0.02299194139 | J24: ='PROP & EQUIP'!G48 -> 0.01960805861
A25: EBITDA % of Rev | B25: 0.14 | E25: 0.14 | F25: =(INCOME!C26+'PROP & EQUIP'!C47)/INCOME!C7 -> -0.66875015 | G25: =(INCOME!D26+'PROP & EQUIP'!D47)/INCOME!D7 -> -0.005019047619 | H25: =(INCOME!E26+'PROP & EQUIP'!E47)/INCOME!E7 -> 0.1022164103 | I25: =(INCOME!F26+'PROP & EQUIP'!F47)/INCOME!F7 -> 0.1193476923 | J25: =(INCOME!G26+'PROP & EQUIP'!G47)/INCOME!G7 -> 0.1645076923
A26: Net Earnings % of Rev | B26: 0.05 | E26: 0.05 | F26: =INCOME!C35 -> -0.7121311024 | G26: =INCOME!D35 -> -0.04153605442 | H26: =INCOME!E35 -> 0.0722579243 | I26: =INCOME!F35 -> 0.0617071275 | J26: =INCOME!G35 -> 0.0866167033
A28: Returns
A29: Return on Assets | B29: 0.12 | E29: 0.12 | F29: =INCOME!C34/BALANCE!C15 -> -0.7405775006 | G29: =INCOME!D34/BALANCE!D15 -> -0.09468193105 | H29: =INCOME!E34/BALANCE!E15 -> 0.217354318 | I29: =INCOME!F34/BALANCE!F15 -> 0.1997467725 | J29: =INCOME!G34/BALANCE!G15 -> 0.2718832063
A30: Return on Equity | B30: 0.15 | E30: 0.15 | F30: =INCOME!C34/BALANCE!C31 -> -0.9038700532 | G30: =INCOME!D34/BALANCE!D31 -> -0.2038356194 | H30: =INCOME!E34/BALANCE!E31 -> 0.397061979 | I30: =INCOME!F34/BALANCE!F31 -> 0.3610799735 | J30: =INCOME!G34/BALANCE!G31 -> 0.4522979618
A31: Return on Capital (LT Debt + Equity) | B31: 0.15 | E31: 0.15 | F31: =INCOME!C34/(BALANCE!C22+BALANCE!C25+BALANCE!C31) -> -0.9038700532 | G31: =INCOME!D34/(BALANCE!D22+BALANCE!D25+BALANCE!D31) -> -0.1389117372 | H31: =INCOME!E34/(BALANCE!E22+BALANCE!E25+BALANCE!E31) -> 0.324016228 | I31: =INCOME!F34/(BALANCE!F22+BALANCE!F25+BALANCE!F31) -> 0.3258762449 | J31: =INCOME!G34/(BALANCE!G22+BALANCE!G25+BALANCE!G31) -> 0.4348316668
A33: Growth
A34: Revenue Growth Rate - CAGR: | B34: 0.15 | E34: 0.15 | G34: =INCOME!D7/INCOME!C7-1 -> 4.25 | H34: =INCOME!E7/INCOME!D7-1 -> 0.8571428571 | I34: =INCOME!F7/INCOME!E7-1 -> 0.6666666667 | J34: =(INCOME!G7/INCOME!F7-1) -> 0.6
A35: Net Earnings Growth Rate - CAGR: | B35: 0.12 | E35: 0.12 | G35: =IF((INCOME!D34/INCOME!C34-1)>0,(INCOME!D34/INCOME!C34-1),"Negative") -> Negative | H35: =IF((INCOME!E34/INCOME!D34-1)>0,(INCOME!E34/INCOME!D34-1),"Negative") -> Negative | I35: =IF((INCOME!F34/INCOME!E34-1)>0,(INCOME!F34/INCOME!E34-1),"Negative") -> 0.4233070421 | J35: =IF((INCOME!G34/INCOME!F34-1)>0,(INCOME!G34/INCOME!F34-1),"Negative") -> 1.245878732

Sheet REVENUE
A1: =COMPS!A1 -> XYZ Company | H1: Notes
A2: Revenue Projections
A3: Years 1 to 5
A4: ($)
C5: Year 1 | D5: Year 2 | E5: Year 3 | F5: Year 4 | G5: Year 5
A6: Product A
A7: Number of Units | C7: 20000 | D7: 75000 | E7: 150000 | F7: 250000 | G7: 400000
A8: Price per unit | C8: 50 | D8: 50 | E8: 45 | F8: 45 | G8: 40
A9: Total | C9: =C7*C8 -> 1000000 | D9: =D7*D8 -> 3750000 | E9: =E7*E8 -> 6750000 | F9: =F7*F8 -> 11250000 | G9: =G7*G8 -> 16000000
A10: Service B
A11: Number of Customers | D11: 50000 | E11: 100000 | F11: 200000 | G11: 500000
A12: Fee per Customer | D12: 30 | E12: 30 | F12: 25 | G12: 20
A13: Total | C13: =C11*C12 -> 0 | D13: =D11*D12 -> 1500000 | E13: =E11*E12 -> 3000000 | F13: =F11*F12 -> 5000000 | G13: =G11*G12 -> 10000000
A16: Net Revenue | C16: =C9+C13 -> 1000000 | D16: =D9+D13 -> 5250000 | E16: =E9+E13 -> 9750000 | F16: =F9+F13 -> 16250000 | G16: =G9+G13 -> 26000000
D19: Revenues by Months & Quarters
D20: ($)
A21: Months | C21: Year 1 | D21: Year 2 | E21: Year 3 | F21: Year 4 | G21: Year 5
A22: Month 1 | C22: 0 | D22: =D$16*0.05 -> 262500
A23: Month 2 | C23: 0 | D23: =D$16*0.05 -> 262500
A24: Month 3 | C24: 0 | D24: =D$16*0.07 -> 367500
A25: Total 1st Quarter | C25: =SUM(C22:C24) -> 0 | D25: =SUM(D22:D24) -> 892500 | E25: 2000000 | F25: 3000000 | G25: 5000000
A26: Month 4 | C26: =C$16*0.05 -> 50000 | D26: =D$16*0.06 -> 315000
A27: Month 5 | C27: =C$16*0.08 -> 80000 | D27: =D$16*0.07 -> 367500
A28: Month 6 | C28: =C$16*0.1 -> 100000 | D28: =D$16*0.07 -> 367500
A29: Total 2nd Quarter | C29: =SUM(C26:C28) -> 230000 | D29: =SUM(D26:D28) -> 1050000 | E29: 2500000 | F29: 4000000 | G29: 6000000
A30: Month 7 | C30: =C$16*0.1 -> 100000 | D30: =D$16*0.08 -> 420000
A31: Month 8 | C31: =C$16*0.12 -> 120000 | D31: =D$16*0.1 -> 525000
A32: Month 9 | C32: =C$16*0.15 -> 150000 | D32: =D$16*0.1 -> 525000
A33: Total 3rd Quarter | C33: =SUM(C30:C32) -> 370000 | D33: =SUM(D30:D32) -> 1470000 | E33: 2500000 | F33: 4500000 | G33: 7000000
A34: Month 10 | C34: =C$16*0.12 -> 120000 | D34: =D$16*0.11 -> 577500
A35: Month 11 | C35: =C$16*0.13 -> 130000 | D35: =D$16*0.12 -> 630000
A36: Month 12 | C36: =C$16*0.15 -> 150000 | D36: =D$16*0.12 -> 630000
A37: Total 4th Quarter | C37: =SUM(C34:C36) -> 400000 | D37: =SUM(D34:D36) -> 1837500 | E37: 2750000 | F37: 4750000 | G37: 8000000
A38: Total for year | C38: =C25+C29+C33+C37 -> 1000000 | D38: =D25+D29+D33+D37 -> 5250000 | E38: =SUM(E25+E29+E33+E37) -> 9750000 | F38: =F25+F29+F33+F37 -> 16250000 | G38: =G25+G29+G33+G37 -> 26000000
A40: Average Revenue
A41: by Month | C41: =C16/12 -> 83333.33333 | D41: =D16/12 -> 437500 | E41: =E16/12 -> 812500 | F41: =F16/12 -> 1354166.667 | G41: =G16/12 -> 2166666.667
A42: by Quarter | C42: =C16/4 -> 250000 | D42: =D16/4 -> 1312500 | E42: =E16/4 -> 2437500 | F42: =F16/4 -> 4062500 | G42: =G16/4 -> 6500000

Sheet COST OF REV
A1: =COMPS!A1 -> XYZ Company | H1: Notes
A2: Cost of Revenues
A3: Years 1 to 5
A4: ($)
C5: Year 1 | D5: Year 2 | E5: Year 3 | F5: Year 4 | G5: Year 5
A7: Revenue | C7: =REVENUE!C16 -> 1000000 | D7: =REVENUE!D16 -> 5250000 | E7: =REVENUE!E16 -> 9750000 | F7: =REVENUE!F16 -> 16250000 | G7: =REVENUE!G16 -> 26000000
A9: Cost of Revenue
A11: Product A
A12: Material Costs per Unit | C12: 15 | D12: 14 | E12: 11 | F12: 10 | G12: 9
A13: Subcontact Costs per Unit | C13: 10 | D13: 10 | E13: 7 | F13: 6.5 | G13: 6
A14: Total Direct Costs per Unit | C14: =SUM(C12:C13) -> 25 | D14: =SUM(D12:D13) -> 24 | E14: =SUM(E12:E13) -> 18 | F14: =SUM(F12:F13) -> 16.5 | G14: =SUM(G12:G13) -> 15
A15: Unit Sales | C15: =REVENUE!C7 -> 20000 | D15: =REVENUE!D7 -> 75000 | E15: =REVENUE!E7 -> 150000 | F15: =REVENUE!F7 -> 250000 | G15: =REVENUE!G7 -> 400000
A16: Total Direct Costs | C16: =C14*C15 -> 500000 | D16: =D14*D15 -> 1800000 | E16: =E14*E15 -> 2700000 | F16: =F14*F15 -> 4125000 | G16: =G14*G15 -> 6000000
A17: Labor Costs | C17: =PERSONNEL!C73 -> 69000 | D17: =PERSONNEL!D73 -> 227700 | E17: =PERSONNEL!E73 -> 552000 | F17: =PERSONNEL!F73 -> 864000 | G17: =PERSONNEL!G73 -> 1200000
A18: Total Direct Costs | C18: =C16+C17 -> 569000 | D18: =D16+D17 -> 2027700 | E18: =E16+E17 -> 3252000 | F18: =F16+F17 -> 4989000 | G18: =G16+G17 -> 7200000
A20: Service B
A21: Service Personnel Costs | C21: =PERSONNEL!C81 -> 120750 | D21: =PERSONNEL!D81 -> 212750 | E21: =PERSONNEL!E81 -> 480000 | F21: =PERSONNEL!F81 -> 1500000 | G21: =PERSONNEL!G81 -> 2750000
A23: Other Expenses
A24: Salary Expenses | C24: =PERSONNEL!C65 -> 276000 | D24: =PERSONNEL!D65 -> 690000 | E24: =PERSONNEL!E65 -> 990000 | F24: =PERSONNEL!F65 -> 1410000 | G24: =PERSONNEL!G65 -> 2000000
A25: Depreciation | C25: ='PROP & EQUIP'!C34+'PROP & EQUIP'!C44 -> 36714.28571 | D25: ='PROP & EQUIP'!D34+'PROP & EQUIP'!D44 -> 91714.28571 | E25: ='PROP & EQUIP'!E34+'PROP & EQUIP'!E44 -> 137428.5714 | F25: ='PROP & EQUIP'!F34+'PROP & EQUIP'!F44 -> 190285.7143 | G25: ='PROP & EQUIP'!G34+'PROP & EQUIP'!G44 -> 243142.8571
A26: Facility costs (rent, energy) | C26: 50000 | D26: 200000 | E26: 300000 | F26: 300000 | G26: 450000
A27: System Costs | C27: 25000 | D27: 100000 | E27: 150000 | F27: 300000 | G27: 350000
A31: All other costs % of Revenue | B31: 0.04 | C31: =$B31*C7 -> 40000 | D31: =$B31*D7 -> 210000 | E31: =$B31*E7 -> 390000 | F31: =$B31*F7 -> 650000 | G31: =$B31*G7 -> 1040000
A32: Total Cost of Revenues | C32: =C18+C21+C24+C25+C26+C27+C31 -> 1117464.286 | D32: =D18+D21+D24+D25+D26+D27+D31 -> 3532164.286 | E32: =E18+E21+E24+E25+E26+E27+E31 -> 5699428.571 | F32: =F18+F21+F24+F25+F26+F27+F31 -> 9339285.714 | G32: =G18+G21+G24+G25+G26+G27+G31 -> 14033142.86
A33: % of Revenue | C33: =C32/C7 -> 1.117464286 | D33: =D32/D7 -> 0.6727931973 | E33: =E32/E7 -> 0.5845567766 | F33: =F32/F7 -> 0.5747252747 | G33: =G32/G7 -> 0.5397362637
A35: Allocation of Cost of Revenue between:
A36: Variable | C36: =C18+C21+C31 -> 729750 | D36: =D18+D21+D31 -> 2450450 | E36: =E18+E21+E31 -> 4122000 | F36: =F18+F21+F31 -> 7139000 | G36: =G18+G21+G31 -> 10990000
A37: Fixed | C37: =C24+C25+C26+C27 -> 387714.2857 | D37: =D24+D25+D26+D27 -> 1081714.286 | E37: =E24+E25+E26+E27 -> 1577428.571 | F37: =F24+F25+F26+F27 -> 2200285.714 | G37: =G24+G25+G26+G27 -> 3043142.857
A38: Total | C38: =SUM(C36:C37) -> 1117464.286 | D38: =SUM(D36:D37) -> 3532164.286 | E38: =SUM(E36:E37) -> 5699428.571 | F38: =SUM(F36:F37) -> 9339285.714 | G38: =SUM(G36:G37) -> 14033142.86
D40: Cost of Revenues by Months & Quarters
D41: ($)
C42: Year 1 | D42: Year 2 | E42: Year 3 | F42: Year 4 | G42: Year 5
A43: Month 1 | C43: =REVENUE!C22*'COST OF REV'!C$33 -> 0 | D43: =REVENUE!D22*'COST OF REV'!D$33 -> 176608.2143 | E43: =REVENUE!E22*'COST OF REV'!E$33 -> 0 | F43: =REVENUE!F22*'COST OF REV'!F$33 -> 0 | G43: =REVENUE!G22*'COST OF REV'!G$33 -> 0
A44: Month 2 | C44: =REVENUE!C23*'COST OF REV'!C$33 -> 0 | D44: =REVENUE!D23*'COST OF REV'!D$33 -> 176608.2143 | E44: =REVENUE!E23*'COST OF REV'!E$33 -> 0 | F44: =REVENUE!F23*'COST OF REV'!F$33 -> 0 | G44: =REVENUE!G23*'COST OF REV'!G$33 -> 0
A45: Month 3 | C45: =REVENUE!C24*'COST OF REV'!C$33 -> 0 | D45: =REVENUE!D24*'COST OF REV'!D$33 -> 247251.5 | E45: =REVENUE!E24*'COST OF REV'!E$33 -> 0 | F45: =REVENUE!F24*'COST OF REV'!F$33 -> 0 | G45: =REVENUE!G24*'COST OF REV'!G$33 -> 0
A46: Total 1st Quarter | C46: =REVENUE!C25*'COST OF REV'!C$33 -> 0 | D46: =REVENUE!D25*'COST OF REV'!D$33 -> 600467.9286 | E46: =REVENUE!E25*'COST OF REV'!E$33 -> 1169113.553 | F46: =REVENUE!F25*'COST OF REV'!F$33 -> 1724175.824 | G46: =REVENUE!G25*'COST OF REV'!G$33 -> 2698681.319
A47: Month 4 | C47: =REVENUE!C26*'COST OF REV'!C$33 -> 55873.21429 | D47: =REVENUE!D26*'COST OF REV'!D$33 -> 211929.8571 | E47: =REVENUE!E26*'COST OF REV'!E$33 -> 0 | F47: =REVENUE!F26*'COST OF REV'!F$33 -> 0 | G47: =REVENUE!G26*'COST OF REV'!G$33 -> 0
A48: Month 5 | C48: =REVENUE!C27*'COST OF REV'!C$33 -> 89397.14286 | D48: =REVENUE!D27*'COST OF REV'!D$33 -> 247251.5 | E48: =REVENUE!E27*'COST OF REV'!E$33 -> 0 | F48: =REVENUE!F27*'COST OF REV'!F$33 -> 0 | G48: =REVENUE!G27*'COST OF REV'!G$33 -> 0
A49: Month 6 | C49: =REVENUE!C28*'COST OF REV'!C$33 -> 111746.4286 | D49: =REVENUE!D28*'COST OF REV'!D$33 -> 247251.5 | E49: =REVENUE!E28*'COST OF REV'!E$33 -> 0 | F49: =REVENUE!F28*'COST OF REV'!F$33 -> 0 | G49: =REVENUE!G28*'COST OF REV'!G$33 -> 0
A50: Total 2nd Quarter | C50: =REVENUE!C29*'COST OF REV'!C$33 -> 257016.7857 | D50: =REVENUE!D29*'COST OF REV'!D$33 -> 706432.8571 | E50: =REVENUE!E29*'COST OF REV'!E$33 -> 1461391.941 | F50: =REVENUE!F29*'COST OF REV'!F$33 -> 2298901.099 | G50: =REVENUE!G29*'COST OF REV'!G$33 -> 3238417.582
A51: Month 7 | C51: =REVENUE!C30*'COST OF REV'!C$33 -> 111746.4286 | D51: =REVENUE!D30*'COST OF REV'!D$33 -> 282573.1429 | E51: =REVENUE!E30*'COST OF REV'!E$33 -> 0 | F51: =REVENUE!F30*'COST OF REV'!F$33 -> 0 | G51: =REVENUE!G30*'COST OF REV'!G$33 -> 0
A52: Month 8 | C52: =REVENUE!C31*'COST OF REV'!C$33 -> 134095.7143 | D52: =REVENUE!D31*'COST OF REV'!D$33 -> 353216.4286 | E52: =REVENUE!E31*'COST OF REV'!E$33 -> 0 | F52: =REVENUE!F31*'COST OF REV'!F$33 -> 0 | G52: =REVENUE!G31*'COST OF REV'!G$33 -> 0
A53: Month 9 | C53: =REVENUE!C32*'COST OF REV'!C$33 -> 167619.6429 | D53: =REVENUE!D32*'COST OF REV'!D$33 -> 353216.4286 | E53: =REVENUE!E32*'COST OF REV'!E$33 -> 0 | F53: =REVENUE!F32*'COST OF REV'!F$33 -> 0 | G53: =REVENUE!G32*'COST OF REV'!G$33 -> 0
A54: Total 3rd Quarter | C54: =REVENUE!C33*'COST OF REV'!C$33 -> 413461.7857 | D54: =REVENUE!D33*'COST OF REV'!D$33 -> 989006 | E54: =REVENUE!E33*'COST OF REV'!E$33 -> 1461391.941 | F54: =REVENUE!F33*'COST OF REV'!F$33 -> 2586263.736 | G54: =REVENUE!G33*'COST OF REV'!G$33 -> 3778153.846
A55: Month 10 | C55: =REVENUE!C34*'COST OF REV'!C$33 -> 134095.7143 | D55: =REVENUE!D34*'COST OF REV'!D$33 -> 388538.0714 | E55: =REVENUE!E34*'COST OF REV'!E$33 -> 0 | F55: =REVENUE!F34*'COST OF REV'!F$33 -> 0 | G55: =REVENUE!G34*'COST OF REV'!G$33 -> 0
A56: Month 11 | C56: =REVENUE!C35*'COST OF REV'!C$33 -> 145270.3571 | D56: =REVENUE!D35*'COST OF REV'!D$33 -> 423859.7143 | E56: =REVENUE!E35*'COST OF REV'!E$33 -> 0 | F56: =REVENUE!F35*'COST OF REV'!F$33 -> 0 | G56: =REVENUE!G35*'COST OF REV'!G$33 -> 0
A57: Month 12 | C57: =REVENUE!C36*'COST OF REV'!C$33 -> 167619.6429 | D57: =REVENUE!D36*'COST OF REV'!D$33 -> 423859.7143 | E57: =REVENUE!E36*'COST OF REV'!E$33 -> 0 | F57: =REVENUE!F36*'COST OF REV'!F$33 -> 0 | G57: =REVENUE!G36*'COST OF REV'!G$33 -> 0
A58: Total 4th Quarter | C58: =REVENUE!C37*'COST OF REV'!C$33 -> 446985.7143 | D58: =REVENUE!D37*'COST OF REV'!D$33 -> 1236257.5 | E58: =REVENUE!E37*'COST OF REV'!E$33 -> 1607531.136 | F58: =REVENUE!F37*'COST OF REV'!F$33 -> 2729945.055 | G58: =REVENUE!G37*'COST OF REV'!G$33 -> 4317890.11
A59: Total for year | C59: =REVENUE!C38*'COST OF REV'!C$33 -> 1117464.286 | D59: =REVENUE!D38*'COST OF REV'!D$33 -> 3532164.286 | E59: =REVENUE!E38*'COST OF REV'!E$33 -> 5699428.571 | F59: =REVENUE!F38*'COST OF REV'!F$33 -> 9339285.714 | G59: =REVENUE!G38*'COST OF REV'!G$33 -> 14033142.86

Sheet OPER EXP
A1: =COMPS!A1 -> XYZ Company | H1: Notes
A2: Operating Expenses
A3: Years 1 to 5
A4: ($)
C5: Year 1 | D5: Year 2 | E5: Year 3 | F5: Year 4 | G5: Year 5
A7: Net Revenues | C7: =REVENUE!C16 -> 1000000 | D7: =REVENUE!D16 -> 5250000 | E7: =REVENUE!E16 -> 9750000 | F7: =REVENUE!F16 -> 16250000 | G7: =REVENUE!G16 -> 26000000
A9: Sales & Marketing
A10: Drivers
A11: Salaries and Benefits | C11: =PERSONNEL!C21 -> 69000 | D11: =PERSONNEL!D21 -> 270250 | E11: =PERSONNEL!E21 -> 432900 | F11: =PERSONNEL!F21 -> 624000 | G11: =PERSONNEL!G21 -> 816000
A12: Commissions % of Revenue | B12: 0.05 | C12: =$B12*C7 -> 50000 | D12: =$B12*D7 -> 262500 | E12: =$B12*E7 -> 487500 | F12: =$B12*F7 -> 812500 | G12: =$B12*G7 -> 1300000
A13: Direct Mail Campaign | C13: 50000 | D13: 150000 | E13: 300000 | F13: 500000 | G13: 1000000
A15: All other expenses % of Revenue | B15: 0.06 | C15: =$B15*C7 -> 60000 | D15: =$B15*D7 -> 315000 | E15: =$B15*E7 -> 585000 | F15: =$B15*F7 -> 975000 | G15: =$B15*G7 -> 1560000
A16: Total Sales and Marketing | C16: =SUM(C11:C15) -> 229000 | D16: =SUM(D11:D15) -> 997750 | E16: =SUM(E11:E15) -> 1805400 | F16: =SUM(F11:F15) -> 2911500 | G16: =SUM(G11:G15) -> 4676000
A17: % of Revenue | C17: =C16/C7 -> 0.229 | D17: =D16/D7 -> 0.190047619 | E17: =E16/E7 -> 0.1851692308 | F17: =F16/F7 -> 0.1791692308 | G17: =G16/G7 -> 0.1798461538
A19: Research & Development
A20: Drivers
A21: Salaries and Benefits | C21: =PERSONNEL!C35 -> 69000 | D21: =PERSONNEL!D35 -> 195500 | E21: =PERSONNEL!E35 -> 310050 | F21: =PERSONNEL!F35 -> 504000 | G21: =PERSONNEL!G35 -> 672000
A22: Testing | C22: 50000 | D22: 60000 | E22: 100000 | F22: 250000 | G22: 300000
A24: All other expenses % of Revenue | B24: 0.03 | C24: =$B24*C7 -> 30000 | D24: =$B24*D7 -> 157500 | E24: =$B24*E7 -> 292500 | F24: =$B24*F7 -> 487500 | G24: =$B24*G7 -> 780000
A25: Total Reaserch & Development | C25: =SUM(C21:C24) -> 149000 | D25: =SUM(D21:D24) -> 413000 | E25: =SUM(E21:E24) -> 702550 | F25: =SUM(F21:F24) -> 1241500 | G25: =SUM(G21:G24) -> 1752000
A26: % of Revenue | C26: =C25/C7 -> 0.149 | D26: =D25/D7 -> 0.07866666667 | E26: =E25/E7 -> 0.07205641026 | F26: =F25/F7 -> 0.0764 | G26: =G25/G7 -> 0.06738461538
A28: General & Administration
A29: Drivers
A30: Salaries and Benefits | C30: =PERSONNEL!C50 -> 125000.15 | D30: =PERSONNEL!D50 -> 300150 | E30: =PERSONNEL!E50 -> 388440 | F30: =PERSONNEL!F50 -> 573600 | G30: =PERSONNEL!G50 -> 784800
A31: Depreciation | C31: ='PROP & EQUIP'!C24 -> 6666.666667 | D31: ='PROP & EQUIP'!D24 -> 40000 | E31: ='PROP & EQUIP'!E24 -> 106666.6667 | F31: ='PROP & EQUIP'!F24 -> 183333.3333 | G31: ='PROP & EQUIP'!G24 -> 266666.6667
A32: Rent and Utilities | C32: 20000 | D32: 20000 | E32: 100000 | F32: 110000 | G32: 200000
A36: All other expenses % of Revenue | B36: 0.02 | C36: =$B36*C7 -> 20000 | D36: =$B36*D7 -> 105000 | E36: =$B36*E7 -> 195000 | F36: =$B36*F7 -> 325000 | G36: =$B36*G7 -> 520000
A38: Total General & Administration | C38: =SUM(C30:C36) -> 171666.8167 | D38: =SUM(D30:D36) -> 465150 | E38: =SUM(E30:E36) -> 790106.6667 | F38: =SUM(F30:F36) -> 1191933.333 | G38: =SUM(G30:G36) -> 1771466.667
A39: % of Revenue | C39: =C38/C7 -> 0.1716668167 | D39: =D38/D7 -> 0.0886 | E39: =E38/E7 -> 0.0810365812 | F39: =F38/F7 -> 0.07334974359 | G39: =G38/G7 -> 0.06813333333
A41: Total Operating Expenses | C41: =C16+C25+C38 -> 549666.8167 | D41: =D16+D25+D38 -> 1875900 | E41: =E16+E25+E38 -> 3298056.667 | F41: =F16+F25+F38 -> 5344933.333 | G41: =G16+G25+G38 -> 8199466.667
A42: % of Revenue | C42: =C41/C7 -> 0.5496668167 | D42: =D41/D7 -> 0.3573142857 | E42: =E41/E7 -> 0.3382622222 | F42: =F41/F7 -> 0.3289189744 | G42: =G41/G7 -> 0.3153641026
A44: Allocation of Operating Expenses between:
A45: Vaiable | C45: =C12+C15+C24+C36 -> 160000 | D45: =D12+D15+D24+D36 -> 840000 | E45: =E12+E15+E24+E36 -> 1560000 | F45: =F12+F15+F24+F36 -> 2600000 | G45: =G12+G15+G24+G36 -> 4160000
A46: Fixed | C46: =C11+C13+C21+C22+C30+C31+C32 -> 389666.8167 | D46: =D11+D13+D21+D22+D30+D31+D32 -> 1035900 | E46: =E11+E13+E21+E22+E30+E31+E32 -> 1738056.667 | F46: =F11+F13+F21+F22+F30+F31+F32 -> 2744933.333 | G46: =G11+G13+G21+G22+G30+G31+G32 -> 4039466.667
A47: Total | C47: =C45+C46 -> 549666.8167 | D47: =D45+D46 -> 1875900 | E47: =E45+E46 -> 3298056.667 | F47: =F45+F46 -> 5344933.333 | G47: =G45+G46 -> 8199466.667
D50: Sales & Marketing by Months & Quarters
D51: ($)
C52: Year 1 | D52: Year 2 | E52: Year 3 | F52: Year 4 | G52: Year 5
A53: Month 1 | C53: =REVENUE!C22*'OPER EXP'!C$17 -> 0 | D53: =REVENUE!D22*'OPER EXP'!D$17 -> 49887.5 | E53: =REVENUE!E22*'OPER EXP'!E$42 -> 0 | F53: =REVENUE!F22*'OPER EXP'!F$42 -> 0 | G53: =REVENUE!G22*'OPER EXP'!G$42 -> 0
A54: Month 2 | C54: =REVENUE!C23*'OPER EXP'!C$17 -> 0 | D54: =REVENUE!D23*'OPER EXP'!D$17 -> 49887.5 | E54: =REVENUE!E23*'OPER EXP'!E$42 -> 0 | F54: =REVENUE!F23*'OPER EXP'!F$42 -> 0 | G54: =REVENUE!G23*'OPER EXP'!G$42 -> 0
A55: Month 3 | C55: =REVENUE!C24*'OPER EXP'!C$17 -> 0 | D55: =REVENUE!D24*'OPER EXP'!D$17 -> 69842.5 | E55: =REVENUE!E24*'OPER EXP'!E$42 -> 0 | F55: =REVENUE!F24*'OPER EXP'!F$42 -> 0 | G55: =REVENUE!G24*'OPER EXP'!G$42 -> 0
A56: Total 1st Quarter | C56: =REVENUE!C25*'OPER EXP'!C$17 -> 0 | D56: =REVENUE!D25*'OPER EXP'!D$17 -> 169617.5 | E56: =REVENUE!E25*'OPER EXP'!E$17 -> 370338.4615 | F56: =REVENUE!F25*'OPER EXP'!F$17 -> 537507.6923 | G56: =REVENUE!G25*'OPER EXP'!G$17 -> 899230.7692
A57: Month 4 | C57: =REVENUE!C26*'OPER EXP'!C$17 -> 11450 | D57: =REVENUE!D26*'OPER EXP'!D$17 -> 59865 | E57: =REVENUE!E26*'OPER EXP'!E$42 -> 0 | F57: =REVENUE!F26*'OPER EXP'!F$42 -> 0 | G57: =REVENUE!G26*'OPER EXP'!G$42 -> 0
A58: Month 5 | C58: =REVENUE!C27*'OPER EXP'!C$17 -> 18320 | D58: =REVENUE!D27*'OPER EXP'!D$17 -> 69842.5 | E58: =REVENUE!E27*'OPER EXP'!E$42 -> 0 | F58: =REVENUE!F27*'OPER EXP'!F$42 -> 0 | G58: =REVENUE!G27*'OPER EXP'!G$42 -> 0
A59: Month 6 | C59: =REVENUE!C28*'OPER EXP'!C$17 -> 22900 | D59: =REVENUE!D28*'OPER EXP'!D$17 -> 69842.5 | E59: =REVENUE!E28*'OPER EXP'!E$42 -> 0 | F59: =REVENUE!F28*'OPER EXP'!F$42 -> 0 | G59: =REVENUE!G28*'OPER EXP'!G$42 -> 0
A60: Total 2nd Quarter | C60: =REVENUE!C29*'OPER EXP'!C$17 -> 52670 | D60: =REVENUE!D29*'OPER EXP'!D$17 -> 199550 | E60: =REVENUE!E29*'OPER EXP'!E$17 -> 462923.0769 | F60: =REVENUE!F29*'OPER EXP'!F$17 -> 716676.9231 | G60: =REVENUE!G29*'OPER EXP'!G$17 -> 1079076.923
A61: Month 7 | C61: =REVENUE!C30*'OPER EXP'!C$17 -> 22900 | D61: =REVENUE!D30*'OPER EXP'!D$17 -> 79820 | E61: =REVENUE!E30*'OPER EXP'!E$42 -> 0 | F61: =REVENUE!F30*'OPER EXP'!F$42 -> 0 | G61: =REVENUE!G30*'OPER EXP'!G$42 -> 0
A62: Month 8 | C62: =REVENUE!C31*'OPER EXP'!C$17 -> 27480 | D62: =REVENUE!D31*'OPER EXP'!D$17 -> 99775 | E62: =REVENUE!E31*'OPER EXP'!E$42 -> 0 | F62: =REVENUE!F31*'OPER EXP'!F$42 -> 0 | G62: =REVENUE!G31*'OPER EXP'!G$42 -> 0
A63: Month 9 | C63: =REVENUE!C32*'OPER EXP'!C$17 -> 34350 | D63: =REVENUE!D32*'OPER EXP'!D$17 -> 99775 | E63: =REVENUE!E32*'OPER EXP'!E$42 -> 0 | F63: =REVENUE!F32*'OPER EXP'!F$42 -> 0 | G63: =REVENUE!G32*'OPER EXP'!G$42 -> 0
A64: Total 3rd Quarter | C64: =REVENUE!C33*'OPER EXP'!C$17 -> 84730 | D64: =REVENUE!D33*'OPER EXP'!D$17 -> 279370 | E64: =REVENUE!E33*'OPER EXP'!E$17 -> 462923.0769 | F64: =REVENUE!F33*'OPER EXP'!F$17 -> 806261.5385 | G64: =REVENUE!G33*'OPER EXP'!G$17 -> 1258923.077
A65: Month 10 | C65: =REVENUE!C34*'OPER EXP'!C$17 -> 27480 | D65: =REVENUE!D34*'OPER EXP'!D$17 -> 109752.5 | E65: =REVENUE!E34*'OPER EXP'!E$42 -> 0 | F65: =REVENUE!F34*'OPER EXP'!F$42 -> 0 | G65: =REVENUE!G34*'OPER EXP'!G$42 -> 0
A66: Month 11 | C66: =REVENUE!C35*'OPER EXP'!C$17 -> 29770 | D66: =REVENUE!D35*'OPER EXP'!D$17 -> 119730 | E66: =REVENUE!E35*'OPER EXP'!E$42 -> 0 | F66: =REVENUE!F35*'OPER EXP'!F$42 -> 0 | G66: =REVENUE!G35*'OPER EXP'!G$42 -> 0
A67: Month 12 | C67: =REVENUE!C36*'OPER EXP'!C$17 -> 34350 | D67: =REVENUE!D36*'OPER EXP'!D$17 -> 119730 | E67: =REVENUE!E36*'OPER EXP'!E$42 -> 0 | F67: =REVENUE!F36*'OPER EXP'!F$42 -> 0 | G67: =REVENUE!G36*'OPER EXP'!G$42 -> 0
A68: Total 4th Quarter | C68: =REVENUE!C37*'OPER EXP'!C$17 -> 91600 | D68: =REVENUE!D37*'OPER EXP'!D$17 -> 349212.5 | E68: =REVENUE!E37*'OPER EXP'!E$17 -> 509215.3846 | F68: =REVENUE!F37*'OPER EXP'!F$17 -> 851053.8462 | G68: =REVENUE!G37*'OPER EXP'!G$17 -> 1438769.231
A69: Total for year | C69: =REVENUE!C38*'OPER EXP'!C$17 -> 229000 | D69: =REVENUE!D38*'OPER EXP'!D$17 -> 997750 | E69: =REVENUE!E38*'OPER EXP'!E$17 -> 1805400 | F69: =REVENUE!F38*'OPER EXP'!F$17 -> 2911500 | G69: =REVENUE!G38*'OPER EXP'!G$17 -> 4676000
D72: Research & Development by Months & Quarters
D73: ($)
C74: Year 1 | D74: Year 2 | E74: Year 3 | F74: Year 4 | G74: Year 5
A75: Month 1 | C75: =REVENUE!C22*'OPER EXP'!C$26 -> 0 | D75: =REVENUE!D22*'OPER EXP'!D$26 -> 20650 | E75: =REVENUE!E44*'OPER EXP'!E$42 -> 0 | F75: =REVENUE!F44*'OPER EXP'!F$42 -> 0 | G75: =REVENUE!G44*'OPER EXP'!G$42 -> 0
A76: Month 2 | C76: =REVENUE!C23*'OPER EXP'!C$26 -> 0 | D76: =REVENUE!D23*'OPER EXP'!D$26 -> 20650 | E76: =REVENUE!E45*'OPER EXP'!E$42 -> 0 | F76: =REVENUE!F45*'OPER EXP'!F$42 -> 0 | G76: =REVENUE!G45*'OPER EXP'!G$42 -> 0
A77: Month 3 | C77: =REVENUE!C24*'OPER EXP'!C$26 -> 0 | D77: =REVENUE!D24*'OPER EXP'!D$26 -> 28910 | E77: =REVENUE!E46*'OPER EXP'!E$42 -> 0 | F77: =REVENUE!F46*'OPER EXP'!F$42 -> 0 | G77: =REVENUE!G46*'OPER EXP'!G$42 -> 0
A78: Total 1st Quarter | C78: =REVENUE!C25*'OPER EXP'!C$26 -> 0 | D78: =REVENUE!D25*'OPER EXP'!D$26 -> 70210 | E78: =REVENUE!E25*'OPER EXP'!E$26 -> 144112.8205 | F78: =REVENUE!F25*'OPER EXP'!F$26 -> 229200 | G78: =REVENUE!G25*'OPER EXP'!G$26 -> 336923.0769
A79: Month 4 | C79: =REVENUE!C26*'OPER EXP'!C$26 -> 7450 | D79: =REVENUE!D26*'OPER EXP'!D$26 -> 24780 | E79: =REVENUE!E48*'OPER EXP'!E$42 -> 0 | F79: =REVENUE!F48*'OPER EXP'!F$42 -> 0 | G79: =REVENUE!G48*'OPER EXP'!G$42 -> 0
A80: Month 5 | C80: =REVENUE!C27*'OPER EXP'!C$26 -> 11920 | D80: =REVENUE!D27*'OPER EXP'!D$26 -> 28910 | E80: =REVENUE!E49*'OPER EXP'!E$42 -> 0 | F80: =REVENUE!F49*'OPER EXP'!F$42 -> 0 | G80: =REVENUE!G49*'OPER EXP'!G$42 -> 0
A81: Month 6 | C81: =REVENUE!C28*'OPER EXP'!C$26 -> 14900 | D81: =REVENUE!D28*'OPER EXP'!D$26 -> 28910 | E81: =REVENUE!E50*'OPER EXP'!E$42 -> 0 | F81: =REVENUE!F50*'OPER EXP'!F$42 -> 0 | G81: =REVENUE!G50*'OPER EXP'!G$42 -> 0
A82: Total 2nd Quarter | C82: =REVENUE!C29*'OPER EXP'!C$26 -> 34270 | D82: =REVENUE!D29*'OPER EXP'!D$26 -> 82600 | E82: =REVENUE!E29*'OPER EXP'!E$26 -> 180141.0256 | F82: =REVENUE!F29*'OPER EXP'!F$26 -> 305600 | G82: =REVENUE!G29*'OPER EXP'!G$26 -> 404307.6923
A83: Month 7 | C83: =REVENUE!C30*'OPER EXP'!C$26 -> 14900 | D83: =REVENUE!D30*'OPER EXP'!D$26 -> 33040 | E83: =REVENUE!E52*'OPER EXP'!E$42 -> 0 | F83: =REVENUE!F52*'OPER EXP'!F$42 -> 0 | G83: =REVENUE!G52*'OPER EXP'!G$42 -> 0
A84: Month 8 | C84: =REVENUE!C31*'OPER EXP'!C$26 -> 17880 | D84: =REVENUE!D31*'OPER EXP'!D$26 -> 41300 | E84: =REVENUE!E53*'OPER EXP'!E$42 -> 0 | F84: =REVENUE!F53*'OPER EXP'!F$42 -> 0 | G84: =REVENUE!G53*'OPER EXP'!G$42 -> 0
A85: Month 9 | C85: =REVENUE!C32*'OPER EXP'!C$26 -> 22350 | D85: =REVENUE!D32*'OPER EXP'!D$26 -> 41300 | E85: =REVENUE!E54*'OPER EXP'!E$42 -> 0 | F85: =REVENUE!F54*'OPER EXP'!F$42 -> 0 | G85: =REVENUE!G54*'OPER EXP'!G$42 -> 0
A86: Total 3rd Quarter | C86: =REVENUE!C33*'OPER EXP'!C$26 -> 55130 | D86: =REVENUE!D33*'OPER EXP'!D$26 -> 115640 | E86: =REVENUE!E33*'OPER EXP'!E$26 -> 180141.0256 | F86: =REVENUE!F33*'OPER EXP'!F$26 -> 343800 | G86: =REVENUE!G33*'OPER EXP'!G$26 -> 471692.3077
A87: Month 10 | C87: =REVENUE!C34*'OPER EXP'!C$26 -> 17880 | D87: =REVENUE!D34*'OPER EXP'!D$26 -> 45430 | E87: =REVENUE!E56*'OPER EXP'!E$42 -> 0 | F87: =REVENUE!F56*'OPER EXP'!F$42 -> 0 | G87: =REVENUE!G56*'OPER EXP'!G$42 -> 0
A88: Month 11 | C88: =REVENUE!C35*'OPER EXP'!C$26 -> 19370 | D88: =REVENUE!D35*'OPER EXP'!D$26 -> 49560 | E88: =REVENUE!E57*'OPER EXP'!E$42 -> 0 | F88: =REVENUE!F57*'OPER EXP'!F$42 -> 0 | G88: =REVENUE!G57*'OPER EXP'!G$42 -> 0
A89: Month 12 | C89: =REVENUE!C36*'OPER EXP'!C$26 -> 22350 | D89: =REVENUE!D36*'OPER EXP'!D$26 -> 49560 | E89: =REVENUE!E58*'OPER EXP'!E$42 -> 0 | F89: =REVENUE!F58*'OPER EXP'!F$42 -> 0 | G89: =REVENUE!G58*'OPER EXP'!G$42 -> 0
A90: Total 4th Quarter | C90: =REVENUE!C37*'OPER EXP'!C$26 -> 59600 | D90: =REVENUE!D37*'OPER EXP'!D$26 -> 144550 | E90: =REVENUE!E37*'OPER EXP'!E$26 -> 198155.1282 | F90: =REVENUE!F37*'OPER EXP'!F$26 -> 362900 | G90: =REVENUE!G37*'OPER EXP'!G$26 -> 539076.9231
A91: Total for year | C91: =REVENUE!C38*'OPER EXP'!C$26 -> 149000 | D91: =REVENUE!D38*'OPER EXP'!D$26 -> 413000 | E91: =REVENUE!E38*'OPER EXP'!E$26 -> 702550 | F91: =REVENUE!F38*'OPER EXP'!F$26 -> 1241500 | G91: =REVENUE!G38*'OPER EXP'!G$26 -> 1752000
D94: General & Administrative by Months & Quarters
D95: ($)
C96: Year 1 | D96: Year 2 | E96: Year 3 | F96: Year 4 | G96: Year 5
A97: Month 1 | C97: =REVENUE!C22*'OPER EXP'!C$39 -> 0 | D97: =REVENUE!D22*'OPER EXP'!D$39 -> 23257.5 | E97: =REVENUE!E66*'OPER EXP'!E$42 -> 0 | F97: =REVENUE!F66*'OPER EXP'!F$42 -> 0 | G97: =REVENUE!G66*'OPER EXP'!G$42 -> 0
A98: Month 2 | C98: =REVENUE!C23*'OPER EXP'!C$39 -> 0 | D98: =REVENUE!D23*'OPER EXP'!D$39 -> 23257.5 | E98: =REVENUE!E67*'OPER EXP'!E$42 -> 0 | F98: =REVENUE!F67*'OPER EXP'!F$42 -> 0 | G98: =REVENUE!G67*'OPER EXP'!G$42 -> 0
A99: Month 3 | C99: =REVENUE!C24*'OPER EXP'!C$39 -> 0 | D99: =REVENUE!D24*'OPER EXP'!D$39 -> 32560.5 | E99: =REVENUE!E68*'OPER EXP'!E$42 -> 0 | F99: =REVENUE!F68*'OPER EXP'!F$42 -> 0 | G99: =REVENUE!G68*'OPER EXP'!G$42 -> 0
A100: Total 1st Quarter | C100: =REVENUE!C25*'OPER EXP'!C$39 -> 0 | D100: =REVENUE!D25*'OPER EXP'!D$39 -> 79075.5 | E100: =REVENUE!E25*'OPER EXP'!E$39 -> 162073.1624 | F100: =REVENUE!F25*'OPER EXP'!F$39 -> 220049.2308 | G100: =REVENUE!G25*'OPER EXP'!G$39 -> 340666.6667
A101: Month 4 | C101: =REVENUE!C26*'OPER EXP'!C$39 -> 8583.340833 | D101: =REVENUE!D26*'OPER EXP'!D$39 -> 27909 | E101: =REVENUE!E70*'OPER EXP'!E$42 -> 0 | F101: =REVENUE!F70*'OPER EXP'!F$42 -> 0 | G101: =REVENUE!G70*'OPER EXP'!G$42 -> 0
A102: Month 5 | C102: =REVENUE!C27*'OPER EXP'!C$39 -> 13733.34533 | D102: =REVENUE!D27*'OPER EXP'!D$39 -> 32560.5 | E102: =REVENUE!E71*'OPER EXP'!E$42 -> 0 | F102: =REVENUE!F71*'OPER EXP'!F$42 -> 0 | G102: =REVENUE!G71*'OPER EXP'!G$42 -> 0
A103: Month 6 | C103: =REVENUE!C28*'OPER EXP'!C$39 -> 17166.68167 | D103: =REVENUE!D28*'OPER EXP'!D$39 -> 32560.5 | E103: =REVENUE!E72*'OPER EXP'!E$42 -> 0 | F103: =REVENUE!F72*'OPER EXP'!F$42 -> 0 | G103: =REVENUE!G72*'OPER EXP'!G$42 -> 0
A104: Total 2nd Quarter | C104: =REVENUE!C29*'OPER EXP'!C$39 -> 39483.36783 | D104: =REVENUE!D29*'OPER EXP'!D$39 -> 93030 | E104: =REVENUE!E29*'OPER EXP'!E$39 -> 202591.453 | F104: =REVENUE!F29*'OPER EXP'!F$39 -> 293398.9744 | G104: =REVENUE!G29*'OPER EXP'!G$39 -> 408800
A105: Month 7 | C105: =REVENUE!C30*'OPER EXP'!C$39 -> 17166.68167 | D105: =REVENUE!D30*'OPER EXP'!D$39 -> 37212 | E105: =REVENUE!E74*'OPER EXP'!E$42 -> 0 | F105: =REVENUE!F74*'OPER EXP'!F$42 -> 0 | G105: =REVENUE!G74*'OPER EXP'!G$42 -> 0
A106: Month 8 | C106: =REVENUE!C31*'OPER EXP'!C$39 -> 20600.018 | D106: =REVENUE!D31*'OPER EXP'!D$39 -> 46515 | E106: =REVENUE!E75*'OPER EXP'!E$42 -> 0 | F106: =REVENUE!F75*'OPER EXP'!F$42 -> 0 | G106: =REVENUE!G75*'OPER EXP'!G$42 -> 0
A107: Month 9 | C107: =REVENUE!C32*'OPER EXP'!C$39 -> 25750.0225 | D107: =REVENUE!D32*'OPER EXP'!D$39 -> 46515 | E107: =REVENUE!E76*'OPER EXP'!E$42 -> 0 | F107: =REVENUE!F76*'OPER EXP'!F$42 -> 0 | G107: =REVENUE!G76*'OPER EXP'!G$42 -> 0
A108: Total 3rd Quarter | C108: =REVENUE!C33*'OPER EXP'!C$39 -> 63516.72217 | D108: =REVENUE!D33*'OPER EXP'!D$39 -> 130242 | E108: =REVENUE!E33*'OPER EXP'!E$39 -> 202591.453 | F108: =REVENUE!F33*'OPER EXP'!F$39 -> 330073.8462 | G108: =REVENUE!G33*'OPER EXP'!G$39 -> 476933.3333
A109: Month 10 | C109: =REVENUE!C34*'OPER EXP'!C$39 -> 20600.018 | D109: =REVENUE!D34*'OPER EXP'!D$39 -> 51166.5 | E109: =REVENUE!E78*'OPER EXP'!E$42 -> 0 | F109: =REVENUE!F78*'OPER EXP'!F$42 -> 0 | G109: =REVENUE!G78*'OPER EXP'!G$42 -> 0
A110: Month 11 | C110: =REVENUE!C35*'OPER EXP'!C$39 -> 22316.68617 | D110: =REVENUE!D35*'OPER EXP'!D$39 -> 55818 | E110: =REVENUE!E79*'OPER EXP'!E$42 -> 0 | F110: =REVENUE!F79*'OPER EXP'!F$42 -> 0 | G110: =REVENUE!G79*'OPER EXP'!G$42 -> 0
A111: Month 12 | C111: =REVENUE!C36*'OPER EXP'!C$39 -> 25750.0225 | D111: =REVENUE!D36*'OPER EXP'!D$39 -> 55818 | E111: =REVENUE!E80*'OPER EXP'!E$42 -> 0 | F111: =REVENUE!F80*'OPER EXP'!F$42 -> 0 | G111: =REVENUE!G80*'OPER EXP'!G$42 -> 0
A112: Total 4th Quarter | C112: =REVENUE!C37*'OPER EXP'!C$39 -> 68666.72667 | D112: =REVENUE!D37*'OPER EXP'!D$39 -> 162802.5 | E112: =REVENUE!E37*'OPER EXP'!E$39 -> 222850.5983 | F112: =REVENUE!F37*'OPER EXP'!F$39 -> 348411.2821 | G112: =REVENUE!G37*'OPER EXP'!G$39 -> 545066.6667
A113: Total for year | C113: =REVENUE!C38*'OPER EXP'!C$39 -> 171666.8167 | D113: =REVENUE!D38*'OPER EXP'!D$39 -> 465150 | E113: =REVENUE!E38*'OPER EXP'!E$39 -> 790106.6667 | F113: =REVENUE!F38*'OPER EXP'!F$39 -> 1191933.333 | G113: =REVENUE!G38*'OPER EXP'!G$39 -> 1771466.667

Sheet PERSONNEL
A1: =COMPS!A1 -> XYZ Company | H1: Notes
A2: Personnel
A3: Years 1 to 5
A4: ($)
C5: Year 1 | D5: Year 2 | E5: Year 3 | F5: Year 4 | G5: Year 5
A7: Net Revenues | C7: =REVENUE!C16 -> 1000000 | D7: =REVENUE!D16 -> 5250000 | E7: =REVENUE!E16 -> 9750000 | F7: =REVENUE!F16 -> 16250000 | G7: =REVENUE!G16 -> 26000000
A9: Sales & Marketing
A10: Sales Manager | C10: 60000 | D10: 80000 | E10: 100000 | F10: 125000 | G10: 150000
A11: Marketing Manager | D11: 80000 | E11: 100000 | F11: 125000 | G11: 150000
A12: Customer service | D12: 40000 | E12: 120000 | F12: 200000 | G12: 250000
A13: Tech support | D13: 35000 | E13: 50000 | F13: 70000 | G13: 130000
A14: (other…)
A15: (other…)
A16: (other…)
A17: Total Salary | C17: =SUM(C10:C16) -> 60000 | D17: =SUM(D10:D16) -> 235000 | E17: =SUM(E10:E16) -> 370000 | F17: =SUM(F10:F16) -> 520000 | G17: =SUM(G10:G16) -> 680000
A18: Benefits
A19: Percent (%) | C19: 0.15 | D19: 0.15 | E19: 0.17 | F19: 0.2 | G19: 0.2
A20: Total benefit costs | C20: =C19*C17 -> 9000 | D20: =D19*D17 -> 35250 | E20: =E19*E17 -> 62900 | F20: =F19*F17 -> 104000 | G20: =G19*G17 -> 136000
A21: Total S & M Compensation | C21: =C17+C20 -> 69000 | D21: =D17+D20 -> 270250 | E21: =E17+E20 -> 432900 | F21: =F17+F20 -> 624000 | G21: =G17+G20 -> 816000
A22: % of Revenue | C22: =C21/C$7 -> 0.069 | D22: =D21/D$7 -> 0.05147619048 | E22: =E21/E$7 -> 0.0444 | F22: =F21/F$7 -> 0.0384 | G22: =G21/G$7 -> 0.03138461538
A24: Research and Development
A25: R & D Manager | D25: 80000 | E25: 100000 | F25: 125000 | G25: 150000
A26: Engineers | C26: 60000 | D26: 60000 | E26: 130000 | F26: 230000 | G26: 300000
A27: Technicians | D27: 30000 | E27: 35000 | F27: 65000 | G27: 110000
A28: Subcontract
A29: (other…)
A30: (other…)
A31: Total Salary | C31: =SUM(C25:C30) -> 60000 | D31: =SUM(D25:D30) -> 170000 | E31: =SUM(E25:E30) -> 265000 | F31: =SUM(F25:F30) -> 420000 | G31: =SUM(G25:G30) -> 560000
A32: Benefits
A33: Percent (%) | C33: 0.15 | D33: 0.15 | E33: 0.17 | F33: 0.2 | G33: 0.2
A34: Total benefit costs | C34: =C33*C31 -> 9000 | D34: =D33*D31 -> 25500 | E34: =E33*E31 -> 45050 | F34: =F33*F31 -> 84000 | G34: =G33*G31 -> 112000
A35: Total R & D Compensation | C35: =C31+C34 -> 69000 | D35: =D31+D34 -> 195500 | E35: =E31+E34 -> 310050 | F35: =F31+F34 -> 504000 | G35: =G31+G34 -> 672000
A36: % of Revenue | C36: =C35/C$7 -> 0.069 | D36: =D35/D$7 -> 0.03723809524 | E36: =E35/E$7 -> 0.0318 | F36: =F35/F$7 -> 0.03101538462 | G36: =G35/G$7 -> 0.02584615385
A38: General & Administration
A39: Chief Executive Officer | C39: 60000 | D39: 80000 | E39: 100000 | F39: 125000 | G39: 150000
A40: Chief Financial Officer | D40: 50000 | E40: 60000 | F40: 75000 | G40: 100000
A41: Accounting | C41: 40000 | D41: 45000 | E41: 25000 | F41: 50000 | G41: 75000
A42: Secretarial | C42: 25000 | D42: 26000 | E42: 27000 | F42: 28000 | G42: 29000
A43: Clerks and admin personnel | D43: 60000 | E43: 120000 | F43: 200000 | G43: 300000
A44: (other…)
A45: (other…)
A46: Total Salary | C46: =SUM(C39:C45) -> 125000 | D46: =SUM(D39:D45) -> 261000 | E46: =SUM(E39:E45) -> 332000 | F46: =SUM(F39:F45) -> 478000 | G46: =SUM(G39:G45) -> 654000
A47: Benefits
A48: Percent (%) | C48: 0.15 | D48: 0.15 | E48: 0.17 | F48: 0.2 | G48: 0.2
A49: Total benefit costs | C49: 0.15 | D49: =D48*D46 -> 39150 | E49: =E48*E46 -> 56440 | F49: =F48*F46 -> 95600 | G49: =G48*G46 -> 130800
A50: Total G & A Compensation | C50: =C46+C49 -> 125000.15 | D50: =D46+D49 -> 300150 | E50: =E46+E49 -> 388440 | F50: =F46+F49 -> 573600 | G50: =G46+G49 -> 784800
A51: % of Revenue | C51: =C50/C$7 -> 0.12500015 | D51: =D50/D$7 -> 0.05717142857 | E51: =E50/E$7 -> 0.03984 | F51: =F50/F$7 -> 0.03529846154 | G51: =G50/G$7 -> 0.03018461538
A53: Cost of Revenue
A54: Manufacturing Personnel
A55: Operations Manager | C55: 100000 | D55: 125000 | E55: 150000 | F55: 175000 | G55: 200000
A56: Quality Assurance | C56: 50000 | D56: 100000 | E56: 150000 | F56: 300000 | G56: 350000
A57: Materials and Logistics | C57: 40000 | D57: 150000 | E57: 200000 | F57: 300000 | G57: 450000
A58: Engineering | D58: 75000 | E58: 125000 | F58: 150000 | G58: 300000
A59: Other personnel | C59: 50000 | D59: 150000 | E59: 200000 | F59: 250000 | G59: 300000
A60: (other...)
A61: Total Salary | C61: =SUM(C55:C60) -> 240000 | D61: =SUM(D55:D60) -> 600000 | E61: =SUM(E55:E60) -> 825000 | F61: =SUM(F55:F60) -> 1175000 | G61: =SUM(G55:G60) -> 1600000
A62: Benefits
A63: Percent (%) | C63: 0.15 | D63: 0.15 | E63: 0.2 | F63: 0.2 | G63: 0.25
A64: Total benefit costs | C64: =C63*C61 -> 36000 | D64: =D63*D61 -> 90000 | E64: =E63*E61 -> 165000 | F64: =F63*F61 -> 235000 | G64: =G63*G61 -> 400000
A65: Total Salary Costs | C65: =C61+C64 -> 276000 | D65: =D61+D64 -> 690000 | E65: =E61+E64 -> 990000 | F65: =F61+F64 -> 1410000 | G65: =G61+G64 -> 2000000
A66: Hourly Personnel
A67: Number of employees | C67: 3 | D67: 9 | E67: 20 | F67: 30 | G67: 40
A68: Average wages per employee | C68: 20000 | D68: 22000 | E68: 23000 | F68: 24000 | G68: 24000
A69: Total wages | C69: =C67*C68 -> 60000 | D69: =D67*D68 -> 198000 | E69: =E67*E68 -> 460000 | F69: =F67*F68 -> 720000 | G69: =G67*G68 -> 960000
A70: Benefits
A71: Percent (%) | C71: 0.15 | D71: 0.15 | E71: 0.2 | F71: 0.2 | G71: 0.25
A72: Total benefit costs | C72: =C69*C71 -> 9000 | D72: =D69*D71 -> 29700 | E72: =E69*E71 -> 92000 | F72: =F69*F71 -> 144000 | G72: =G69*G71 -> 240000
A73: Total Wage Costs | C73: =C69+C72 -> 69000 | D73: =D69+D72 -> 227700 | E73: =E69+E72 -> 552000 | F73: =F69+F72 -> 864000 | G73: =G69+G72 -> 1200000
A74: Service Personnel
A75: Number of employees | C75: 3 | D75: 5 | E75: 10 | F75: 25 | G75: 40
A76: Salary per employee | C76: 35000 | D76: 37000 | E76: 40000 | F76: 50000 | G76: 55000
A77: Total salaries | C77: =C75*C76 -> 105000 | D77: =D75*D76 -> 185000 | E77: =E75*E76 -> 400000 | F77: =F75*F76 -> 1250000 | G77: =G75*G76 -> 2200000
A78: Benefits
A79: Percent (%) | C79: 0.15 | D79: 0.15 | E79: 0.2 | F79: 0.2 | G79: 0.25
A80: Total benefit costs | C80: =C77*C79 -> 15750 | D80: =D77*D79 -> 27750 | E80: =E77*E79 -> 80000 | F80: =F77*F79 -> 250000 | G80: =G77*G79 -> 550000
A81: Total Salary Costs | C81: =C77+C80 -> 120750 | D81: =D77+D80 -> 212750 | E81: =E77+E80 -> 480000 | F81: =F77+F80 -> 1500000 | G81: =G77+G80 -> 2750000
A83: Total COR's Compensation | C83: =C65+C73+C81 -> 465750 | D83: =D65+D73+D81 -> 1130450 | E83: =E65+E73+E81 -> 2022000 | F83: =F65+F73+F81 -> 3774000 | G83: =G65+G73+G81 -> 5950000
A84: % of Revenue | C84: =C83/C$7 -> 0.46575 | D84: =D83/D$7 -> 0.2153238095 | E84: =E83/E$7 -> 0.2073846154 | F84: =F83/F$7 -> 0.2322461538 | G84: =G83/G$7 -> 0.2288461538
A86: Total Salary & Wages | C86: =C17+C31+C46+C61+C69 -> 545000 | D86: =D17+D31+D46+D61+D69 -> 1464000 | E86: =E17+E31+E46+E61+E69 -> 2252000 | F86: =F17+F31+F46+F61+F69 -> 3313000 | G86: =G17+G31+G46+G61+G69 -> 4454000
A87: Total Benefits | C87: =C20+C34+C49+C64+C72 -> 63000.15 | D87: =D20+D34+D49+D64+D72 -> 219600 | E87: =E20+E34+E49+E64+E72 -> 421390 | F87: =F20+F34+F49+F64+F72 -> 662600 | G87: =G20+G34+G49+G64+G72 -> 1018800
A88: Total Compensation | C88: =C21+C35+C50+C83 -> 728750.15 | D88: =D21+D35+D50+D83 -> 1896350 | E88: =E21+E35+E50+E83 -> 3153390 | F88: =F21+F35+F50+F83 -> 5475600 | G88: =G21+G35+G50+G83 -> 8222800
A89: % of Revenue | C89: =C88/C$7 -> 0.72875015 | D89: =D88/D$7 -> 0.3612095238 | E89: =E88/E$7 -> 0.3234246154 | F89: =F88/F$7 -> 0.33696 | G89: =G88/G$7 -> 0.3162615385

Sheet EXTRA
A1: =COMPS!A1 -> XYZ Company | H1: Notes
A2: Extraordinary Income & Expense
A3: Years 1 to 5
A4: ($)
C5: Year 1 | D5: Year 2 | E5: Year 3 | F5: Year 4 | G5: Year 5
A7: Income
A8: (Item…) | C8: 0
A9: (Item…)
A10: (Item…)
A11: Total | C11: =SUM(C8:C10) -> 0 | D11: =SUM(D8:D10) -> 0 | E11: =SUM(E8:E10) -> 0 | F11: =SUM(F8:F10) -> 0 | G11: =SUM(G8:G10) -> 0
A12: Start-up expenses
A13: Legal | C13: 25000
A14: Relocation | C14: 20000
A15: (Item…)
A16: Total | C16: =SUM(C13:C15) -> 45000 | D16: =SUM(D13:D15) -> 0 | E16: =SUM(E13:E15) -> 0 | F16: =SUM(F13:F15) -> 0 | G16: =SUM(G13:G15) -> 0
A17: Total Extraordinary Income/(Expense) | C17: =C11-C16 -> -45000 | D17: =D11-D16 -> 0 | E17: =E11-E16 -> 0 | F17: =F11-F16 -> 0 | G17: =G11-G16 -> 0
D21: Extraordinary Income and Expense by Months & Quarters
D22: ($)
C23: Year 1 | D23: Year 2 | E23: Year 3 | F23: Year 4 | G23: Year 5
A24: Month 1 | C24: -25000
A25: Month 2 | C25: -20000
A26: Month 3
A27: Total 1st Quarter | C27: =SUM(C24:C26) -> -45000 | D27: =SUM(D24:D26) -> 0 | E27: =SUM(E24:E26) -> 0 | F27: =SUM(F24:F26) -> 0 | G27: =SUM(G24:G26) -> 0
A28: Month 4
A29: Month 5
A30: Month 6
A31: Total 2nd Quarter | C31: =SUM(C28:C30) -> 0 | D31: =SUM(D28:D30) -> 0 | E31: =SUM(E28:E30) -> 0 | F31: =SUM(F28:F30) -> 0 | G31: =SUM(G28:G30) -> 0
A32: Month 7
A33: Month 8
A34: Month 9
A35: Total 3rd Quarter | C35: =SUM(C32:C34) -> 0 | D35: =SUM(D32:D34) -> 0 | E35: =SUM(E32:E34) -> 0 | F35: =SUM(F32:F34) -> 0 | G35: =SUM(G32:G34) -> 0
A36: Month 10
A37: Month 11
A38: Month 12
A39: Total 4th Quarter | C39: =SUM(C36:C38) -> 0 | D39: =SUM(D36:D38) -> 0 | E39: =SUM(E36:E38) -> 0 | F39: =SUM(F36:F38) -> 0 | G39: =SUM(G36:G38) -> 0
A40: Total for year | C40: =SUM(C39,C35,C31,C27) -> -45000 | D40: =SUM(D39,D35,D31,D27) -> 0 | E40: =SUM(E39,E35,E31,E27) -> 0 | F40: =SUM(F39,F35,F31,F27) -> 0 | G40: =SUM(G39,G35,G31,G27) -> 0

Sheet TAXES
A1: =COMPS!A1 -> XYZ Company | H1: Notes
A2: Taxes
A3: Years 1 to 5
A4: ($)
C5: Year 1 | D5: Year 2 | E5: Year 3 | F5: Year 4 | G5: Year 5
A7: Net Revenues | C7: =REVENUE!C16 -> 1000000 | D7: =REVENUE!D16 -> 5250000 | E7: =REVENUE!E16 -> 9750000 | F7: =REVENUE!F16 -> 16250000 | G7: =REVENUE!G16 -> 26000000
A9: Income Tax (Rate Federal & State) | C9: 0.4 | D9: 0.4 | E9: 0.4 | F9: 0.4 | G9: 0.4
A11: Net Earnings Before Taxes | C11: =INCOME!C30 -> -712131.1024 | D11: =INCOME!D30 -> -218064.2857 | E11: =INCOME!E30 -> 704514.7619 | F11: =INCOME!F30 -> 1520780.952 | G11: =INCOME!G30 -> 3753390.476
A12: Cumulative | C12: =C11 -> -712131.1024 | D12: =D11+C12 -> -930195.3881 | E12: =E11+D12 -> -225680.6262 | F12: =F11+E12 -> 1295100.326 | G12: =G11+F12 -> 5048490.802
A14: Taxes | C14: =-IF(C12>=0,TAXES!$C$9*MIN(C11,C12),0) -> 0 | D14: =-IF(D12>=0,TAXES!$D$9*MIN(D11,D12),0) -> 0 | E14: =-IF(E12>=0,TAXES!$E$9*MIN(E11,E12),0) -> 0 | F14: =-IF(F12>=0,TAXES!$F$9*MIN(F11,F12),0) -> -518040.1305 | G14: =-IF(G12>=0,TAXES!$G$9*MIN(G11,G12),0) -> -1501356.19
A15: Percent of Revenues | C15: =C14/C7 -> 0 | D15: =D14/D7 -> 0 | E15: =E14/E7 -> 0 | F15: =F14/F7 -> -0.03187939264 | G15: =G14/G7 -> -0.05774446886

Sheet PROP & EQUIP
A1: =COMPS!A1 -> XYZ Company | H1: Notes
A2: Property and Equipment
A3: Years 1 to 5
A4: ($)
B5: Year 0 | C5: Year 1 | D5: Year 2 | E5: Year 3 | F5: Year 4 | G5: Year 5
B6: Purchased
A7: Net Revenues | B7: Assets | C7: =REVENUE!C16 -> 1000000 | D7: =REVENUE!D16 -> 5250000 | E7: =REVENUE!E16 -> 9750000 | F7: =REVENUE!F16 -> 16250000 | G7: =REVENUE!G16 -> 26000000
A9: Capital Expenditures
A10: Computers, Software & Office Equipment | C10: 20000 | D10: 100000 | E10: 200000 | F10: 250000 | G10: 350000
A11: Plant & Equipment | C11: 250000 | D11: 350000 | E11: 250000 | F11: 300000 | G11: 300000
A12: Other | C12: 10000 | D12: 50000 | E12: 100000 | F12: 100000 | G12: 100000
A13: Total Capital Expenditures | B13: =SUM(B10:B12) -> 0 | C13: 280000 | D13: 500000 | E13: 550000 | F13: 650000 | G13: 750000
A14: % of Revenue | C14: =C13/C7 -> 0.28 | D14: =D13/D7 -> 0.09523809524 | E14: =E13/E7 -> 0.05641025641 | F14: =F13/F7 -> 0.04 | G14: =G13/G7 -> 0.02884615385
A16: Depreciation Computers, Sofware & Office Equipment (allocated to General & Administrative Expenses)
A17: Depreciation Rate: Years | B17: 1 | C17: 3 | D17: 3 | E17: 3 | F17: 3 | G17: 3
A18: Year 0 | C18: =$B10*1/$B17 -> 0 | D18: =IF(C18<$B10,($B10*1/$B$17),0) -> 0 | E18: =IF(SUM(C18:D18)<$B10,($B10*1/$B$17),0) -> 0 | F18: =IF(SUM(C18:E18)<$B10,($B10*1/$B$17),0) -> 0 | G18: =IF(SUM(C18:F18)<$B10,($B10*1/$B$17),0) -> 0
A19: Year 1 | C19: =$C10*1/$C17 -> 6666.666667 | D19: =IF(C19<$C10,($C10*1/$C$17),0) -> 6666.666667 | E19: =IF(SUM(C19:D19)<$C10,($C10*1/$C$17),0) -> 6666.666667 | F19: =IF(SUM(C19:E19)<$C10,($C10*1/$C$17),0) -> 0 | G19: =IF(SUM(C19:F19)<$C10,($C10*1/$C$17),0) -> 0
A20: Year 2 | D20: =$D10*1/$D$17 -> 33333.33333 | E20: =IF(D20<$D10,($D10*1/$D$17),0) -> 33333.33333 | F20: =IF(SUM(D20:E20)<$D10,($D10*1/$D$17),0) -> 33333.33333 | G20: =IF(SUM(D20:F20)<$D10,($D10*1/$D$17),0) -> 0
A21: Year 3 | E21: =$E10*1/$E$17 -> 66666.66667 | F21: =IF(E21<$E10,($E10*1/$E$17),0) -> 66666.66667 | G21: =IF(SUM(E21:F21)<$E10,($E10*1/$E$17),0) -> 66666.66667
A22: Year 4 | F22: =$F10*1/$F$17 -> 83333.33333 | G22: =IF(F22<$F10,($F10*1/$F$17),0) -> 83333.33333
A23: Year 5 | G23: =$G10*1/G$17 -> 116666.6667
A24: Total Depreciation | C24: =SUM(C18:C23) -> 6666.666667 | D24: =SUM(D18:D23) -> 40000 | E24: =SUM(E18:E23) -> 106666.6667 | F24: =SUM(F18:F23) -> 183333.3333 | G24: =SUM(G18:G23) -> 266666.6667
A26: Depreciation on Plant and Equipment (allocated to Cost of Revenue)
A27: Depreciation Rate: Years | B27: 1 | C27: 7 | D27: 7 | E27: 7 | F27: 7 | G27: 7
A28: Year 0 | C28: =$B11*1/$B27 -> 0 | D28: =IF(C28<$B11,($B11*1/$B$27),0) -> 0 | E28: =IF(SUM(C28:D28)<$B11,($B11*1/$B$27),0) -> 0 | F28: =IF(SUM(C28:E28)<$B11,($B11*1/$B$27),0) -> 0 | G28: =IF(SUM(C28:F28)<$B11,($B11*1/$B$27),0) -> 0
A29: Year 1 | C29: =$C11*1/$C27 -> 35714.28571 | D29: =IF(C29<$C11,($C11*1/$C$27),0) -> 35714.28571 | E29: =IF(SUM(C29:D29)<$C11,($C11*1/$C$27),0) -> 35714.28571 | F29: =IF(SUM(C29:E29)<$C11,($C11*1/$C$27),0) -> 35714.28571 | G29: =IF(SUM(C29:F29)<$C11,($C11*1/$C$27),0) -> 35714.28571
A30: Year 2 | D30: =$D11*1/$D$27 -> 50000 | E30: =IF(D30<$D11,($D11*1/$D$27),0) -> 50000 | F30: =IF(SUM(D30:E30)<$D11,($D11*1/$D$27),0) -> 50000 | G30: =IF(SUM(D30:F30)<$D11,($D11*1/$D$27),0) -> 50000
A31: Year 3 | E31: =$E11*1/$E$27 -> 35714.28571 | F31: =IF(E31<$E11,($E11*1/$E$27),0) -> 35714.28571 | G31: =IF(SUM(E31:F31)<$E11,($E11*1/$E$27),0) -> 35714.28571
A32: Year 4 | F32: =$F11*1/$F$27 -> 42857.14286 | G32: =IF(F32<$F11,($F11*1/$F$27),0) -> 42857.14286
A33: Year 5 | G33: =$G11*1/G$27 -> 42857.14286
A34: Total Depreciation | C34: =SUM(C28:C33) -> 35714.28571 | D34: =SUM(D28:D33) -> 85714.28571 | E34: =SUM(E28:E33) -> 121428.5714 | F34: =SUM(F28:F33) -> 164285.7143 | G34: =SUM(G28:G33) -> 207142.8571
A36: Depreciation Other (allocated to Cost of Revenue)
A37: Depreciation Rate: Years | B37: 1 | C37: 10 | D37: 10 | E37: 10 | F37: 10 | G37: 10
A38: Year 0 | C38: =$B12*1/$B37 -> 0 | D38: =IF(C38<$B12,($B12*1/$B$37),0) -> 0 | E38: =IF(SUM(C38:D38)<$B12,($B12*1/$B$37),0) -> 0 | F38: =IF(SUM(C38:E38)<$B12,($B12*1/$B$37),0) -> 0 | G38: =IF(SUM(C38:F38)<$B12,($B12*1/$B$37),0) -> 0
A39: Year 1 | C39: =$C12*1/$C37 -> 1000 | D39: =IF(C39<$C12,($C12*1/$C$37),0) -> 1000 | E39: =IF(SUM(C39:D39)<$C12,($C12*1/$C$37),0) -> 1000 | F39: =IF(SUM(C39:E39)<$C12,($C12*1/$C$37),0) -> 1000 | G39: =IF(SUM(C39:F39)<$C12,($C12*1/$C$37),0) -> 1000
A40: Year 2 | D40: =$D12*1/$D$37 -> 5000 | E40: =IF(D40<D12,($D12*1/$D$37),0) -> 5000 | F40: =IF(SUM(D40:E40)<$D12,($D12*1/$D$37),0) -> 5000 | G40: =IF(SUM(D40:F40)<$D12,($D12*1/$D$37),0) -> 5000
A41: Year 3 | E41: =$E12*1/$E$37 -> 10000 | F41: =IF(E41<$E12,($E12*1/$E$37),0) -> 10000 | G41: =IF(SUM(E41:F41)<$E12,($E12*1/$E$37),0) -> 10000
A42: Year 4 | F42: =$F12*1/$F$37 -> 10000 | G42: =IF(F42<$F12,($F12*1/$F$37),0) -> 10000
A43: Year 5 | G43: =$G12*1/G$37 -> 10000
A44: Total Depreciation | C44: =SUM(C38:C43) -> 1000 | D44: =SUM(D38:D43) -> 6000 | E44: =SUM(E38:E43) -> 16000 | F44: =SUM(F38:F43) -> 26000 | G44: =SUM(G38:G43) -> 36000
A47: Total Depreciation | C47: =C24+C34+C44 -> 43380.95238 | D47: =D24+D34+D44 -> 131714.2857 | E47: =E24+E34+E44 -> 244095.2381 | F47: =F24+F34+F44 -> 373619.0476 | G47: =G24+G34+G44 -> 509809.5238
A48: % of Revenue | C48: =C47/C7 -> 0.04338095238 | D48: =D47/D7 -> 0.02508843537 | E48: =E47/E7 -> 0.02503540904 | F48: =F47/F7 -> 0.02299194139 | G48: =G47/G7 -> 0.01960805861
A50: Property & Equipment
A51: Gross Asset Value | B51: =B13 -> 0 | C51: =C13+B12 -> 280000 | D51: =C51+D13 -> 780000 | E51: =D51+E13 -> 1330000 | F51: =E51+F13 -> 1980000 | G51: =F51+G13 -> 2730000
A52: Accumulated Depreciation | C52: =C47 -> 43380.95238 | D52: =C52+D47 -> 175095.2381 | E52: =D52+E47 -> 419190.4762 | F52: =E52+F47 -> 792809.5238 | G52: =F52+G47 -> 1302619.048
A53: Net Property and Equipment | B53: =B51-B52 -> 0 | C53: 236619.0476 | D53: 604904.7619 | E53: 910809.5238 | F53: 1187190.476 | G53: 1427380.952
A54: % of Revenue | C54: =C53/C7 -> 0.2366190476 | D54: =D53/D7 -> 0.1152199546 | E54: =E53/E7 -> 0.09341636142 | F54: =F53/F7 -> 0.07305787546 | G54: =G53/G7 -> 0.0548992674
D58: Capital Expenditures by Months & Quarters
D59: ($)
C60: Year 1 | D60: Year 2 | E60: Year 3 | F60: Year 4 | G60: Year 5
A61: Month 1 | C61: 50000 | D61: 100000
A62: Month 2 | C62: 100000 | D62: 100000
A63: Month 3 | C63: 50000
A64: Total 1st Quarter | C64: =SUM(C61:C63) -> 200000 | D64: =SUM(D61:D63) -> 200000 | E64: 100000 | F64: 200000 | G64: 200000
A65: Month 4 | C65: 40000
A66: Month 5
A67: Month 6 | D67: 100000
A68: Total 2nd Quarter | C68: =SUM(C65:C67) -> 40000 | D68: =SUM(D65:D67) -> 100000 | E68: 200000 | F68: 200000 | G68: 200000
A69: Month 7 | C69: 40000
A70: Month 8
A71: Month 9 | D71: 100000
A72: Total 3rd Quarter | C72: =SUM(C69:C71) -> 40000 | D72: =SUM(D69:D71) -> 100000 | E72: 100000 | F72: 100000 | G72: 200000
A73: Month 10
A74: Month 11
A75: Month 12 | D75: 100000
A76: Total 4th Quarter | C76: =SUM(C73:C75) -> 0 | D76: =SUM(D73:D75) -> 100000 | E76: 150000 | F76: 150000 | G76: 150000
A77: Total for year | C77: =C64+C68+C72+C76 -> 280000 | D77: =D64+D68+D72+D76 -> 500000 | E77: =E64+E68+E72+E76 -> 550000 | F77: =F64+F68+F72+F76 -> 650000 | G77: =G64+G68+G72+G76 -> 750000

Sheet WORKCAP
A1: =COMPS!A1 -> XYZ Company | H1: Notes
A2: Working Capital
A3: Years 1 to 5
A4: ($)
C5: Year 1 | D5: Year 2 | E5: Year 3 | F5: Year 4 | G5: Year 5
A6: Net Revenues | C6: =REVENUE!C16 -> 1000000 | D6: =REVENUE!D16 -> 5250000 | E6: =REVENUE!E16 -> 9750000 | F6: =REVENUE!F16 -> 16250000 | G6: =REVENUE!G16 -> 26000000
A9: Accounts Receivable
A10: % of Revenue | C10: 0.083 | D10: 0.083 | E10: 0.083 | F10: 0.083 | G10: 0.083
A11: Days Outstanding | C11: =C10*360 -> 29.88 | D11: =D10*360 -> 29.88 | E11: =E10*360 -> 29.88 | F11: =F10*360 -> 29.88 | G11: =G10*360 -> 29.88
A12: Accounts Receivable | C12: =C78 -> 149400 | D12: =D78 -> 627480 | E12: =E78 -> 913000 | F12: =F78 -> 1577000 | G12: =G78 -> 2656000
A13: (Increase)/Decrease from Prev. Period | C13: =-C12 -> -149400 | D13: =-(D12-C12) -> -478080 | E13: =-(E12-D12) -> -285520 | F13: =-(F12-E12) -> -664000 | G13: =-(G12-F12) -> -1079000
A15: Inventory
A16: % of Revenue | C16: 0.083 | D16: 0.083 | E16: 0.067 | F16: 0.067 | G16: 0.067
A17: Inventory Turns | C17: =IF(C18<=0,0,ROUND(360/C18,0)) -> 12 | D17: =IF(D18<=0,0,ROUND(360/D18,0)) -> 12 | E17: =IF(E18<=0,0,ROUND(360/E18,0)) -> 15 | F17: =IF(F18<=0,0,ROUND(360/F18,0)) -> 15 | G17: =IF(G18<=0,0,ROUND(360/G18,0)) -> 15
A18: Inventory Days | C18: =C16*360 -> 29.88 | D18: =D16*360 -> 29.88 | E18: =E16*360 -> 24.12 | F18: =F16*360 -> 24.12 | G18: =G16*360 -> 24.12
A19: Inventory | C19: =C95 -> 149400 | D19: =D95 -> 627480 | E19: =E95 -> 737000 | F19: =F95 -> 1273000 | G19: =G95 -> 2144000
A20: (Increase)/Decrease from Prev. Period | C20: =-C19 -> -149400 | D20: =-(D19-C19) -> -478080 | E20: =-(E19-D19) -> -109520 | F20: =-(F19-E19) -> -536000 | G20: =-(G19-F19) -> -871000
A22: Other Current Assets
A23: % of Revenue | C23: 0.01 | D23: 0.01 | E23: 0.01 | F23: 0.01 | G23: 0.01
A24: Days | C24: =C23*360 -> 3.6 | D24: =D23*360 -> 3.6 | E24: =E23*360 -> 3.6 | F24: =F23*360 -> 3.6 | G24: =G23*360 -> 3.6
A25: Other CA Value | C25: =C112 -> 18000 | D25: =D112 -> 75600 | E25: =E112 -> 110000 | F25: =F112 -> 190000 | G25: =G112 -> 320000
A26: (Increase)/Decrease from Prev. Period | C26: =-C25 -> -18000 | D26: =-(D25-C25) -> -57600 | E26: =-(E25-D25) -> -34400 | F26: =-(F25-E25) -> -80000 | G26: =-(G25-F25) -> -130000
A28: Accounts Payable & Accrued Expenses
A29: % of Revenue | C29: 0.087 | D29: 0.087 | E29: 0.087 | F29: 0.087 | G29: 0.087
A30: Days | C30: =C29*360 -> 31.32 | D30: =D29*360 -> 31.32 | E30: =E29*360 -> 31.32 | F30: =F29*360 -> 31.32 | G30: =G29*360 -> 31.32
A31: AP & Accrued Value | C31: =C129 -> 155720 | D31: =D129 -> 657720 | E31: =E129 -> 957000 | F31: =F129 -> 1653000 | G31: =G129 -> 2784000
A32: Increase/(Decrease) from Prev. Period | C32: =C31 -> 155720 | D32: =(D31-C31) -> 502000 | E32: =(E31-D31) -> 299280 | F32: =(F31-E31) -> 696000 | G32: =(G31-F31) -> 1131000
A34: Other Current Liabilites
A35: % of Revenue | C35: 0.01 | D35: 0.01 | E35: 0.01 | F35: 0.01 | G35: 0.01
A36: Days | C36: =C35*360 -> 3.6 | D36: =D35*360 -> 3.6 | E36: =E35*360 -> 3.6 | F36: =F35*360 -> 3.6 | G36: =G35*360 -> 3.6
A37: Other Current Liabilities | C37: =C146 -> 18000 | D37: =D146 -> 75600 | E37: =E146 -> 110000 | F37: =F146 -> 190000 | G37: =G146 -> 320000
A38: Increase/(Decrease) from Prev. Period | C38: =C37 -> 18000 | D38: =D37-C37 -> 57600 | E38: =E37-D37 -> 34400 | F38: =F37-E37 -> 80000 | G38: =G37-F37 -> 130000
A42: Revenues by Months & Quarters
D43: ($)
C44: Year 1 | D44: Year 2 | E44: Year 3 | F44: Year 4 | G44: Year 5
A45: Month 1 | C45: =REVENUE!C22 -> 0 | D45: =REVENUE!D22 -> 262500 | E45: =REVENUE!E22 -> 0 | F45: =REVENUE!F22 -> 0 | G45: =REVENUE!G22 -> 0
A46: Month 2 | C46: =REVENUE!C23 -> 0 | D46: =REVENUE!D23 -> 262500 | E46: =REVENUE!E23 -> 0 | F46: =REVENUE!F23 -> 0 | G46: =REVENUE!G23 -> 0
A47: Month 3 | C47: =REVENUE!C24 -> 0 | D47: =REVENUE!D24 -> 367500 | E47: =REVENUE!E24 -> 0 | F47: =REVENUE!F24 -> 0 | G47: =REVENUE!G24 -> 0
A48: Total 1st Quarter | C48: =REVENUE!C25 -> 0 | D48: =REVENUE!D25 -> 892500 | E48: =REVENUE!E25 -> 2000000 | F48: =REVENUE!F25 -> 3000000 | G48: =REVENUE!G25 -> 5000000
A49: Month 4 | C49: =REVENUE!C26 -> 50000 | D49: =REVENUE!D26 -> 315000 | E49: =REVENUE!E26 -> 0 | F49: =REVENUE!F26 -> 0 | G49: =REVENUE!G26 -> 0
A50: Month 5 | C50: =REVENUE!C27 -> 80000 | D50: =REVENUE!D27 -> 367500 | E50: =REVENUE!E27 -> 0 | F50: =REVENUE!F27 -> 0 | G50: =REVENUE!G27 -> 0
A51: Month 6 | C51: =REVENUE!C28 -> 100000 | D51: =REVENUE!D28 -> 367500 | E51: =REVENUE!E28 -> 0 | F51: =REVENUE!F28 -> 0 | G51: =REVENUE!G28 -> 0
A52: Total 2nd Quarter | C52: =REVENUE!C29 -> 230000 | D52: =REVENUE!D29 -> 1050000 | E52: =REVENUE!E29 -> 2500000 | F52: =REVENUE!F29 -> 4000000 | G52: =REVENUE!G29 -> 6000000
A53: Month 7 | C53: =REVENUE!C30 -> 100000 | D53: =REVENUE!D30 -> 420000 | E53: =REVENUE!E30 -> 0 | F53: =REVENUE!F30 -> 0 | G53: =REVENUE!G30 -> 0
A54: Month 8 | C54: =REVENUE!C31 -> 120000 | D54: =REVENUE!D31 -> 525000 | E54: =REVENUE!E31 -> 0 | F54: =REVENUE!F31 -> 0 | G54: =REVENUE!G31 -> 0
A55: Month 9 | C55: =REVENUE!C32 -> 150000 | D55: =REVENUE!D32 -> 525000 | E55: =REVENUE!E32 -> 0 | F55: =REVENUE!F32 -> 0 | G55: =REVENUE!G32 -> 0
A56: Total 3rd Quarter | C56: =REVENUE!C33 -> 370000 | D56: =REVENUE!D33 -> 1470000 | E56: =REVENUE!E33 -> 2500000 | F56: =REVENUE!F33 -> 4500000 | G56: =REVENUE!G33 -> 7000000
A57: Month 10 | C57: =REVENUE!C34 -> 120000 | D57: =REVENUE!D34 -> 577500 | E57: =REVENUE!E34 -> 0 | F57: =REVENUE!F34 -> 0 | G57: =REVENUE!G34 -> 0
A58: Month 11 | C58: =REVENUE!C35 -> 130000 | D58: =REVENUE!D35 -> 630000 | E58: =REVENUE!E35 -> 0 | F58: =REVENUE!F35 -> 0 | G58: =REVENUE!G35 -> 0
A59: Month 12 | C59: =REVENUE!C36 -> 150000 | D59: =REVENUE!D36 -> 630000 | E59: =REVENUE!E36 -> 0 | F59: =REVENUE!F36 -> 0 | G59: =REVENUE!G36 -> 0
A60: Total 4th Quarter | C60: =REVENUE!C37 -> 400000 | D60: =REVENUE!D37 -> 1837500 | E60: =REVENUE!E37 -> 2750000 | F60: =REVENUE!F37 -> 4750000 | G60: =REVENUE!G37 -> 8000000
A61: Total for year | C61: =REVENUE!C38 -> 1000000 | D61: =REVENUE!D38 -> 5250000 | E61: =REVENUE!E38 -> 9750000 | F61: =REVENUE!F38 -> 16250000 | G61: =REVENUE!G38 -> 26000000
A64: Accounts Receivable by Months & Quarters
D65: ($)
C66: Year 1 | D66: Year 2 | E66: Year 3 | F66: Year 4 | G66: Year 5
A67: Month 1 | C67: =IF(C$11<=30,C$11/30*C45,0)+IF(AND(30<C$11,C$11<=60),C45,0)+IF(AND(60<C$11,C$11<=90),C45,0)+IF(AND(90<C$11,C$11<=120),C45,0) -> 0 | D67: =IF(D$11<=30,D$11/30*D45,0)+IF(AND(30<D$11,D$11<=60),D45+(D$11-30)/30*C59,0)+IF(AND(60<D$11,D$11<=90),D45+C59+(D$11-60)/30*C58,0)+IF(AND(90<D$11,D$11<=120),D45+C59+C58+(D$11-90)/30*C57,0) -> 261450
A68: Month 2 | C68: =IF(C$11<=30,C$11/30*C46,0)+IF(AND(30<C$11,C$11<=60),C46+(C$11-30)/30*C45,0)+IF(AND(60<C$11,C$11<=90),C46+C45,0)+IF(AND(90<C$11,C$11<=120),C46+C45,0) -> 0 | D68: =IF(D$11<=30,D$11/30*D46,0)+IF(AND(30<D$11,D$11<=60),D46+(D$11-30)/30*D45,0)+IF(AND(60<D$11,D$11<=90),D46+D45+(D$11-60)/30*C59,0)+IF(AND(90<D$11,D$11<=120),D46+D45+C59+(D$11-90)/30*C58,0) -> 261450
A69: Month 3 | C69: =IF(C$11<=30,C11/30*C47,0)+IF(AND(30<C$11,C$11<=60),C47+(C$11-30)/30*C46,0)+IF(AND(60<C$11,C$11<=90),C47+C46+(C$11-60)/30*C45,0)+IF(AND(90<C$11,C$11<=120),C47+C46+C45,0) -> 0 | D69: =IF(D$11<=30,D$11/30*D47,0)+IF(AND(30<D$11,D$11<=60),D47+(D$11-30)/30*D46,0)+IF(AND(60<D$11,D$11<=90),D47+D46+(D$11-60)/30*D45,0)+IF(AND(90<D$11,D$11<=120),D47+D46+D45+(D$11-90)/30*C59,0) -> 366030 | E69: =IF((E$11<=90),E48*(E$11)/90,0)+IF(AND(90<E$11,E$11<=120),E48+(E$11-90)/90*D60,0) -> 664000 | F69: =IF((F$11<=90),F48*(F$11)/90,0)+IF(AND(90<F$11,F$11<=120),F48+(F$11-90)/90*E60,0) -> 996000 | G69: =IF((G$11<=90),G48*(G$11)/90,0)+IF(AND(90<G$11,G$11<=120),G48+(G$11-90)/90*F60,0) -> 1660000
A70: Month 4 | C70: =IF(C$11<=30,C$11/30*C49,0)+IF(AND(30<C$11,C$11<=60),C49+(C$11-30)/30*C47,0)+IF(AND(60<C$11,C$11<=90),C49+C47+(C$11-60)/30*C46,0)+IF(AND(90<C$11,C$11<=120),C49+C47+C46+(C$11-90)/30*C45,0) -> 49800 | D70: =IF(D$11<=30,D$11/30*D49,0)+IF(AND(30<D$11,D$11<=60),D49+(D$11-30)/30*D47,0)+IF(AND(60<D$11,D$11<=90),D49+D47+(D$11-60)/30*D46,0)+IF(AND(90<D$11,D$11<=120),D49+D47+D46+(D$11-90)/30*D45,0) -> 313740
A71: Month 5 | C71: =IF(C$11<=30,C$11/30*C50,0)+IF(AND(30<C$11,C$11<=60),C50+(C$11-30)/30*C49,0)+IF(AND(60<C$11,C$11<=90),C50+C49+(C$11-60)/30*C47,0)+IF(AND(90<C$11,C$11<=120),C50+C49+C47+(C$11-90)/30*C46,0) -> 79680 | D71: =IF(D$11<=30,D$11/30*D50,0)+IF(AND(30<D$11,D$11<=60),D50+(D$11-30)/30*D49,0)+IF(AND(60<D$11,D$11<=90),D50+D49+(D$11-60)/30*D47,0)+IF(AND(90<D$11,D$11<=120),D50+D49+D47+(D$11-90)/30*D46,0) -> 366030
A72: Month 6 | C72: =IF(C$11<=30,C$11/30*C51,0)+IF(AND(30<C$11,C$11<=60),C51+(C$11-30)/30*C50,0)+IF(AND(60<C$11,C$11<=90),C51+C50+(C$11-60)/30*C49,0)+IF(AND(90<C$11,C$11<=120),C51+C50+C49+(C$11-90)/30*C47,0) -> 99600 | D72: =IF(D$11<=30,D$11/30*D51,0)+IF(AND(30<D$11,D$11<=60),D51+(D$11-30)/30*D50,0)+IF(AND(60<D$11,D$11<=90),D51+D50+(D$11-60)/30*D49,0)+IF(AND(90<D$11,D$11<=120),D51+D50+D49+(D$11-90)/30*D47,0) -> 366030 | E72: =IF((E$11<=90),E52*(E$11)/90,0)+IF(AND(90<E$11,E$11<=120),E52+(E$11-90)/90*E48,0) -> 830000 | F72: =IF((F$11<=90),F52*(F$11)/90,0)+IF(AND(90<F$11,F$11<=120),F52+(F$11-90)/90*F48,0) -> 1328000 | G72: =IF((G$11<=90),G52*(G$11)/90,0)+IF(AND(90<G$11,G$11<=120),G52+(G$11-90)/90*G48,0) -> 1992000
A73: Month 7 | C73: =IF(C$11<=30,C$11/30*C53,0)+IF(AND(30<C$11,C$11<=60),C53+(C$11-30)/30*C51,0)+IF(AND(60<C$11,C$11<=90),C53+C51+(C$11-60)/30*C50,0)+IF(AND(90<C$11,C$11<=120),C53+C51+C50+(C$11-90)/30*C49,0) -> 99600 | D73: =IF(D$11<=30,D$11/30*D53,0)+IF(AND(30<D$11,D$11<=60),D53+(D$11-30)/30*D51,0)+IF(AND(60<D$11,D$11<=90),D53+D51+(D$11-60)/30*D50,0)+IF(AND(90<D$11,D$11<=120),D53+D51+D50+(D$11-90)/30*D49,0) -> 418320
A74: Month 8 | C74: =IF(C$11<=30,C$11/30*C54,0)+IF(AND(30<C$11,C$11<=60),C54+(C$11-30)/30*C53,0)+IF(AND(60<C$11,C$11<=90),C54+C53+(C$11-60)/30*C51,0)+IF(AND(90<C$11,C$11<=120),C54+C53+C51+(C$11-90)/30*C50,0) -> 119520 | D74: =IF(D$11<=30,D$11/30*D54,0)+IF(AND(30<D$11,D$11<=60),D54+(D$11-30)/30*D53,0)+IF(AND(60<D$11,D$11<=90),D54+D53+(D$11-60)/30*D51,0)+IF(AND(90<D$11,D$11<=120),D54+D53+D51+(D$11-90)/30*D50,0) -> 522900
A75: Month 9 | C75: =IF(C$11<=30,C$11/30*C55,0)+IF(AND(30<C$11,C$11<=60),C55+(C$11-30)/30*C54,0)+IF(AND(60<C$11,C$11<=90),C55+C54+(C$11-60)/30*C53,0)+IF(AND(90<C$11,C$11<=120),C55+C54+C53+(C$11-90)/30*C51,0) -> 149400 | D75: =IF(D$11<=30,D$11/30*D55,0)+IF(AND(30<D$11,D$11<=60),D55+(D$11-30)/30*D54,0)+IF(AND(60<D$11,D$11<=90),D55+D54+(D$11-60)/30*D53,0)+IF(AND(90<D$11,D$11<=120),D55+D54+D53+(D$11-90)/30*D51,0) -> 522900 | E75: =IF((E$11<=90),E56*(E$11)/90,0)+IF(AND(90<E$11,E$11<=120),E56+(E$11-90)/90*E52,0) -> 830000 | F75: =IF((F$11<=90),F56*(F$11)/90,0)+IF(AND(90<F$11,F$11<=120),F56+(F$11-90)/90*F52,0) -> 1494000 | G75: =IF((G$11<=90),G56*(G$11)/90,0)+IF(AND(90<G$11,G$11<=120),G56+(G$11-90)/90*G52,0) -> 2324000
A76: Month 10 | C76: =IF(C$11<=30,C$11/30*C57,0)+IF(AND(30<C$11,C$11<=60),C57+(C$11-30)/30*C55,0)+IF(AND(60<C$11,C$11<=90),C57+C55+(C$11-60)/30*C54,0)+IF(AND(90<C$11,C$11<=120),C57+C55+C54+(C$11-90)/30*C53,0) -> 119520 | D76: =IF(D$11<=30,D$11/30*D57,0)+IF(AND(30<D$11,D$11<=60),D57+(D$11-30)/30*D55,0)+IF(AND(60<D$11,D$11<=90),D57+D55+(D$11-60)/30*D54,0)+IF(AND(90<D$11,D$11<=120),D57+D55+D54+(D$11-90)/30*D53,0) -> 575190
A77: Month 11 | C77: =IF(C$11<=30,C$11/30*C58,0)+IF(AND(30<C$11,C$11<=60),C58+(C$11-30)/30*C57,0)+IF(AND(60<C$11,C$11<=90),C58+C57+(C$11-60)/30*C55,0)+IF(AND(90<C$11,C$11<=120),C58+C57+C55+(C$11-90)/30*C54,0) -> 129480 | D77: =IF(D$11<=30,D$11/30*D58,0)+IF(AND(30<D$11,D$11<=60),D58+(D$11-30)/30*D57,0)+IF(AND(60<D$11,D$11<=90),D58+D57+(D$11-60)/30*D55,0)+IF(AND(90<D$11,D$11<=120),D58+D57+D55+(D$11-90)/30*D54,0) -> 627480
A78: Month 12 | C78: =IF(C$11<=30,C$11/30*C59,0)+IF(AND(30<C$11,C$11<=60),C59+(C$11-30)/30*C58,0)+IF(AND(60<C$11,C$11<=90),C59+C58+(C$11-60)/30*C57,0)+IF(AND(90<C$11,C$11<=120),C59+C58+C57+(C$11-90)/30*C55,0) -> 149400 | D78: =IF(D$11<=30,D$11/30*D59,0)+IF(AND(30<D$11,D$11<=60),D59+(D$11-30)/30*D58,0)+IF(AND(60<D$11,D$11<=90),D59+D58+(D$11-60)/30*D57,0)+IF(AND(90<D$11,D$11<=120),D59+D58+D57+(D$11-90)/30*D55,0) -> 627480 | E78: =IF((E$11<=90),E60*(E$11)/90,0)+IF(AND(90<E$11,E$11<=120),E60+(E$11-90)/90*E56,0) -> 913000 | F78: =IF((F$11<=90),F60*(F$11)/90,0)+IF(AND(90<F$11,F$11<=120),F60+(F$11-90)/90*F56,0) -> 1577000 | G78: =IF((G$11<=90),G60*(G$11)/90,0)+IF(AND(90<G$11,G$11<=120),G60+(G$11-90)/90*G56,0) -> 2656000
A81: Inventory by Months & Quarters
D82: ($)
C83: Year 1 | D83: Year 2 | E83: Year 3 | F83: Year 4 | G83: Year 5
A84: Month 1 | C84: =IF(C$18<=30,C$18/30*C45,0)+IF(AND(30<C$18,C$18<=60),C45,0)+IF(AND(60<C$18,C$18<=90),C45,0)+IF(AND(90<C$18,C$18<=120),C45,0) -> 0 | D84: =IF(D$18<=30,D$18/30*D45,0)+IF(AND(30<D$18,D$18<=60),D45+(D$18-30)/30*C59,0)+IF(AND(60<D$18,D$18<=90),D45+C59+(D$18-60)/30*C58,0)+IF(AND(90<D$18,D$18<=120),D45+C59+C58+(D$18-90)/30*C57,0) -> 261450
A85: Month 2 | C85: =IF(C$18<=30,C$18/30*C46,0)+IF(AND(30<C$18,C$18<=60),C46+(C$18-30)/30*C45,0)+IF(AND(60<C$18,C$18<=90),C46+C45,0)+IF(AND(90<C$18,C$18<=120),C46+C45,0) -> 0 | D85: =IF(D$18<=30,D$18/30*D46,0)+IF(AND(30<D$18,D$18<=60),D46+(D$18-30)/30*D45,0)+IF(AND(60<D$18,D$18<=90),D46+D45+(D$18-60)/30*C59,0)+IF(AND(90<D$18,D$18<=120),D46+D45+C59+(D$18-90)/30*C58,0) -> 261450
A86: Month 3 | C86: =IF(C$18<=30,C$18/30*C47,0)+IF(AND(30<C$18,C$18<=60),C47+(C$18-30)/30*C46,0)+IF(AND(60<C$18,C$18<=90),C47+C46+(C$18-60)/30*C45,0)+IF(AND(90<C$18,C$18<=120),C47+C46+C45,0) -> 0 | D86: =IF(D$18<=30,D$18/30*D47,0)+IF(AND(30<D$18,D$18<=60),D47+(D$18-30)/30*D46,0)+IF(AND(60<D$18,D$18<=90),D47+D46+(D$18-60)/30*D45,0)+IF(AND(90<D$18,D$18<=120),D47+D46+D45+(D$18-90)/30*C59,0) -> 366030 | E86: =IF((E$18<=90),E48*(E$18)/90,0)+IF(AND(90<E$18,E$18<=120),E48+(E$18-90)/90*D60,0) -> 536000 | F86: =IF((F$18<=90),F48*(F$18)/90,0)+IF(AND(90<F$18,F$18<=120),F48+(F$18-90)/90*E60,0) -> 804000 | G86: =IF((G$18<=90),G48*(G$18)/90,0)+IF(AND(90<G$18,G$18<=120),G48+(G$18-90)/90*F60,0) -> 1340000
A87: Month 4 | C87: =IF(C$18<=30,C$18/30*C49,0)+IF(AND(30<C$18,C$18<=60),C49+(C$18-30)/30*C47,0)+IF(AND(60<C$18,C$18<=90),C49+C47+(C$18-60)/30*C46,0)+IF(AND(90<C$18,C$18<=120),C49+C47+C46+(C$18-90)/30*C45,0) -> 49800 | D87: =IF(D$18<=30,D$18/30*D49,0)+IF(AND(30<D$18,D$18<=60),D49+(D$18-30)/30*D47,0)+IF(AND(60<D$18,D$18<=90),D49+D47+(D$18-60)/30*D46,0)+IF(AND(90<D$18,D$18<=120),D49+D47+D46+(D$18-90)/30*D45,0) -> 313740
A88: Month 5 | C88: =IF(C$18<=30,C$18/30*C50,0)+IF(AND(30<C$18,C$18<=60),C50+(C$18-30)/30*C49,0)+IF(AND(60<C$18,C$18<=90),C50+C49+(C$18-60)/30*C47,0)+IF(AND(90<C$18,C$18<=120),C50+C49+C47+(C$18-90)/30*C46,0) -> 79680 | D88: =IF(D$18<=30,D$18/30*D50,0)+IF(AND(30<D$18,D$18<=60),D50+(D$18-30)/30*D49,0)+IF(AND(60<D$18,D$18<=90),D50+D49+(D$18-60)/30*D47,0)+IF(AND(90<D$18,D$18<=120),D50+D49+D47+(D$18-90)/30*D46,0) -> 366030
A89: Month 6 | C89: =IF(C$18<=30,C$18/30*C51,0)+IF(AND(30<C$18,C$18<=60),C51+(C$18-30)/30*C50,0)+IF(AND(60<C$18,C$18<=90),C51+C50+(C$18-60)/30*C49,0)+IF(AND(90<C$18,C$18<=120),C51+C50+C49+(C$18-90)/30*C47,0) -> 99600 | D89: =IF(D$18<=30,D$18/30*D51,0)+IF(AND(30<D$18,D$18<=60),D51+(D$18-30)/30*D50,0)+IF(AND(60<D$18,D$18<=90),D51+D50+(D$18-60)/30*D49,0)+IF(AND(90<D$18,D$18<=120),D51+D50+D49+(D$18-90)/30*D47,0) -> 366030 | E89: =IF((E$18<=90),E52*(E$18)/90,0)+IF(AND(90<E$18,E$18<=120),E52+(E$18-90)/90*E48,0) -> 670000 | F89: =IF((F$18<=90),F52*(F$18)/90,0)+IF(AND(90<F$18,F$18<=120),F48+(F$18-90)/90*E80,0) -> 1072000 | G89: =IF((G$18<=90),G52*(G$18)/90,0)+IF(AND(90<G$18,G$18<=120),G48+(G$18-90)/90*F80,0) -> 1608000
A90: Month 7 | C90: =IF(C$18<=30,C$18/30*C53,0)+IF(AND(30<C$18,C$18<=60),C53+(C$18-30)/30*C51,0)+IF(AND(60<C$18,C$18<=90),C53+C51+(C$18-60)/30*C50,0)+IF(AND(90<C$18,C$18<=120),C53+C51+C50+(C$18-90)/30*C49,0) -> 99600 | D90: =IF(D$18<=30,D$18/30*D53,0)+IF(AND(30<D$18,D$18<=60),D53+(D$18-30)/30*D51,0)+IF(AND(60<D$18,D$18<=90),D53+D51+(D$18-60)/30*D50,0)+IF(AND(90<D$18,D$18<=120),D53+D51+D50+(D$18-90)/30*D49,0) -> 418320
A91: Month 8 | C91: =IF(C$18<=30,C$18/30*C54,0)+IF(AND(30<C$18,C$18<=60),C54+(C$18-30)/30*C53,0)+IF(AND(60<C$18,C$18<=90),C54+C53+(C$18-60)/30*C51,0)+IF(AND(90<C$18,C$18<=120),C54+C53+C51+(C$18-90)/30*C50,0) -> 119520 | D91: =IF(D$18<=30,D$18/30*D54,0)+IF(AND(30<D$18,D$18<=60),D54+(D$18-30)/30*D53,0)+IF(AND(60<D$18,D$18<=90),D54+D53+(D$18-60)/30*D51,0)+IF(AND(90<D$18,D$18<=120),D54+D53+D51+(D$18-90)/30*D50,0) -> 522900
A92: Month 9 | C92: =IF(C$18<=30,C$18/30*C55,0)+IF(AND(30<C$18,C$18<=60),C55+(C$18-30)/30*C54,0)+IF(AND(60<C$18,C$18<=90),C55+C54+(C$18-60)/30*C53,0)+IF(AND(90<C$18,C$18<=120),C55+C54+C53+(C$18-90)/30*C51,0) -> 149400 | D92: =IF(D$18<=30,D$18/30*D55,0)+IF(AND(30<D$18,D$18<=60),D55+(D$18-30)/30*D54,0)+IF(AND(60<D$18,D$18<=90),D55+D54+(D$18-60)/30*D53,0)+IF(AND(90<D$18,D$18<=120),D55+D54+D53+(D$18-90)/30*D51,0) -> 522900 | E92: =IF((E$18<=90),E56*(E$18)/90,0)+IF(AND(90<E$18,E$18<=120),E56+(E$18-90)/90*E52,0) -> 670000 | F92: =IF((F$18<=90),F56*(F$18)/90,0)+IF(AND(90<F$18,F$18<=120),#REF!+(F$18-90)/90*F52,0) -> 1206000 | G92: =IF((G$18<=90),G56*(G$18)/90,0)+IF(AND(90<G$18,G$18<=120),#REF!+(G$18-90)/90*G52,0) -> 1876000
A93: Month 10 | C93: =IF(C$18<=30,C$18/30*C57,0)+IF(AND(30<C$18,C$18<=60),C57+(C$18-30)/30*C55,0)+IF(AND(60<C$18,C$18<=90),C57+C55+(C$18-60)/30*C54,0)+IF(AND(90<C$18,C$18<=120),C57+C55+C54+(C$18-90)/30*C53,0) -> 119520 | D93: =IF(D$18<=30,D$18/30*D57,0)+IF(AND(30<D$18,D$18<=60),D57+(D$18-30)/30*D55,0)+IF(AND(60<D$18,D$18<=90),D57+D55+(D$18-60)/30*D54,0)+IF(AND(90<D$18,D$18<=120),D57+D55+D54+(D$18-90)/30*D53,0) -> 575190
A94: Month 11 | C94: =IF(C$18<=30,C$18/30*C58,0)+IF(AND(30<C$18,C$18<=60),C58+(C$18-30)/30*C57,0)+IF(AND(60<C$18,C$18<=90),C58+C57+(C$18-60)/30*C55,0)+IF(AND(90<C$18,C$18<=120),C58+C57+C55+(C$18-90)/30*C54,0) -> 129480 | D94: =IF(D$18<=30,D$18/30*D58,0)+IF(AND(30<D$18,D$18<=60),D58+(D$18-30)/30*D57,0)+IF(AND(60<D$18,D$18<=90),D58+D57+(D$18-60)/30*D55,0)+IF(AND(90<D$18,D$18<=120),D58+D57+D55+(D$18-90)/30*D54,0) -> 627480
A95: Month 12 | C95: =IF(C$18<=30,C$18/30*C59,0)+IF(AND(30<C$18,C$18<=60),C59+(C$18-30)/30*C58,0)+IF(AND(60<C$18,C$18<=90),C59+C58+(C$18-60)/30*C57,0)+IF(AND(90<C$18,C$18<=120),C59+C58+C57+(C$18-90)/30*C55,0) -> 149400 | D95: =IF(D$18<=30,D$18/30*D59,0)+IF(AND(30<D$18,D$18<=60),D59+(D$18-30)/30*D58,0)+IF(AND(60<D$18,D$18<=90),D59+D58+(D$18-60)/30*D57,0)+IF(AND(90<D$18,D$18<=120),D59+D58+D57+(D$18-90)/30*D55,0) -> 627480 | E95: =IF((E$18<=90),E60*(E$18)/90,0)+IF(AND(90<E$18,E$18<=120),E60+(E$18-90)/90*E56,0) -> 737000 | F95: =IF((F$18<=90),F60*(F$18)/90,0)+IF(AND(90<F$18,F$18<=120),F60+(F$18-90)/90*F56,0) -> 1273000 | G95: =IF((G$18<=90),G60*(G$18)/90,0)+IF(AND(90<G$18,G$18<=120),G60+(G$18-90)/90*G56,0) -> 2144000
A98: Other Current Assets by Months & Quarters
D99: ($)
C100: Year 1 | D100: Year 2 | E100: Year 3 | F100: Year 4 | G100: Year 5
A101: Month 1 | C101: =IF(C$18<=30,C$18/30*C45,0)+IF(AND(30<C$18,C$18<=60),C45,0)+IF(AND(60<C$18,C$18<=90),C45,0)+IF(AND(90<C$18,C$18<=120),C45,0) -> 0 | D101: =IF(D$24<=30,D$24/30*D45,0)+IF(AND(30<D$24,D$24<=60),D45+(D$24-30)/30*C59,0)+IF(AND(60<D$24,D$24<=90),D45+C59+(D$24-60)/30*C58,0)+IF(AND(90<D$24,D$24<=120),D45+C59+C58+(D$24-90)/30*C57,0) -> 31500
A102: Month 2 | C102: =IF(C$18<=30,C$18/30*C46,0)+IF(AND(30<C$18,C$18<=60),C46+(C$18-30)/30*C45,0)+IF(AND(60<C$18,C$18<=90),C46+C45,0)+IF(AND(90<C$18,C$18<=120),C46+C45,0) -> 0 | D102: =IF(D$24<=30,D$24/30*D46,0)+IF(AND(30<D$24,D$24<=60),D46+(D$24-30)/30*D45,0)+IF(AND(60<D$24,D$24<=90),D46+D45+(D$24-60)/30*C59,0)+IF(AND(90<D$24,D$24<=120),D46+D45+C59+(D$24-90)/30*C58,0) -> 31500
A103: Month 3 | C103: =IF(C$18<=30,C$18/30*C47,0)+IF(AND(30<C$18,C$18<=60),C47+(C$18-30)/30*C46,0)+IF(AND(60<C$18,C$18<=90),C47+C46+(C$18-60)/30*C45,0)+IF(AND(90<C$18,C$18<=120),C47+C46+C45,0) -> 0 | D103: =IF(D$24<=30,D$24/30*D47,0)+IF(AND(30<D$24,D$24<=60),D47+(D$24-30)/30*D46,0)+IF(AND(60<D$24,D$24<=90),D47+D47+(D$24-60)/30*D45,0)+IF(AND(90<D$24,D$24<=120),D47+D46+D45+(D$24-90)/30*C59,0) -> 44100 | E103: =IF((E$24<=90),E48*(E$24)/90,0)+IF(AND(90<E$24,E$24<=120),E48+(E$24-90)/90*D60,0) -> 80000 | F103: =IF((F$24<=90),F48*(F$24)/90,0)+IF(AND(90<F$24,F$24<=120),F48+(F$24-90)/90*E60,0) -> 120000 | G103: =IF((G$24<=90),G48*(G$24)/90,0)+IF(AND(90<G$24,G$24<=120),G48+(G$24-90)/90*F60,0) -> 200000
A104: Month 4 | C104: =IF(C$24<=30,C$24/30*C49,0)+IF(AND(30<C$24,C$24<=60),C49+(C$24-30)/30*C47,0)+IF(AND(60<C$24,C$24<=90),C49+C47+(C$24-60)/30*C46,0)+IF(AND(90<C$24,C$24<=120),C49+C47+C46+(C$24-90)/30*C45,0) -> 6000 | D104: =IF(D$24<=30,D$24/30*D49,0)+IF(AND(30<D$24,D$24<=60),D49+(D$24-30)/30*D47,0)+IF(AND(60<D$24,D$24<=90),D49+D47+(D$24-60)/30*D46,0)+IF(AND(90<D$24,D$24<=120),D49+D47+D46+(D$24-90)/30*D45,0) -> 37800
A105: Month 5 | C105: =IF(C$24<=30,C$24/30*C50,0)+IF(AND(30<C$24,C$24<=60),C50+(C$24-30)/30*C49,0)+IF(AND(60<C$24,C$24<=90),C50+C49+(C$24-60)/30*C47,0)+IF(AND(90<C$24,C$24<=120),C50+C49+C47+(C$24-90)/30*C46,0) -> 9600 | D105: =IF(D$24<=30,D$24/30*D50,0)+IF(AND(30<D$24,D$24<=60),D50+(D$24-30)/30*D49,0)+IF(AND(60<D$24,D$24<=90),D50+D49+(D$24-60)/30*D47,0)+IF(AND(90<D$24,D$24<=120),D50+D49+D47+(D$24-90)/30*D46,0) -> 44100
A106: Month 6 | C106: =IF(C$24<=30,C$24/30*C51,0)+IF(AND(30<C$24,C$24<=60),C51+(C$24-30)/30*C50,0)+IF(AND(60<C$24,C$24<=90),C51+C50+(C$24-60)/30*C49,0)+IF(AND(90<C$24,C$24<=120),C51+C50+C49+(C$24-90)/30*C47,0) -> 12000 | D106: =IF(D$24<=30,D$24/30*D51,0)+IF(AND(30<D$24,D$24<=60),D51+(D$24-30)/30*D50,0)+IF(AND(60<D$24,D$24<=90),D51+D50+(D$24-60)/30*D49,0)+IF(AND(90<D$24,D$24<=120),D51+D50+D49+(D$24-90)/30*D47,0) -> 44100 | E106: =IF((E$24<=90),E52*(E$24)/90,0)+IF(AND(90<E$24,E$24<=120),E52+(E$24-90)/90*E48,0) -> 100000 | F106: =IF((F$24<=90),F52*(F$24)/90,0)+IF(AND(90<F$24,F$24<=120),F52+(F$24-90)/90*F48,0) -> 160000 | G106: =IF((G$24<=90),G52*(G$24)/90,0)+IF(AND(90<G$24,G$24<=120),G52+(G$24-90)/90*G48,0) -> 240000
A107: Month 7 | C107: =IF(C$24<=30,C$24/30*C53,0)+IF(AND(30<C$24,C$24<=60),C53+(C$24-30)/30*C51,0)+IF(AND(60<C$24,C$24<=90),C53+C51+(C$24-60)/30*C50,0)+IF(AND(90<C$24,C$24<=120),C53+C51+C50+(C$24-90)/30*C49,0) -> 12000 | D107: =IF(D$24<=30,D$24/30*D53,0)+IF(AND(30<D$24,D$24<=60),D53+(D$24-30)/30*D51,0)+IF(AND(60<D$24,D$24<=90),D53+D51+(D$24-60)/30*D50,0)+IF(AND(90<D$24,D$24<=120),D53+D51+D50+(D$24-90)/30*D49,0) -> 50400
A108: Month 8 | C108: =IF(C$24<=30,C$24/30*C54,0)+IF(AND(30<C$24,C$24<=60),C54+(C$24-30)/30*C53,0)+IF(AND(60<C$24,C$24<=90),C54+C53+(C$24-60)/30*C51,0)+IF(AND(90<C$24,C$24<=120),C54+C53+C51+(C$24-90)/30*C50,0) -> 14400 | D108: =IF(D$24<=30,D$24/30*D54,0)+IF(AND(30<D$24,D$24<=60),D54+(D$24-30)/30*D53,0)+IF(AND(60<D$24,D$24<=90),D54+D53+(D$24-60)/30*D51,0)+IF(AND(90<D$24,D$24<=120),D54+D53+D51+(D$24-90)/30*D50,0) -> 63000
A109: Month 9 | C109: =IF(C$24<=30,C$24/30*C55,0)+IF(AND(30<C$24,C$24<=60),C55+(C$24-30)/30*C54,0)+IF(AND(60<C$24,C$24<=90),C55+C54+(C$24-60)/30*C53,0)+IF(AND(90<C$24,C$24<=120),C55+C54+C53+(C$24-90)/30*C51,0) -> 18000 | D109: =IF(D$24<=30,D$24/30*D55,0)+IF(AND(30<D$24,D$24<=60),D55+(D$24-30)/30*D54,0)+IF(AND(60<D$24,D$24<=90),D55+D54+(D$24-60)/30*D53,0)+IF(AND(90<D$24,D$24<=120),D55+D54+D53+(D$24-90)/30*D51,0) -> 63000 | E109: =IF((E$24<=90),E56*(E$24)/90,0)+IF(AND(90<E$24,E$24<=120),E56+(E$24-90)/90*E52,0) -> 100000 | F109: =IF((F$24<=90),F56*(F$24)/90,0)+IF(AND(90<F$24,F$24<=120),F56+(F$24-90)/90*F52,0) -> 180000 | G109: =IF((G$24<=90),G56*(G$24)/90,0)+IF(AND(90<G$24,G$24<=120),G56+(G$24-90)/90*G52,0) -> 280000
A110: Month 10 | C110: =IF(C$24<=30,C$24/30*C57,0)+IF(AND(30<C$24,C$24<=60),C57+(C$24-30)/30*C55,0)+IF(AND(60<C$24,C$24<=90),C57+C55+(C$24-60)/30*C54,0)+IF(AND(90<C$24,C$24<=120),C57+C55+C54+(C$24-90)/30*C53,0) -> 14400 | D110: =IF(D$24<=30,D$24/30*D57,0)+IF(AND(30<D$24,D$24<=60),D57+(D$24-30)/30*D55,0)+IF(AND(60<D$24,D$24<=90),D57+D55+(D$24-60)/30*D54,0)+IF(AND(90<D$24,D$24<=120),D57+D55+D54+(D$24-90)/30*D53,0) -> 69300
A111: Month 11 | C111: =IF(C$24<=30,C$24/30*C58,0)+IF(AND(30<C$24,C$24<=60),C58+(C$24-30)/30*C57,0)+IF(AND(60<C$24,C$24<=90),C58+C57+(C$24-60)/30*C55,0)+IF(AND(90<C$24,C$24<=120),C58+C57+C55+(C$24-90)/30*C54,0) -> 15600 | D111: =IF(D$24<=30,D$24/30*D58,0)+IF(AND(30<D$24,D$24<=60),D58+(D$24-30)/30*D57,0)+IF(AND(60<D$24,D$24<=90),D58+D57+(D$24-60)/30*D55,0)+IF(AND(90<D$24,D$24<=120),D58+D57+D55+(D$24-90)/30*D54,0) -> 75600
A112: Month 12 | C112: =IF(C$24<=30,C$24/30*C59,0)+IF(AND(30<C$24,C$24<=60),C59+(C$24-30)/30*C58,0)+IF(AND(60<C$24,C$24<=90),C59+C58+(C$24-60)/30*C57,0)+IF(AND(90<C$24,C$24<=120),C59+C58+C57+(C$24-90)/30*C55,0) -> 18000 | D112: =IF(D$24<=30,D$24/30*D59,0)+IF(AND(30<D$24,D$24<=60),D59+(D$24-30)/30*D58,0)+IF(AND(60<D$24,D$24<=90),D59+D58+(D$24-60)/30*D57,0)+IF(AND(90<D$24,D$24<=120),D59+D58+D57+(D$24-90)/30*D55,0) -> 75600 | E112: =IF((E$24<=90),E60*(E$24)/90,0)+IF(AND(90<E$24,E$24<=120),E60+(E$24-90)/90*E56,0) -> 110000 | F112: =IF((F$24<=90),F60*(F$24)/90,0)+IF(AND(90<F$24,F$24<=120),F60+(F$24-90)/90*F56,0) -> 190000 | G112: =IF((G$24<=90),G60*(G$24)/90,0)+IF(AND(90<G$24,G$24<=120),G60+(G$24-90)/90*G56,0) -> 320000
A115: Accounts Payble & Accrued Expenses by Months & Quarters
D116: ($)
C117: Year 1 | D117: Year 2 | E117: Year 3 | F117: Year 4 | G117: Year 5
A118: Month 1 | C118: =IF(C$30<=30,C$30/30*C28,0)+IF(AND(30<C$30,C$30<=60),C28,0)+IF(AND(60<C$30,C$30<=90),C28,0)+IF(AND(90<C$30,C$30<=120),C28,0) -> 0 | D118: =IF(D$30<=30,D$30/30*D28,0)+IF(AND(30<D$30,D$30<=60),D28+(D$30-30)/30*C59,0)+IF(AND(60<D$30,D$30<=90),D28+C42+(D$30-60)/30*C58,0)+IF(AND(90<D$30,D$30<=120),D28+C42+C41+(D$30-90)/30*C57,0) -> 6600
A119: Month 2 | C119: =IF(C$30<=30,C$30/30*C29,0)+IF(AND(30<C$30,C$30<=60),C29+(C$30-30)/30*C28,0)+IF(AND(60<C$30,C$30<=90),C29+C28,0)+IF(AND(90<C$30,C$30<=120),C29+C28,0) -> 0.087 | D119: =IF(D$30<=30,D$30/30*D29,0)+IF(AND(30<D$30,D$30<=60),D29+(D$30-30)/30*D28,0)+IF(AND(60<D$30,D$30<=90),D29+D28+(D$30-60)/30*C42,0)+IF(AND(90<D$30,D$30<=120),D29+D28+C42+(D$30-90)/30*C41,0) -> 0.087
A120: Month 3 | C120: =IF(C$30<=30,C$30/30*C30,0)+IF(AND(30<C$30,C$30<=60),C30+(C$30-30)/30*C29,0)+IF(AND(60<C$30,C$30<=90),C30+C29+(C$30-60)/30*C28,0)+IF(AND(90<C$30,C$30<=120),C30+C29+C28,0) -> 31.323828 | D120: =IF(D$30<=30,D$30/30*D30,0)+IF(AND(30<D$30,D$30<=60),D30+(D$30-30)/30*D29,0)+IF(AND(60<D$30,D$30<=90),D30+D29+(D$30-60)/30*D28,0)+IF(AND(90<D$30,D$30<=120),D30+D29+D28+(D$30-90)/30*C42,0) -> 31.323828 | E120: =IF((E$30<=90),E48*(E$30)/90,0)+IF(AND(90<E$30,E$30<=120),E48+(E$30-90)/90*D60,0) -> 696000 | F120: =IF((F$30<=90),F48*(F$30)/90,0)+IF(AND(90<F$30,F$30<=120),F48+(F$30-90)/90*E60,0) -> 1044000 | G120: =IF((G$30<=90),G48*(G$30)/90,0)+IF(AND(90<G$30,G$30<=120),G48+(G$30-90)/90*F60,0) -> 1740000
A121: Month 4 | C121: =IF(C$30<=30,C$30/30*C49,0)+IF(AND(30<C$30,C$30<=60),C49+(C$30-30)/30*C47,0)+IF(AND(60<C$30,C$30<=90),C49+C47+(C$30-60)/30*C46,0)+IF(AND(90<C$30,C$30<=120),C49+C47+C46+(C$30-90)/30*C45,0) -> 50000 | D121: =IF(D$30<=30,D$30/30*D49,0)+IF(AND(30<D$30,D$30<=60),D49+(D$30-30)/30*D47,0)+IF(AND(60<D$30,D$30<=90),D49+D47+(D$30-60)/30*D46,0)+IF(AND(90<D$30,D$30<=120),D49+D47+D46+(D$30-90)/30*D45,0) -> 331170
A122: Month 5 | C122: =IF(C$30<=30,C$30/30*C50,0)+IF(AND(30<C$30,C$30<=60),C50+(C$30-30)/30*C49,0)+IF(AND(60<C$30,C$30<=90),C50+C49+(C$30-60)/30*C47,0)+IF(AND(90<C$30,C$30<=120),C50+C49+C47+(C$30-90)/30*C46,0) -> 82200 | D122: =IF(D$30<=30,D$30/30*D50,0)+IF(AND(30<D$30,D$30<=60),D50+(D$30-30)/30*D49,0)+IF(AND(60<D$30,D$30<=90),D50+D49+(D$30-60)/30*D47,0)+IF(AND(90<D$30,D$30<=120),D50+D49+D47+(D$30-90)/30*D46,0) -> 381360
A123: Month 6 | C123: =IF(C$30<=30,C$30/30*C51,0)+IF(AND(30<C$30,C$30<=60),C51+(C$30-30)/30*C50,0)+IF(AND(60<C$30,C$30<=90),C51+C50+(C$30-60)/30*C49,0)+IF(AND(90<C$30,C$30<=120),C51+C50+C49+(C$30-90)/30*C47,0) -> 103520 | D123: =IF(D$30<=30,D$30/30*D51,0)+IF(AND(30<D$30,D$30<=60),D51+(D$30-30)/30*D50,0)+IF(AND(60<D$30,D$30<=90),D51+D50+(D$30-60)/30*D49,0)+IF(AND(90<D$30,D$30<=120),D51+D50+D49+(D$30-90)/30*D47,0) -> 383670 | E123: =IF((E$30<=90),E52*(E$30)/90,0)+IF(AND(90<E$30,E$30<=120),E52+(E$30-90)/90*E48,0) -> 870000 | F123: =IF((F$30<=90),F52*(F$30)/90,0)+IF(AND(90<F$30,F$30<=120),F52+(F$30-90)/90*F48,0) -> 1392000 | G123: =IF((G$30<=90),G52*(G$30)/90,0)+IF(AND(90<G$30,G$30<=120),G52+(G$30-90)/90*G48,0) -> 2088000
A124: Month 7 | C124: =IF(C$30<=30,C$30/30*C53,0)+IF(AND(30<C$30,C$30<=60),C53+(C$30-30)/30*C51,0)+IF(AND(60<C$30,C$30<=90),C53+C51+(C$30-60)/30*C50,0)+IF(AND(90<C$30,C$30<=120),C53+C51+C50+(C$30-90)/30*C49,0) -> 104400 | D124: =IF(D$30<=30,D$30/30*D53,0)+IF(AND(30<D$30,D$30<=60),D53+(D$30-30)/30*D51,0)+IF(AND(60<D$30,D$30<=90),D53+D51+(D$30-60)/30*D50,0)+IF(AND(90<D$30,D$30<=120),D53+D51+D50+(D$30-90)/30*D49,0) -> 436170
A125: Month 8 | C125: =IF(C$30<=30,C$30/30*C54,0)+IF(AND(30<C$30,C$30<=60),C54+(C$30-30)/30*C53,0)+IF(AND(60<C$30,C$30<=90),C54+C53+(C$30-60)/30*C51,0)+IF(AND(90<C$30,C$30<=120),C54+C53+C51+(C$30-90)/30*C50,0) -> 124400 | D125: =IF(D$30<=30,D$30/30*D54,0)+IF(AND(30<D$30,D$30<=60),D54+(D$30-30)/30*D53,0)+IF(AND(60<D$30,D$30<=90),D54+D53+(D$30-60)/30*D51,0)+IF(AND(90<D$30,D$30<=120),D54+D53+D51+(D$30-90)/30*D50,0) -> 543480
A126: Month 9 | C126: =IF(C$30<=30,C$30/30*C55,0)+IF(AND(30<C$30,C$30<=60),C55+(C$30-30)/30*C54,0)+IF(AND(60<C$30,C$30<=90),C55+C54+(C$30-60)/30*C53,0)+IF(AND(90<C$30,C$30<=120),C55+C54+C53+(C$30-90)/30*C51,0) -> 155280 | D126: =IF(D$30<=30,D$30/30*D55,0)+IF(AND(30<D$30,D$30<=60),D55+(D$30-30)/30*D54,0)+IF(AND(60<D$30,D$30<=90),D55+D54+(D$30-60)/30*D53,0)+IF(AND(90<D$30,D$30<=120),D55+D54+D53+(D$30-90)/30*D51,0) -> 548100 | E126: =IF((E$30<=90),E56*(E$30)/90,0)+IF(AND(90<E$30,E$30<=120),E56+(E$30-90)/90*E52,0) -> 870000 | F126: =IF((F$30<=90),F56*(F$30)/90,0)+IF(AND(90<F$30,F$30<=120),F56+(F$30-90)/90*F52,0) -> 1566000 | G126: =IF((G$30<=90),G56*(G$30)/90,0)+IF(AND(90<G$30,G$30<=120),G56+(G$30-90)/90*G52,0) -> 2436000
A127: Month 10 | C127: =IF(C$30<=30,C$30/30*C57,0)+IF(AND(30<C$30,C$30<=60),C57+(C$30-30)/30*C55,0)+IF(AND(60<C$30,C$30<=90),C57+C55+(C$30-60)/30*C54,0)+IF(AND(90<C$30,C$30<=120),C57+C55+C54+(C$30-90)/30*C53,0) -> 126600 | D127: =IF(D$30<=30,D$30/30*D57,0)+IF(AND(30<D$30,D$30<=60),D57+(D$30-30)/30*D55,0)+IF(AND(60<D$30,D$30<=90),D57+D55+(D$30-60)/30*D54,0)+IF(AND(90<D$30,D$30<=120),D57+D55+D54+(D$30-90)/30*D53,0) -> 600600
A128: Month 11 | C128: =IF(C$30<=30,C$30/30*C58,0)+IF(AND(30<C$30,C$30<=60),C58+(C$30-30)/30*C57,0)+IF(AND(60<C$30,C$30<=90),C58+C57+(C$30-60)/30*C55,0)+IF(AND(90<C$30,C$30<=120),C58+C57+C55+(C$30-90)/30*C54,0) -> 135280 | D128: =IF(D$30<=30,D$30/30*D58,0)+IF(AND(30<D$30,D$30<=60),D58+(D$30-30)/30*D57,0)+IF(AND(60<D$30,D$30<=90),D58+D57+(D$30-60)/30*D55,0)+IF(AND(90<D$30,D$30<=120),D58+D57+D55+(D$30-90)/30*D54,0) -> 655410
A129: Month 12 | C129: =IF(C$30<=30,C$30/30*C59,0)+IF(AND(30<C$30,C$30<=60),C59+(C$30-30)/30*C58,0)+IF(AND(60<C$30,C$30<=90),C59+C58+(C$30-60)/30*C57,0)+IF(AND(90<C$30,C$30<=120),C59+C58+C57+(C$30-90)/30*C55,0) -> 155720 | D129: =IF(D$30<=30,D$30/30*D59,0)+IF(AND(30<D$30,D$30<=60),D59+(D$30-30)/30*D58,0)+IF(AND(60<D$30,D$30<=90),D59+D58+(D$30-60)/30*D57,0)+IF(AND(90<D$30,D$30<=120),D59+D58+D57+(D$30-90)/30*D55,0) -> 657720 | E129: =IF((E$30<=90),E60*(E$30)/90,0)+IF(AND(90<E$30,E$30<=120),E60+(E$30-90)/90*E56,0) -> 957000 | F129: =IF((F$30<=90),F60*(F$30)/90,0)+IF(AND(90<F$30,F$30<=120),F60+(F$30-90)/90*F56,0) -> 1653000 | G129: =IF((G$30<=90),G60*(G$30)/90,0)+IF(AND(90<G$30,G$30<=120),G60+(G$30-90)/90*G56,0) -> 2784000
A132: Other Current Liabilities by Months & Quarters
D133: ($)
C134: Year 1 | D134: Year 2 | E134: Year 3 | F134: Year 4 | G134: Year 5
A135: Month 1 | C135: =IF(C$36<=30,C$36/30*C45,0)+IF(AND(30<C$36,C$36<=60),C45,0)+IF(AND(60<C$36,C$36<=90),C45,0)+IF(AND(90<C$36,C$36<=120),C45,0) -> 0 | D135: =IF(D$36<=30,D$36/30*D45,0)+IF(AND(30<D$36,D$36<=60),D45+(D$36-30)/30*C59,0)+IF(AND(60<D$36,D$36<=90),D45+C59+(D$36-60)/30*C58,0)+IF(AND(90<D$36,D$36<=120),D45+C59+C58+(D$36-90)/30*C57,0) -> 31500
A136: Month 2 | C136: =IF(C$36<=30,C$36/30*C46,0)+IF(AND(30<C$36,C$36<=60),C46+(C$36-30)/30*C45,0)+IF(AND(60<C$36,C$36<=90),C46+C45,0)+IF(AND(90<C$36,C$36<=120),C46+C45,0) -> 0 | D136: =IF(D$36<=30,D$36/30*D46,0)+IF(AND(30<D$36,D$36<=60),D46+(D$36-30)/30*D45,0)+IF(AND(60<D$36,D$36<=90),D46+D45+(D$36-60)/30*C59,0)+IF(AND(90<D$36,D$36<=120),D46+D45+C59+(D$36-90)/30*C58,0) -> 31500
A137: Month 3 | C137: =IF(C$36<=30,C$36/30*C47,0)+IF(AND(30<C$36,C$36<=60),C47+(C$36-30)/30*C46,0)+IF(AND(60<C$36,C$36<=90),C47+C46+(C$36-60)/30*C45,0)+IF(AND(90<C$36,C$36<=120),C47+C46+C45,0) -> 0 | D137: =IF(D$36<=30,D$36/30*D47,0)+IF(AND(30<D$36,D$36<=60),D47+(D$36-30)/30*D46,0)+IF(AND(60<D$36,D$36<=90),D47+D46+(D$36-60)/30*D45,0)+IF(AND(90<D$36,D$36<=120),D47+D46+D45+(D$36-90)/30*C59,0) -> 44100 | E137: =IF((E$36<=90),E48*(E$36)/90,0)+IF(AND(90<E$36,E$36<=120),E48+(E$36-90)/90*D60,0) -> 80000 | F137: =IF((F$36<=90),F48*(F$36)/90,0)+IF(AND(90<F$36,F$36<=120),F48+(F$36-90)/90*E60,0) -> 120000 | G137: =IF((G$36<=90),G48*(G$36)/90,0)+IF(AND(90<G$36,G$36<=120),G48+(G$36-90)/90*F60,0) -> 200000
A138: Month 4 | C138: =IF(C$36<=30,C$36/30*C49,0)+IF(AND(30<C$36,C$36<=60),C49+(C$36-30)/30*C47,0)+IF(AND(60<C$36,C$36<=90),C49+C47+(C$36-60)/30*C46,0)+IF(AND(90<C$36,C$36<=120),C49+C47+C46+(C$36-90)/30*C45,0) -> 6000 | D138: =IF(D$36<=30,D$36/30*D49,0)+IF(AND(30<D$36,D$36<=60),D49+(D$36-30)/30*D47,0)+IF(AND(60<D$36,D$36<=90),D49+D47+(D$36-60)/30*D46,0)+IF(AND(90<D$36,D$36<=120),D49+D47+D46+(D$36-90)/30*D45,0) -> 37800
A139: Month 5 | C139: =IF(C$36<=30,C$36/30*C50,0)+IF(AND(30<C$36,C$36<=60),C50+(C$36-30)/30*C49,0)+IF(AND(60<C$36,C$36<=90),C50+C49+(C$36-60)/30*C47,0)+IF(AND(90<C$36,C$36<=120),C50+C49+C47+(C$36-90)/30*C46,0) -> 9600 | D139: =IF(D$36<=30,D$36/30*D50,0)+IF(AND(30<D$36,D$36<=60),D50+(D$36-30)/30*D49,0)+IF(AND(60<D$36,D$36<=90),D50+D49+(D$36-60)/30*D47,0)+IF(AND(90<D$36,D$36<=120),D50+D49+D47+(D$36-90)/30*D46,0) -> 44100
A140: Month 6 | C140: =IF(C$36<=30,C$36/30*C51,0)+IF(AND(30<C$36,C$36<=60),C51+(C$36-30)/30*C50,0)+IF(AND(60<C$36,C$36<=90),C51+C50+(C$36-60)/30*C49,0)+IF(AND(90<C$36,C$36<=120),C51+C50+C49+(C$36-90)/30*C47,0) -> 12000 | D140: =IF(D$36<=30,D$36/30*D51,0)+IF(AND(30<D$36,D$36<=60),D51+(D$36-30)/30*D50,0)+IF(AND(60<D$36,D$36<=90),D51+D50+(D$36-60)/30*D49,0)+IF(AND(90<D$36,D$36<=120),D51+D50+D49+(D$36-90)/30*D47,0) -> 44100 | E140: =IF((E$36<=90),E52*(E$36)/90,0)+IF(AND(90<E$36,E$36<=120),E52+(E$36-90)/90*E48,0) -> 100000 | F140: =IF((F$36<=90),F52*(F$36)/90,0)+IF(AND(90<F$36,F$36<=120),F52+(F$36-90)/90*F48,0) -> 160000 | G140: =IF((G$36<=90),G52*(G$36)/90,0)+IF(AND(90<G$36,G$36<=120),G52+(G$36-90)/90*G48,0) -> 240000
A141: Month 7 | C141: =IF(C$36<=30,C$36/30*C53,0)+IF(AND(30<C$36,C$36<=60),C53+(C$36-30)/30*C51,0)+IF(AND(60<C$36,C$36<=90),C53+C51+(C$36-60)/30*C50,0)+IF(AND(90<C$36,C$36<=120),C53+C51+C50+(C$36-90)/30*C49,0) -> 12000 | D141: =IF(D$36<=30,D$36/30*D53,0)+IF(AND(30<D$36,D$36<=60),D53+(D$36-30)/30*D51,0)+IF(AND(60<D$36,D$36<=90),D53+D51+(D$36-60)/30*D50,0)+IF(AND(90<D$36,D$36<=120),D53+D51+D50+(D$36-90)/30*D49,0) -> 50400
A142: Month 8 | C142: =IF(C$36<=30,C$36/30*C54,0)+IF(AND(30<C$36,C$36<=60),C54+(C$36-30)/30*C53,0)+IF(AND(60<C$36,C$36<=90),C54+C53+(C$36-60)/30*C51,0)+IF(AND(90<C$36,C$36<=120),C54+C53+C51+(C$36-90)/30*C50,0) -> 14400 | D142: =IF(D$36<=30,D$36/30*D54,0)+IF(AND(30<D$36,D$36<=60),D54+(D$36-30)/30*D53,0)+IF(AND(60<D$36,D$36<=90),D54+D53+(D$36-60)/30*D51,0)+IF(AND(90<D$36,D$36<=120),D54+D53+D51+(D$36-90)/30*D50,0) -> 63000
A143: Month 9 | C143: =IF(C$36<=30,C$36/30*C55,0)+IF(AND(30<C$36,C$36<=60),C55+(C$36-30)/30*C54,0)+IF(AND(60<C$36,C$36<=90),C55+C54+(C$36-60)/30*C53,0)+IF(AND(90<C$36,C$36<=120),C55+C54+C53+(C$36-90)/30*C51,0) -> 18000 | D143: =IF(D$36<=30,D$36/30*D55,0)+IF(AND(30<D$36,D$36<=60),D55+(D$36-30)/30*D54,0)+IF(AND(60<D$36,D$36<=90),D55+D54+(D$36-60)/30*D53,0)+IF(AND(90<D$36,D$36<=120),D55+D54+D53+(D$36-90)/30*D51,0) -> 63000 | E143: =IF((E$36<=90),E56*(E$36)/90,0)+IF(AND(90<E$36,E$36<=120),E56+(E$36-90)/90*E52,0) -> 100000 | F143: =IF((F$36<=90),F56*(F$36)/90,0)+IF(AND(90<F$36,F$36<=120),F56+(F$36-90)/90*F52,0) -> 180000 | G143: =IF((G$36<=90),G56*(G$36)/90,0)+IF(AND(90<G$36,G$36<=120),G56+(G$36-90)/90*G52,0) -> 280000
A144: Month 10 | C144: =IF(C$36<=30,C$36/30*C57,0)+IF(AND(30<C$36,C$36<=60),C57+(C$36-30)/30*C55,0)+IF(AND(60<C$36,C$36<=90),C57+C55+(C$36-60)/30*C54,0)+IF(AND(90<C$36,C$36<=120),C57+C55+C54+(C$36-90)/30*C53,0) -> 14400 | D144: =IF(D$36<=30,D$36/30*D57,0)+IF(AND(30<D$36,D$36<=60),D57+(D$36-30)/30*D55,0)+IF(AND(60<D$36,D$36<=90),D57+D55+(D$36-60)/30*D54,0)+IF(AND(90<D$36,D$36<=120),D57+D55+D54+(D$36-90)/30*D53,0) -> 69300
A145: Month 11 | C145: =IF(C$36<=30,C$36/30*C58,0)+IF(AND(30<C$36,C$36<=60),C58+(C$36-30)/30*C57,0)+IF(AND(60<C$36,C$36<=90),C58+C57+(C$36-60)/30*C55,0)+IF(AND(90<C$36,C$36<=120),C58+C57+C55+(C$36-90)/30*C54,0) -> 15600 | D145: =IF(D$36<=30,D$36/30*D58,0)+IF(AND(30<D$36,D$36<=60),D58+(D$36-30)/30*D57,0)+IF(AND(60<D$36,D$36<=90),D58+D57+(D$36-60)/30*D55,0)+IF(AND(90<D$36,D$36<=120),D58+D57+D55+(D$36-90)/30*D54,0) -> 75600
A146: Month 12 | C146: =IF(C$36<=30,C$36/30*C59,0)+IF(AND(30<C$36,C$36<=60),C59+(C$36-30)/30*C58,0)+IF(AND(60<C$36,C$36<=90),C59+C58+(C$36-60)/30*C57,0)+IF(AND(90<C$36,C$36<=120),C59+C58+C57+(C$36-90)/30*C55,0) -> 18000 | D146: =IF(D$36<=30,D$36/30*D59,0)+IF(AND(30<D$36,D$36<=60),D59+(D$36-30)/30*D58,0)+IF(AND(60<D$36,D$36<=90),D59+D58+(D$36-60)/30*D57,0)+IF(AND(90<D$36,D$36<=120),D59+D58+D57+(D$36-90)/30*D55,0) -> 75600 | E146: =IF((E$36<=90),E60*(E$36)/90,0)+IF(AND(90<E$36,E$36<=120),E60+(E$36-90)/90*E56,0) -> 110000 | F146: =IF((F$36<=90),F60*(F$36)/90,0)+IF(AND(90<F$36,F$36<=120),F60+(F$36-90)/90*F56,0) -> 190000 | G146: =IF((G$36<=90),G60*(G$36)/90,0)+IF(AND(90<G$36,G$36<=120),G60+(G$36-90)/90*G56,0) -> 320000

Sheet FUNDING
A1: =COMPS!A1 -> XYZ Company | H1: Notes
A2: Funding Projections
A3: Years 1 to 5
A4: ($)
B5: Begin | C5: Year 1 | D5: Year 2 | E5: Year 3 | F5: Year 4 | G5: Year 5
A6: Beginning Cash | B6: 1500000
A7: Equity
A8: Common | B8: 500000 | C8: 500000 | D8: 500000 | E8: 500000 | F8: 500000 | G8: 500000
A9: Increase / (Decrease) Previous Period | C9: =C8-B8 -> 0 | D9: =D8-C8 -> 0 | E9: =E8-D8 -> 0 | F9: =F8-E8 -> 0 | G9: =G8-F8 -> 0
A10: Preferred
A11: A Round | B11: 1000000 | C11: 1000000 | D11: 1000000 | E11: 1000000 | F11: 1000000 | G11: 1000000
A12: B Round | D12: 500000 | E12: 500000 | F12: 500000 | G12: 500000
A13: Total Preferred | B13: =SUM(B11:B12) -> 1000000 | C13: 1000000 | D13: 1500000 | E13: 1500000 | F13: 1500000 | G13: 1500000
A14: Increase / (Decrease) Previous Period | C14: =C13-B13 -> 0 | D14: =D13-C13 -> 500000 | E14: =E13-D13 -> 0 | F14: =F13-E13 -> 0 | G14: =G13-F13 -> 0
A15: Total Equity | B15: =B8+B13 -> 1500000 | C15: 1500000 | D15: 2000000 | E15: 2000000 | F15: 2000000 | G15: 2000000
A17: Debt
A18: Short Term Debt | F18: 100000
A19: Increase / (Decrease) Previous Period | C19: =C18-B18 -> 0 | D19: =D18-C18 -> 0 | E19: =E18-D18 -> 0 | F19: =F18-E18 -> 100000 | G19: =G18-F18 -> -100000
A21: Long Term Debt
A22: Current Portion | D22: 100000 | E22: 100000 | F22: 100000 | G22: 100000
A23: Long Term Portion | D23: 400000 | E23: 300000 | F23: 200000 | G23: 100000
A24: Total Long Term Debt | C24: =C22+C23 -> 0 | D24: =D22+D23 -> 500000 | E24: =E22+E23 -> 400000 | F24: =F22+F23 -> 300000 | G24: =G22+G23 -> 200000
A26: Increase / (Decrease) Previous Period
A27: Current Portion | C27: =C22-B22 -> 0 | D27: 100000 | E27: 0 | F27: 0 | G27: 0
A28: Long Term Protion | C28: 0 | D28: 400000 | E28: -100000 | F28: -100000 | G28: -100000
A29: Total Long Term Debt | C29: =SUM(C27:C28) -> 0 | D29: =SUM(D27:D28) -> 500000 | E29: =SUM(E27:E28) -> -100000 | F29: =SUM(F27:F28) -> -100000 | G29: =SUM(G27:G28) -> -100000
A31: Total Equity & Debt | B31: =B15+B18+B24 -> 1500000 | C31: 1500000 | D31: 2500000 | E31: 2400000 | F31: 2400000 | G31: 2200000
A33: Interest
A34: Interest Rate
A35: Short Term Debt | C35: 0.09 | D35: 0.09 | E35: 0.09 | F35: 0.09 | G35: 0.09
A36: Long Term Debt | C36: 0.12 | D36: 0.12 | E36: 0.12 | F36: 0.12 | G36: 0.12
A38: Interest Expense
A39: Short Term Debt | C39: =C35*C18 -> 0 | D39: =D35*D18 -> 0 | E39: =E35*E18 -> 0 | F39: =F35*F18 -> 9000 | G39: =G35*G18 -> 0
A40: Long Term Debt | C40: =C36*C24 -> 0 | D40: =D36*D24 -> 60000 | E40: =E36*E24 -> 48000 | F40: =F36*F24 -> 36000 | G40: =G36*G24 -> 24000
A41: Total Interest | C41: =SUM(C39:C40) -> 0 | D41: =SUM(D39:D40) -> 60000 | E41: =SUM(E39:E40) -> 48000 | F41: =SUM(F39:F40) -> 45000 | G41: =SUM(G39:G40) -> 24000
A43: Interest Income
A44: Interest Rate | C44: 0.04 | D44: 0.04 | E44: 0.04 | F44: 0.04 | G44: 0.04
A45: Interest Income | C45: 0 | D45: 0 | E45: 0 | F45: 0 | G45: 10000
A47: Retained Earnings
A48: Net Income | C48: =INCOME!C34 -> -712131.1024 | D48: =INCOME!D34 -> -218064.2857 | E48: =INCOME!E34 -> 704514.7619 | F48: =INCOME!F34 -> 1002740.822 | G48: =INCOME!G34 -> 2252034.286
A49: Dividends | G49: 50000
A50: Increase / (Decrease) Retained Earnings | C50: =C48-C49 -> -712131.1024 | D50: =D48-D49 -> -218064.2857 | E50: =E48-E49 -> 704514.7619 | F50: =F48-F49 -> 1002740.822 | G50: =G48-G49 -> 2202034.286
A51: Beginning Retained Earnings | C51: 0 | D51: =C52 -> -712131.1024 | E51: =D52 -> -930195.3881 | F51: =E52 -> -225680.6262 | G51: =F52 -> 777060.1957
A52: Ending Retained Earnings | C52: =C50+C51 -> -712131.1024 | D52: =D50+D51 -> -930195.3881 | E52: =E50+E51 -> -225680.6262 | F52: =F50+F51 -> 777060.1957 | G52: =G50+G51 -> 2979094.481

Sheet INCOME
A1: =COMPS!A1 -> XYZ Company
A2: Income Statement
A3: Years 1 to 5
A4: ($)
C5: Year 1 | D5: Year 2 | E5: Year 3 | F5: Year 4 | G5: Year 5
A7: NET REVENUES | C7: =REVENUE!C16 -> 1000000 | D7: =REVENUE!D16 -> 5250000 | E7: =REVENUE!E16 -> 9750000 | F7: =REVENUE!F16 -> 16250000 | G7: =REVENUE!G16 -> 26000000
A9: COST OF REVENUE | C9: ='COST OF REV'!C32 -> 1117464.286 | D9: ='COST OF REV'!D32 -> 3532164.286 | E9: ='COST OF REV'!E32 -> 5699428.571 | F9: ='COST OF REV'!F32 -> 9339285.714 | G9: ='COST OF REV'!G32 -> 14033142.86
A10: % of Revenues | C10: =C9/C7 -> 1.117464286 | D10: =D9/D7 -> 0.6727931973 | E10: =E9/E7 -> 0.5845567766 | F10: =F9/F7 -> 0.5747252747 | G10: =G9/G7 -> 0.5397362637
A12: GROSS PROFIT | C12: =C7-C9 -> -117464.2857 | D12: =D7-D9 -> 1717835.714 | E12: =E7-E9 -> 4050571.429 | F12: =F7-F9 -> 6910714.286 | G12: =G7-G9 -> 11966857.14
A13: % of Revenues | C13: =C12/C7 -> -0.1174642857 | D13: =D12/D7 -> 0.3272068027 | E13: =E12/E7 -> 0.4154432234 | F13: =F12/F7 -> 0.4252747253 | G13: =G12/G7 -> 0.4602637363
A15: OPERATING EXPENSES
A16: Sales & Marketing | C16: ='OPER EXP'!C16 -> 229000 | D16: ='OPER EXP'!D16 -> 997750 | E16: ='OPER EXP'!E16 -> 1805400 | F16: ='OPER EXP'!F16 -> 2911500 | G16: ='OPER EXP'!G16 -> 4676000
A17: Research & Development | C17: ='OPER EXP'!C25 -> 149000 | D17: ='OPER EXP'!D25 -> 413000 | E17: ='OPER EXP'!E25 -> 702550 | F17: ='OPER EXP'!F25 -> 1241500 | G17: ='OPER EXP'!G25 -> 1752000
A18: General and Administration | C18: ='OPER EXP'!C38 -> 171666.8167 | D18: ='OPER EXP'!D38 -> 465150 | E18: ='OPER EXP'!E38 -> 790106.6667 | F18: ='OPER EXP'!F38 -> 1191933.333 | G18: ='OPER EXP'!G38 -> 1771466.667
A19: Total Operating Expenses | C19: ='OPER EXP'!C41 -> 549666.8167 | D19: ='OPER EXP'!D41 -> 1875900 | E19: ='OPER EXP'!E41 -> 3298056.667 | F19: ='OPER EXP'!F41 -> 5344933.333 | G19: ='OPER EXP'!G41 -> 8199466.667
A20: % of Revenues | C20: ='OPER EXP'!C42 -> 0.5496668167 | D20: ='OPER EXP'!D42 -> 0.3573142857 | E20: ='OPER EXP'!E42 -> 0.3382622222 | F20: ='OPER EXP'!F42 -> 0.3289189744 | G20: ='OPER EXP'!G42 -> 0.3153641026
A22: EARNINGS FROM OPERATIONS | C22: =C12-C19 -> -667131.1024 | D22: =D12-D19 -> -158064.2857 | E22: =E12-E19 -> 752514.7619 | F22: =F12-F19 -> 1565780.952 | G22: =G12-G19 -> 3767390.476
A24: EXTRAORDINARY INCOME / (EXPENSE) | C24: =EXTRA!C17 -> -45000 | D24: =EXTRA!D17 -> 0 | E24: =EXTRA!E17 -> 0 | F24: =EXTRA!F17 -> 0 | G24: =EXTRA!G17 -> 0
A26: EARNINGS BEFORE INTEREST & TAXES | C26: =C22+C24 -> -712131.1024 | D26: =D22+D24 -> -158064.2857 | E26: =E22+E24 -> 752514.7619 | F26: =F22+F24 -> 1565780.952 | G26: =G22+G24 -> 3767390.476
A28: INTEREST INCOME / (EXPENSE) | C28: =-FUNDING!C41+FUNDING!C45 -> 0 | D28: =-FUNDING!D41+FUNDING!D45 -> -60000 | E28: =-FUNDING!E41+FUNDING!E45 -> -48000 | F28: =-FUNDING!F41+FUNDING!F45 -> -45000 | G28: =-FUNDING!G41+FUNDING!G45 -> -14000
A30: NET EARNINGS BEFORE TAXES | C30: =C26+C28 -> -712131.1024 | D30: =D26+D28 -> -218064.2857 | E30: =E26+E28 -> 704514.7619 | F30: =F26+F28 -> 1520780.952 | G30: =G26+G28 -> 3753390.476
A32: TAXES | C32: =TAXES!C14 -> 0 | D32: =TAXES!D14 -> 0 | E32: =TAXES!E14 -> 0 | F32: =TAXES!F14 -> -518040.1305 | G32: =TAXES!G14 -> -1501356.19
A34: NET EARNINGS | C34: =C30+C32 -> -712131.1024 | D34: =D30+D32 -> -218064.2857 | E34: =E30+E32 -> 704514.7619 | F34: =F30+F32 -> 1002740.822 | G34: =G30+G32 -> 2252034.286
A35: % of Revenues | C35: =C34/C7 -> -0.7121311024 | D35: =D34/D7 -> -0.04153605442 | E35: =E34/E7 -> 0.0722579243 | F35: =F34/F7 -> 0.0617071275 | G35: =G34/G7 -> 0.0866167033

Sheet BALANCE
A1: =COMPS!A1 -> XYZ Company
A2: Balance Sheet
A3: Years 1 to 5
A4: ($)
B5: Begin | C5: Year 1 | D5: Year 2 | E5: Year 3 | F5: Year 4 | G5: Year 5
A7: ASSETS
A8: CURRENT ASSETS
A9: Cash | B9: =FUNDING!B6 -> 1500000 | C9: =CASHFLOW!C34 -> 408169.85 | D9: =CASHFLOW!D34 -> 367659.85 | E9: =CASHFLOW!E34 -> 570509.85 | F9: =CASHFLOW!F34 -> 792869.7195 | G9: =CASHFLOW!G34 -> 1735713.529
A10: Accounts Receivable | C10: =WORKCAP!C12 -> 149400 | D10: =WORKCAP!D12 -> 627480 | E10: =WORKCAP!E12 -> 913000 | F10: =WORKCAP!F12 -> 1577000 | G10: =WORKCAP!G12 -> 2656000
A11: Inventories | C11: =WORKCAP!C19 -> 149400 | D11: =WORKCAP!D19 -> 627480 | E11: =WORKCAP!E19 -> 737000 | F11: =WORKCAP!F19 -> 1273000 | G11: =WORKCAP!G19 -> 2144000
A12: Other Current Assets | C12: =WORKCAP!C25 -> 18000 | D12: =WORKCAP!D25 -> 75600 | E12: =WORKCAP!E25 -> 110000 | F12: =WORKCAP!F25 -> 190000 | G12: =WORKCAP!G25 -> 320000
A13: Total Current Assets | B13: =SUM(B9:B12) -> 1500000 | C13: 724969.85 | D13: 1698219.85 | E13: 2330509.85 | F13: 3832869.72 | G13: 6855713.529
A14: PROPERTY & EQUIPMENT | B14: ='PROP & EQUIP'!B53 -> 0 | C14: ='PROP & EQUIP'!C53 -> 236619.0476 | D14: ='PROP & EQUIP'!D53 -> 604904.7619 | E14: ='PROP & EQUIP'!E53 -> 910809.5238 | F14: ='PROP & EQUIP'!F53 -> 1187190.476 | G14: ='PROP & EQUIP'!G53 -> 1427380.952
A15: TOTAL ASSETS | B15: =B13+B14 -> 1500000 | C15: 961588.8976 | D15: 2303124.612 | E15: 3241319.374 | F15: 5020060.196 | G15: 8283094.481
A17: LIABILITIES & SHAREHOLDERS' EQUITY
A18: CURRENT LIABILITIES
A19: Short Term Debt | B19: =FUNDING!B18 -> 0 | C19: =FUNDING!C18 -> 0 | D19: =FUNDING!D18 -> 0 | E19: =FUNDING!E18 -> 0 | F19: =FUNDING!F18 -> 100000 | G19: =FUNDING!G18 -> 0
A20: Accounts Payable & Accrued Expen | C20: =WORKCAP!C31 -> 155720 | D20: =WORKCAP!D31 -> 657720 | E20: =WORKCAP!E31 -> 957000 | F20: =WORKCAP!F31 -> 1653000 | G20: =WORKCAP!G31 -> 2784000
A21: Other Current Liab | C21: =WORKCAP!C37 -> 18000 | D21: =WORKCAP!D37 -> 75600 | E21: =WORKCAP!E37 -> 110000 | F21: =WORKCAP!F37 -> 190000 | G21: =WORKCAP!G37 -> 320000
A22: Current portion of long term debt | B22: =FUNDING!B22 -> 0 | C22: =FUNDING!C22 -> 0 | D22: =FUNDING!D22 -> 100000 | E22: =FUNDING!E22 -> 100000 | F22: =FUNDING!F22 -> 100000 | G22: =FUNDING!G22 -> 100000
A23: Total Current Liabilities | B23: =SUM(B19:B22) -> 0 | C23: 173720 | D23: 833320 | E23: 1167000 | F23: 2043000 | G23: 3204000
A25: LONG TERM DEBT (less current portion) | B25: =FUNDING!B23 -> 0 | C25: =FUNDING!C23 -> 0 | D25: =FUNDING!D23 -> 400000 | E25: =FUNDING!E23 -> 300000 | F25: =FUNDING!F23 -> 200000 | G25: =FUNDING!G23 -> 100000
A27: STOCKHOLDERS' EQUITY
A28: CommonStock | B28: =FUNDING!B8 -> 500000 | C28: =FUNDING!C8 -> 500000 | D28: =FUNDING!D8 -> 500000 | E28: =FUNDING!E8 -> 500000 | F28: =FUNDING!F8 -> 500000 | G28: =FUNDING!G8 -> 500000
A29: Preferred Stock | B29: =FUNDING!B13 -> 1000000 | C29: =FUNDING!C13 -> 1000000 | D29: =FUNDING!D13 -> 1500000 | E29: =FUNDING!E13 -> 1500000 | F29: =FUNDING!F13 -> 1500000 | G29: =FUNDING!G13 -> 1500000
A30: Retained Earnings | C30: =FUNDING!C52 -> -712131.1024 | D30: =FUNDING!D52 -> -930195.3881 | E30: =FUNDING!E52 -> -225680.6262 | F30: =FUNDING!F52 -> 777060.1957 | G30: =FUNDING!G52 -> 2979094.481
A31: Total Equity | B31: =SUM(B28:B30) -> 1500000 | C31: 787868.8976 | D31: 1069804.612 | E31: 1774319.374 | F31: 2777060.196 | G31: 4979094.481
A32: TOTAL LIABILITIES & EQUITY | B32: =B23+B25+B31 -> 1500000 | C32: 961588.8976 | D32: 2303124.612 | E32: 3241319.374 | F32: 5020060.196 | G32: 8283094.481

Sheet CASHFLOW
A1: =COMPS!A1 -> XYZ Company
A2: Cash Flow Statememt
A3: Years 1 to 5
A4: ($)
C5: Year 1 | D5: Year 2 | E5: Year 3 | F5: Year 4 | G5: Year 5
A6: OPERATING ACTIVITIES
A7: Net Earnings | C7: =INCOME!C34 -> -712131.1024 | D7: =INCOME!D34 -> -218064.2857 | E7: =INCOME!E34 -> 704514.7619 | F7: =INCOME!F34 -> 1002740.822 | G7: =INCOME!G34 -> 2252034.286
A8: Depreciation | C8: ='PROP & EQUIP'!C47 -> 43380.95238 | D8: ='PROP & EQUIP'!D47 -> 131714.2857 | E8: ='PROP & EQUIP'!E47 -> 244095.2381 | F8: ='PROP & EQUIP'!F47 -> 373619.0476 | G8: ='PROP & EQUIP'!G47 -> 509809.5238
A9: Working Capital Changes
A10: (Increase)/Decrease Accounts Receivable | C10: =WORKCAP!C13 -> -149400 | D10: =WORKCAP!D13 -> -478080 | E10: =WORKCAP!E13 -> -285520 | F10: =WORKCAP!F13 -> -664000 | G10: =WORKCAP!G13 -> -1079000
A11: (Increase)/Decrease Inventories | C11: =WORKCAP!C20 -> -149400 | D11: =WORKCAP!D20 -> -478080 | E11: =WORKCAP!E20 -> -109520 | F11: =WORKCAP!F20 -> -536000 | G11: =WORKCAP!G20 -> -871000
A12: (Increase)/Decrease Other Current Assets | C12: =WORKCAP!C26 -> -18000 | D12: =WORKCAP!D26 -> -57600 | E12: =WORKCAP!E26 -> -34400 | F12: =WORKCAP!F26 -> -80000 | G12: =WORKCAP!G26 -> -130000
A13: Increase/(Decrease) Accts Pay & Accrd Expenses | C13: =WORKCAP!C32 -> 155720 | D13: =WORKCAP!D32 -> 502000 | E13: =WORKCAP!E32 -> 299280 | F13: =WORKCAP!F32 -> 696000 | G13: =WORKCAP!G32 -> 1131000
A14: Increase/(Decrease) Other Current Liab | C14: =WORKCAP!C38 -> 18000 | D14: =WORKCAP!D38 -> 57600 | E14: =WORKCAP!E38 -> 34400 | F14: =WORKCAP!F38 -> 80000 | G14: =WORKCAP!G38 -> 130000
A15: Net Cash Provided/(Used) by Operating Activities | C15: =SUM(C7:C14) -> -811830.15 | D15: =SUM(D7:D14) -> -540510 | E15: =SUM(E7:E14) -> 852850 | F15: =SUM(F7:F14) -> 872359.8695 | G15: =SUM(G7:G14) -> 1942843.81
A17: INVESTING ACTIVITIES
A18: Property & Equipment | C18: =-'PROP & EQUIP'!C13 -> -280000 | D18: =-'PROP & EQUIP'!D13 -> -500000 | E18: =-'PROP & EQUIP'!E13 -> -550000 | F18: =-'PROP & EQUIP'!F13 -> -650000 | G18: =-'PROP & EQUIP'!G13 -> -750000
A19: Other
A20: Net Cash Used in Investing Activities | C20: =SUM(C18:C19) -> -280000 | D20: =SUM(D18:D19) -> -500000 | E20: =SUM(E18:E19) -> -550000 | F20: =SUM(F18:F19) -> -650000 | G20: =SUM(G18:G19) -> -750000
A22: FINANCING ACTIVITIES
A23: Increase/(Decrease) Short Term Debt | C23: =FUNDING!C19 -> 0 | D23: =FUNDING!D19 -> 0 | E23: =FUNDING!E19 -> 0 | F23: =FUNDING!F19 -> 100000 | G23: =FUNDING!G19 -> -100000
A24: Increase/(Decrease) Curr. Portion LTD | C24: =FUNDING!C27 -> 0 | D24: =FUNDING!D27 -> 100000 | E24: =FUNDING!E27 -> 0 | F24: =FUNDING!F27 -> 0 | G24: =FUNDING!G27 -> 0
A25: Increase/(Decrease) Long Term Debt | C25: =FUNDING!C28 -> 0 | D25: =FUNDING!D28 -> 400000 | E25: =FUNDING!E28 -> -100000 | F25: =FUNDING!F28 -> -100000 | G25: =FUNDING!G28 -> -100000
A26: Increase/(Decrease) Common Stock | C26: =FUNDING!C9 -> 0 | D26: =FUNDING!D9 -> 0 | E26: =FUNDING!E9 -> 0 | F26: =FUNDING!F9 -> 0 | G26: =FUNDING!G9 -> 0
A27: Increase/(Decrease) Preferred Stock | C27: =FUNDING!C14 -> 0 | D27: =FUNDING!D14 -> 500000 | E27: =FUNDING!E14 -> 0 | F27: =FUNDING!F14 -> 0 | G27: =FUNDING!G14 -> 0
A28: Dividends Declared | C28: =-FUNDING!C49 -> 0 | D28: =-FUNDING!D49 -> 0 | E28: =-FUNDING!E49 -> 0 | F28: =-FUNDING!F49 -> 0 | G28: =-FUNDING!G49 -> -50000
A29: Net Cash Provided / (Used) by Financing | C29: =SUM(C23:C28) -> 0 | D29: =SUM(D23:D28) -> 1000000 | E29: =SUM(E23:E28) -> -100000 | F29: =SUM(F23:F28) -> 0 | G29: =SUM(G23:G28) -> -250000
A31: INCREASE/(DECREASE) IN CASH | C31: =C15+C20+C29 -> -1091830.15 | D31: =D15+D20+D29 -> -40510 | E31: =E15+E20+E29 -> 202850 | F31: =F15+F20+F29 -> 222359.8695 | G31: =G15+G20+G29 -> 942843.8095
A33: CASH AT BEGINNING OF YEAR | C33: =B34 -> 1500000 | D33: =C34 -> 408169.85 | E33: =D34 -> 367659.85 | F33: =E34 -> 570509.85 | G33: =F34 -> 792869.7195
A34: CASH AT END OF YEAR | B34: =BALANCE!B9 -> 1500000 | C34: =C33+C31 -> 408169.85 | D34: =D33+D31 -> 367659.85 | E34: =E33+E31 -> 570509.85 | F34: =F33+F31 -> 792869.7195 | G34: =G33+G31 -> 1735713.529

Sheet BREAKEVEN
A1: =COMPS!A1 -> XYZ Company | H1: Notes
A2: Break-Even Analysis
A3: Years 1 to 5
A4: ($)
C5: Year 1 | D5: Year 2 | E5: Year 3 | F5: Year 4 | G5: Year 5
A6: Revenue | C6: =REVENUE!C16 -> 1000000 | D6: =REVENUE!D16 -> 5250000 | E6: =REVENUE!E16 -> 9750000 | F6: =REVENUE!F16 -> 16250000 | G6: =REVENUE!G16 -> 26000000
A8: ='COST OF REV'!A9 -> Cost of Revenue | B8: ='COST OF REV'!B9 -> 0
A9: Variable | C9: ='COST OF REV'!C36 -> 729750 | D9: ='COST OF REV'!D36 -> 2450450 | E9: ='COST OF REV'!E36 -> 4122000 | F9: ='COST OF REV'!F36 -> 7139000 | G9: ='COST OF REV'!G36 -> 10990000
A10: Fixed | C10: ='COST OF REV'!C37 -> 387714.2857 | D10: ='COST OF REV'!D37 -> 1081714.286 | E10: ='COST OF REV'!E37 -> 1577428.571 | F10: ='COST OF REV'!F37 -> 2200285.714 | G10: ='COST OF REV'!G37 -> 3043142.857
A11: Total | C11: ='COST OF REV'!C38 -> 1117464.286 | D11: ='COST OF REV'!D38 -> 3532164.286 | E11: ='COST OF REV'!E38 -> 5699428.571 | F11: ='COST OF REV'!F38 -> 9339285.714 | G11: ='COST OF REV'!G38 -> 14033142.86
A13: Operating Expenses
A14: Variable | C14: ='OPER EXP'!C45 -> 160000 | D14: ='OPER EXP'!D45 -> 840000 | E14: ='OPER EXP'!E45 -> 1560000 | F14: ='OPER EXP'!F45 -> 2600000 | G14: ='OPER EXP'!G45 -> 4160000
A15: Fixed | C15: ='OPER EXP'!C46 -> 389666.8167 | D15: ='OPER EXP'!D46 -> 1035900 | E15: ='OPER EXP'!E46 -> 1738056.667 | F15: ='OPER EXP'!F46 -> 2744933.333 | G15: ='OPER EXP'!G46 -> 4039466.667
A16: Total | C16: ='OPER EXP'!C47 -> 549666.8167 | D16: ='OPER EXP'!D47 -> 1875900 | E16: ='OPER EXP'!E47 -> 3298056.667 | F16: ='OPER EXP'!F47 -> 5344933.333 | G16: ='OPER EXP'!G47 -> 8199466.667
A18: Total Costs & Expenses
A19: Variable | C19: =C9+C14 -> 889750 | D19: 3290450 | E19: 5682000 | F19: 9739000 | G19: 15150000
A20: Fixed | C20: 777381.1024 | D20: 2117614.286 | E20: 3315485.238 | F20: 4945219.048 | G20: 7082609.524
A21: Total | C21: =C19+C20 -> 1667131.102 | D21: =D19+D20 -> 5408064.286 | E21: =E19+E20 -> 8997485.238 | F21: =F19+F20 -> 14684219.05 | G21: =G19+G20 -> 22232609.52
A23: Variable Costs/Revenue Ratio | C23: =C19/C6 -> 0.88975 | D23: =D19/D6 -> 0.626752381 | E23: =E19/E6 -> 0.5827692308 | F23: =F19/F6 -> 0.5993230769 | G23: =G19/G6 -> 0.5826923077
A25: Break-Even Point Revenues | C25: =C20/(1-C19/C6) -> 7051075.759 | D25: =D20/(1-D19/D6) -> 5673483.708 | E25: =E20/(1-E19/E6) -> 7946406.36 | F25: =F20/(1-F19/F6) -> 12342160.89 | G25: =G20/(1-G19/G6) -> 16972151.85

Sheet INCOME-MOS
A1: =COMPS!A1 -> XYZ Company
A2: Income Statements
A3: 5 Years by Months & Quarters
A4: ($)
A6: =A1 -> XYZ Company
A7: Income Statement | P7: Year 1
A8: Year 1 by Months | O8: Total | P8: Annual
C9: Month 1 | D9: Month 2 | E9: Month 3 | F9: Month 4 | G9: Month 5 | H9: Month 6 | I9: Month 7 | J9: Month 8 | K9: Month 9 | L9: Month 10 | M9: Month 11 | N9: Month 12 | O9: 12 Months | P9: Projection
A11: NET REVENUES | C11: =REVENUE!C22 -> 0 | D11: =REVENUE!C23 -> 0 | E11: =REVENUE!C24 -> 0 | F11: =REVENUE!C26 -> 50000 | G11: =REVENUE!C27 -> 80000 | H11: =REVENUE!C28 -> 100000 | I11: =REVENUE!C30 -> 100000 | J11: =REVENUE!C31 -> 120000 | K11: =REVENUE!C32 -> 150000 | L11: =REVENUE!C34 -> 120000 | M11: =REVENUE!C35 -> 130000 | N11: =REVENUE!C36 -> 150000 | O11: =SUM(C11:N11) -> 1000000 | P11: =INCOME!C7 -> 1000000
A13: COST OF REVENUE | C13: ='COST OF REV'!$C$33*'INCOME-MOS'!C11 -> 0 | D13: ='COST OF REV'!$C$33*'INCOME-MOS'!D11 -> 0 | E13: ='COST OF REV'!$C$33*'INCOME-MOS'!E11 -> 0 | F13: ='COST OF REV'!$C$33*'INCOME-MOS'!F11 -> 55873.21429 | G13: ='COST OF REV'!$C$33*'INCOME-MOS'!G11 -> 89397.14286 | H13: ='COST OF REV'!$C$33*'INCOME-MOS'!H11 -> 111746.4286 | I13: ='COST OF REV'!$C$33*'INCOME-MOS'!I11 -> 111746.4286 | J13: ='COST OF REV'!$C$33*'INCOME-MOS'!J11 -> 134095.7143 | K13: ='COST OF REV'!$C$33*'INCOME-MOS'!K11 -> 167619.6429 | L13: ='COST OF REV'!$C$33*'INCOME-MOS'!L11 -> 134095.7143 | M13: ='COST OF REV'!$C$33*'INCOME-MOS'!M11 -> 145270.3571 | N13: ='COST OF REV'!$C$33*'INCOME-MOS'!N11 -> 167619.6429 | O13: =SUM(C13:N13) -> 1117464.286 | P13: =INCOME!C9 -> 1117464.286
A15: GROSS PROFIT | C15: =C11-C13 -> 0 | D15: =D11-D13 -> 0 | E15: =E11-E13 -> 0 | F15: -5873.214286 | G15: -9397.142857 | H15: -11746.42857 | I15: -11746.42857 | J15: -14095.71429 | K15: -17619.64286 | L15: -14095.71429 | M15: -15270.35714 | N15: -17619.64286 | O15: =SUM(C15:N15) -> -117464.2857 | P15: =INCOME!C12 -> -117464.2857
A17: OPERATING EXPENSES
A18: Sales & Marketing | C18: ='OPER EXP'!C53 -> 0 | D18: ='OPER EXP'!C54 -> 0 | E18: ='OPER EXP'!C55 -> 0 | F18: ='OPER EXP'!C57 -> 11450 | G18: ='OPER EXP'!C58 -> 18320 | H18: ='OPER EXP'!C59 -> 22900 | I18: ='OPER EXP'!C61 -> 22900 | J18: ='OPER EXP'!C62 -> 27480 | K18: ='OPER EXP'!C63 -> 34350 | L18: ='OPER EXP'!C65 -> 27480 | M18: ='OPER EXP'!C66 -> 29770 | N18: ='OPER EXP'!C67 -> 34350 | O18: =SUM(C18:N18) -> 229000 | P18: =INCOME!C16 -> 229000
A19: Research & Development | C19: ='OPER EXP'!C75 -> 0 | D19: ='OPER EXP'!C76 -> 0 | E19: ='OPER EXP'!C77 -> 0 | F19: ='OPER EXP'!C79 -> 7450 | G19: ='OPER EXP'!C80 -> 11920 | H19: ='OPER EXP'!C81 -> 14900 | I19: ='OPER EXP'!C83 -> 14900 | J19: ='OPER EXP'!C84 -> 17880 | K19: ='OPER EXP'!C85 -> 22350 | L19: ='OPER EXP'!C87 -> 17880 | M19: ='OPER EXP'!C88 -> 19370 | N19: ='OPER EXP'!C89 -> 22350 | O19: =SUM(C19:N19) -> 149000 | P19: =INCOME!C17 -> 149000
A20: General and Administration | C20: ='OPER EXP'!C97 -> 0 | D20: ='OPER EXP'!C98 -> 0 | E20: ='OPER EXP'!C99 -> 0 | F20: ='OPER EXP'!C101 -> 8583.340833 | G20: ='OPER EXP'!C102 -> 13733.34533 | H20: ='OPER EXP'!C103 -> 17166.68167 | I20: ='OPER EXP'!C105 -> 17166.68167 | J20: ='OPER EXP'!C106 -> 20600.018 | K20: ='OPER EXP'!C107 -> 25750.0225 | L20: ='OPER EXP'!C109 -> 20600.018 | M20: ='OPER EXP'!C110 -> 22316.68617 | N20: ='OPER EXP'!C111 -> 25750.0225 | O20: =SUM(C20:N20) -> 171666.8167 | P20: =INCOME!C18 -> 171666.8167
A21: Total Operating Expenses | C21: =SUM(C18:C20) -> 0 | D21: =SUM(D18:D20) -> 0 | E21: 0 | F21: 27483.34083 | G21: 43973.34533 | H21: 54966.68167 | I21: 54966.68167 | J21: 65960.018 | K21: 82450.0225 | L21: 65960.018 | M21: 71456.68617 | N21: 82450.0225 | O21: =SUM(C21:N21) -> 549666.8167 | P21: =INCOME!C19 -> 549666.8167
A23: EARNINGS FROM OPERATIONS | C23: =C15-C21 -> 0 | D23: 0 | E23: 0 | F23: -33356.55512 | G23: -53370.48819 | H23: -66713.11024 | I23: -66713.11024 | J23: -80055.73229 | K23: -100069.6654 | L23: -80055.73229 | M23: -86727.04331 | N23: -100069.6654 | O23: =SUM(C23:N23) -> -667131.1024 | P23: =INCOME!C22 -> -667131.1024
A25: EXTRAORDINARY INCOME / (EXPENSE) | C25: =EXTRA!C24 -> -25000 | D25: =EXTRA!C25 -> -20000 | E25: =EXTRA!C26 -> 0 | F25: =EXTRA!C28 -> 0 | G25: =EXTRA!C29 -> 0 | H25: =EXTRA!C30 -> 0 | I25: =EXTRA!C32 -> 0 | J25: =EXTRA!C33 -> 0 | K25: =EXTRA!C34 -> 0 | L25: =EXTRA!C36 -> 0 | M25: =EXTRA!C37 -> 0 | N25: =EXTRA!C38 -> 0 | O25: =SUM(C25:N25) -> -45000 | P25: =INCOME!C24 -> -45000
A27: EARNINGS BEFORE INTEREST & TAXES | C27: =C23+C25 -> -25000 | D27: =D23+D25 -> -20000 | E27: 0 | F27: -33356.55512 | G27: -53370.48819 | H27: -66713.11024 | I27: -66713.11024 | J27: -80055.73229 | K27: -100069.6654 | L27: -80055.73229 | M27: -86727.04331 | N27: -100069.6654 | O27: =SUM(C27:N27) -> -712131.1024 | P27: =INCOME!C26 -> -712131.1024
A29: INTEREST INCOME / (EXPENSE) | C29: =$D$120 -> 0 | D29: 0 | E29: 0 | F29: 0 | G29: 0 | H29: 0 | I29: 0 | J29: 0 | K29: 0 | L29: 0 | M29: 0 | N29: 0 | O29: =SUM(C29:N29) -> 0 | P29: =INCOME!C28 -> 0
A31: NET EARNINGS BEFORE TAXES | C31: =C27+C29 -> -25000 | D31: =D27+D29 -> -20000 | E31: =E27+E29 -> 0 | F31: -33356.55512 | G31: -53370.48819 | H31: -66713.11024 | I31: -66713.11024 | J31: -80055.73229 | K31: -100069.6654 | L31: -80055.73229 | M31: -86727.04331 | N31: -100069.6654 | O31: =SUM(C31:N31) -> -712131.1024 | P31: =INCOME!C30 -> -712131.1024
A33: TAXES | C33: =-IF(TAXES!$C11>=0,IF(TAXES!$C12<=TAXES!$C11,(TAXES!$C9*'INCOME-MOS'!C31)*TAXES!$C12/TAXES!$C11,TAXES!$C9*'INCOME-MOS'!C31),0) -> 0 | D33: =-IF(TAXES!$C11>=0,IF(TAXES!$C12<=TAXES!$C11,(TAXES!$C9*'INCOME-MOS'!D31)*TAXES!$C12/TAXES!$C11,TAXES!$C9*'INCOME-MOS'!D31),0) -> 0 | E33: =-IF(TAXES!$C11>=0,IF(TAXES!$C12<=TAXES!$C11,(TAXES!$C9*'INCOME-MOS'!E31)*TAXES!$C12/TAXES!$C11,TAXES!$C9*'INCOME-MOS'!E31),0) -> 0 | F33: =-IF(TAXES!$C11>=0,IF(TAXES!$C12<=TAXES!$C11,(TAXES!$C9*'INCOME-MOS'!F31)*TAXES!$C12/TAXES!$C11,TAXES!$C9*'INCOME-MOS'!F31),0) -> 0 | G33: =-IF(TAXES!$C11>=0,IF(TAXES!$C12<=TAXES!$C11,(TAXES!$C9*'INCOME-MOS'!G31)*TAXES!$C12/TAXES!$C11,TAXES!$C9*'INCOME-MOS'!G31),0) -> 0 | H33: =-IF(TAXES!$C11>=0,IF(TAXES!$C12<=TAXES!$C11,(TAXES!$C9*'INCOME-MOS'!H31)*TAXES!$C12/TAXES!$C11,TAXES!$C9*'INCOME-MOS'!H31),0) -> 0 | I33: =-IF(TAXES!$C11>=0,IF(TAXES!$C12<=TAXES!$C11,(TAXES!$C9*'INCOME-MOS'!I31)*TAXES!$C12/TAXES!$C11,TAXES!$C9*'INCOME-MOS'!I31),0) -> 0 | J33: =-IF(TAXES!$C11>=0,IF(TAXES!$C12<=TAXES!$C11,(TAXES!$C9*'INCOME-MOS'!J31)*TAXES!$C12/TAXES!$C11,TAXES!$C9*'INCOME-MOS'!J31),0) -> 0 | K33: =-IF(TAXES!$C11>=0,IF(TAXES!$C12<=TAXES!$C11,(TAXES!$C9*'INCOME-MOS'!K31)*TAXES!$C12/TAXES!$C11,TAXES!$C9*'INCOME-MOS'!K31),0) -> 0 | L33: =-IF(TAXES!$C11>=0,IF(TAXES!$C12<=TAXES!$C11,(TAXES!$C9*'INCOME-MOS'!L31)*TAXES!$C12/TAXES!$C11,TAXES!$C9*'INCOME-MOS'!L31),0) -> 0 | M33: =-IF(TAXES!$C11>=0,IF(TAXES!$C12<=TAXES!$C11,(TAXES!$C9*'INCOME-MOS'!M31)*TAXES!$C12/TAXES!$C11,TAXES!$C9*'INCOME-MOS'!M31),0) -> 0 | N33: =-IF(TAXES!$C11>=0,IF(TAXES!$C12<=TAXES!$C11,(TAXES!$C9*'INCOME-MOS'!N31)*TAXES!$C12/TAXES!$C11,TAXES!$C9*'INCOME-MOS'!N31),0) -> 0 | O33: =SUM(C33:N33) -> 0 | P33: =INCOME!C32 -> 0
A35: NET EARNINGS | C35: =C31+C33 -> -25000 | D35: =D31+D33 -> -20000 | E35: =E31+E33 -> 0 | F35: -33356.55512 | G35: -53370.48819 | H35: -66713.11024 | I35: -66713.11024 | J35: -80055.73229 | K35: -100069.6654 | L35: -80055.73229 | M35: -86727.04331 | N35: -100069.6654 | O35: =SUM(C35:N35) -> -712131.1024 | P35: =INCOME!C34 -> -712131.1024
A39: =A1 -> XYZ Company
A40: Income Statement | P40: Year 2
A41: Year 2 by Months | O41: Total | P41: Annual
C42: Month 1 | D42: Month 2 | E42: Month 3 | F42: Month 4 | G42: Month 5 | H42: Month 6 | I42: Month 7 | J42: Month 8 | K42: Month 9 | L42: Month 10 | M42: Month 11 | N42: Month 12 | O42: 12 Months | P42: Projection
A44: NET REVENUES | C44: =REVENUE!D22 -> 262500 | D44: =REVENUE!D23 -> 262500 | E44: =REVENUE!D24 -> 367500 | F44: =REVENUE!D26 -> 315000 | G44: =REVENUE!D27 -> 367500 | H44: =REVENUE!D28 -> 367500 | I44: =REVENUE!D30 -> 420000 | J44: =REVENUE!D31 -> 525000 | K44: =REVENUE!D32 -> 525000 | L44: =REVENUE!D34 -> 577500 | M44: =REVENUE!D35 -> 630000 | N44: =REVENUE!D36 -> 630000 | O44: =SUM(C44:N44) -> 5250000 | P44: =INCOME!D7 -> 5250000
A46: COST OF REVENUE | C46: ='COST OF REV'!$D$33*'INCOME-MOS'!C44 -> 176608.2143 | D46: ='COST OF REV'!$D$33*'INCOME-MOS'!D44 -> 176608.2143 | E46: ='COST OF REV'!$D$33*'INCOME-MOS'!E44 -> 247251.5 | F46: ='COST OF REV'!$D$33*'INCOME-MOS'!F44 -> 211929.8571 | G46: ='COST OF REV'!$D$33*'INCOME-MOS'!G44 -> 247251.5 | H46: ='COST OF REV'!$D$33*'INCOME-MOS'!H44 -> 247251.5 | I46: ='COST OF REV'!$D$33*'INCOME-MOS'!I44 -> 282573.1429 | J46: ='COST OF REV'!$D$33*'INCOME-MOS'!J44 -> 353216.4286 | K46: ='COST OF REV'!$D$33*'INCOME-MOS'!K44 -> 353216.4286 | L46: ='COST OF REV'!$D$33*'INCOME-MOS'!L44 -> 388538.0714 | M46: ='COST OF REV'!$D$33*'INCOME-MOS'!M44 -> 423859.7143 | N46: ='COST OF REV'!$D$33*'INCOME-MOS'!N44 -> 423859.7143 | O46: =SUM(C46:N46) -> 3532164.286 | P46: =INCOME!D9 -> 3532164.286
A48: GROSS PROFIT | C48: =C44-C46 -> 85891.78571 | D48: =D44-D46 -> 85891.78571 | E48: =E44-E46 -> 120248.5 | F48: 103070.1429 | G48: 120248.5 | H48: 120248.5 | I48: 137426.8571 | J48: 171783.5714 | K48: 171783.5714 | L48: 188961.9286 | M48: 206140.2857 | N48: 206140.2857 | O48: =SUM(C48:N48) -> 1717835.714 | P48: =INCOME!D12 -> 1717835.714
A50: OPERATING EXPENSES
A51: Sales & Marketing | C51: ='OPER EXP'!D53 -> 49887.5 | D51: ='OPER EXP'!D54 -> 49887.5 | E51: ='OPER EXP'!D55 -> 69842.5 | F51: ='OPER EXP'!D57 -> 59865 | G51: ='OPER EXP'!D58 -> 69842.5 | H51: ='OPER EXP'!D59 -> 69842.5 | I51: ='OPER EXP'!D61 -> 79820 | J51: ='OPER EXP'!D62 -> 99775 | K51: ='OPER EXP'!D63 -> 99775 | L51: ='OPER EXP'!D65 -> 109752.5 | M51: ='OPER EXP'!D66 -> 119730 | N51: ='OPER EXP'!D67 -> 119730 | O51: =SUM(C51:N51) -> 997750 | P51: =INCOME!D16 -> 997750
A52: Research & Development | C52: ='OPER EXP'!D75 -> 20650 | D52: ='OPER EXP'!D76 -> 20650 | E52: ='OPER EXP'!D77 -> 28910 | F52: ='OPER EXP'!D79 -> 24780 | G52: ='OPER EXP'!D80 -> 28910 | H52: ='OPER EXP'!D81 -> 28910 | I52: ='OPER EXP'!D83 -> 33040 | J52: ='OPER EXP'!D84 -> 41300 | K52: ='OPER EXP'!D85 -> 41300 | L52: ='OPER EXP'!D87 -> 45430 | M52: ='OPER EXP'!D88 -> 49560 | N52: ='OPER EXP'!D89 -> 49560 | O52: =SUM(C52:N52) -> 413000 | P52: =INCOME!D17 -> 413000
A53: General and Administration | C53: ='OPER EXP'!D97 -> 23257.5 | D53: ='OPER EXP'!D98 -> 23257.5 | E53: ='OPER EXP'!D99 -> 32560.5 | F53: ='OPER EXP'!D101 -> 27909 | G53: ='OPER EXP'!D102 -> 32560.5 | H53: ='OPER EXP'!D103 -> 32560.5 | I53: ='OPER EXP'!D105 -> 37212 | J53: ='OPER EXP'!D106 -> 46515 | K53: ='OPER EXP'!D107 -> 46515 | L53: ='OPER EXP'!D109 -> 51166.5 | M53: ='OPER EXP'!D110 -> 55818 | N53: ='OPER EXP'!D111 -> 55818 | O53: =SUM(C53:N53) -> 465150 | P53: =INCOME!D18 -> 465150
A54: Total Operating Expenses | C54: =SUM(C51:C53) -> 93795 | D54: 93795 | E54: 131313 | F54: 112554 | G54: 131313 | H54: 131313 | I54: 150072 | J54: 187590 | K54: 187590 | L54: 206349 | M54: 225108 | N54: 225108 | O54: =SUM(C54:N54) -> 1875900 | P54: =INCOME!D19 -> 1875900
A56: EARNINGS FROM OPERATIONS | C56: =C48-C54 -> -7903.214286 | D56: -7903.214286 | E56: -11064.5 | F56: -9483.857143 | G56: -11064.5 | H56: -11064.5 | I56: -12645.14286 | J56: -15806.42857 | K56: -15806.42857 | L56: -17387.07143 | M56: -18967.71429 | N56: -18967.71429 | O56: =SUM(C56:N56) -> -158064.2857 | P56: =INCOME!D22 -> -158064.2857
A58: EXTRAORDINARY INCOME / (EXPENSE) | C58: =EXTRA!D24 -> 0 | D58: =EXTRA!D25 -> 0 | E58: =EXTRA!D26 -> 0 | F58: =EXTRA!D28 -> 0 | G58: =EXTRA!D29 -> 0 | H58: =EXTRA!D30 -> 0 | I58: =EXTRA!D32 -> 0 | J58: =EXTRA!D33 -> 0 | K58: =EXTRA!D34 -> 0 | L58: =EXTRA!D36 -> 0 | M58: =EXTRA!D37 -> 0 | N58: =EXTRA!D38 -> 0 | O58: =SUM(C58:N58) -> 0 | P58: =INCOME!D24 -> 0
A60: EARNINGS BEFORE INTEREST & TAXES | C60: =C56+C58 -> -7903.214286 | D60: =D56+D58 -> -7903.214286 | E60: -11064.5 | F60: -9483.857143 | G60: -11064.5 | H60: -11064.5 | I60: -12645.14286 | J60: -15806.42857 | K60: -15806.42857 | L60: -17387.07143 | M60: -18967.71429 | N60: -18967.71429 | O60: =SUM(C60:N60) -> -158064.2857 | P60: =INCOME!D26 -> -158064.2857
A62: INTEREST INCOME / (EXPENSE) | C62: =$D$121 -> -5000 | D62: -5000 | E62: -5000 | F62: -5000 | G62: -5000 | H62: -5000 | I62: -5000 | J62: -5000 | K62: -5000 | L62: -5000 | M62: -5000 | N62: -5000 | O62: =SUM(C62:N62) -> -60000 | P62: =INCOME!D28 -> -60000
A64: NET EARNINGS BEFORE TAXES | C64: =C60+C62 -> -12903.21429 | D64: =D60+D62 -> -12903.21429 | E64: =E60+E62 -> -16064.5 | F64: -14483.85714 | G64: -16064.5 | H64: -16064.5 | I64: -17645.14286 | J64: -20806.42857 | K64: -20806.42857 | L64: -22387.07143 | M64: -23967.71429 | N64: -23967.71429 | O64: =SUM(C64:N64) -> -218064.2857 | P64: =INCOME!D30 -> -218064.2857
A66: TAXES | C66: =-IF(TAXES!$D12>=0,IF(TAXES!$D12<=TAXES!$D11,(TAXES!$D9*'INCOME-MOS'!C64)*TAXES!$D12/TAXES!$D11,TAXES!$D9*'INCOME-MOS'!C64),0) -> 0 | D66: =-IF(TAXES!$D12>=0,IF(TAXES!$D12<=TAXES!$D11,(TAXES!$D9*'INCOME-MOS'!D64)*TAXES!$D12/TAXES!$D11,TAXES!$D9*'INCOME-MOS'!D64),0) -> 0 | E66: =-IF(TAXES!$D12>=0,IF(TAXES!$D12<=TAXES!$D11,(TAXES!$D9*'INCOME-MOS'!E64)*TAXES!$D12/TAXES!$D11,TAXES!$D9*'INCOME-MOS'!E64),0) -> 0 | F66: =-IF(TAXES!$D12>=0,IF(TAXES!$D12<=TAXES!$D11,(TAXES!$D9*'INCOME-MOS'!F64)*TAXES!$D12/TAXES!$D11,TAXES!$D9*'INCOME-MOS'!F64),0) -> 0 | G66: =-IF(TAXES!$D12>=0,IF(TAXES!$D12<=TAXES!$D11,(TAXES!$D9*'INCOME-MOS'!G64)*TAXES!$D12/TAXES!$D11,TAXES!$D9*'INCOME-MOS'!G64),0) -> 0 | H66: =-IF(TAXES!$D12>=0,IF(TAXES!$D12<=TAXES!$D11,(TAXES!$D9*'INCOME-MOS'!H64)*TAXES!$D12/TAXES!$D11,TAXES!$D9*'INCOME-MOS'!H64),0) -> 0 | I66: =-IF(TAXES!$D12>=0,IF(TAXES!$D12<=TAXES!$D11,(TAXES!$D9*'INCOME-MOS'!I64)*TAXES!$D12/TAXES!$D11,TAXES!$D9*'INCOME-MOS'!I64),0) -> 0 | J66: =-IF(TAXES!$D12>=0,IF(TAXES!$D12<=TAXES!$D11,(TAXES!$D9*'INCOME-MOS'!J64)*TAXES!$D12/TAXES!$D11,TAXES!$D9*'INCOME-MOS'!J64),0) -> 0 | K66: =-IF(TAXES!$D12>=0,IF(TAXES!$D12<=TAXES!$D11,(TAXES!$D9*'INCOME-MOS'!K64)*TAXES!$D12/TAXES!$D11,TAXES!$D9*'INCOME-MOS'!K64),0) -> 0 | L66: =-IF(TAXES!$D12>=0,IF(TAXES!$D12<=TAXES!$D11,(TAXES!$D9*'INCOME-MOS'!L64)*TAXES!$D12/TAXES!$D11,TAXES!$D9*'INCOME-MOS'!L64),0) -> 0 | M66: =-IF(TAXES!$D12>=0,IF(TAXES!$D12<=TAXES!$D11,(TAXES!$D9*'INCOME-MOS'!M64)*TAXES!$D12/TAXES!$D11,TAXES!$D9*'INCOME-MOS'!M64),0) -> 0 | N66: =-IF(TAXES!$D12>=0,IF(TAXES!$D12<=TAXES!$D11,(TAXES!$D9*'INCOME-MOS'!N64)*TAXES!$D12/TAXES!$D11,TAXES!$D9*'INCOME-MOS'!N64),0) -> 0 | O66: =SUM(C66:N66) -> 0 | P66: =INCOME!D32 -> 0
A68: NET EARNINGS | C68: =C64+C66 -> -12903.21429 | D68: =D64+D66 -> -12903.21429 | E68: =E64+E66 -> -16064.5 | F68: -14483.85714 | G68: -16064.5 | H68: -16064.5 | I68: -17645.14286 | J68: -20806.42857 | K68: -20806.42857 | L68: -22387.07143 | M68: -23967.71429 | N68: -23967.71429 | O68: =SUM(C68:N68) -> -218064.2857 | P68: =INCOME!D34 -> -218064.2857
A72: =A1 -> XYZ Company
A73: Income Statement | R73: Year 3 | S73: Year 4 | T73: Year 5
A74: Years 3, 4 & 5 by Quarters | R74: Annual | S74: Annual | T74: Annual
C75: Year 3 | H75: Year 4 | M75: Year 5 | R75: Projection | S75: Projection | T75: Projection
C76: 1st Qtr | D76: 2nd Qrtr | E76: 3rd Qrtr | F76: 4th Qrtr | G76: Total | H76: 1st Qtr | I76: 2nd Qtr | J76: 3rd Qtr | K76: 4th Qtr | L76: Total | M76: 1st Qtr | N76: 2nd Qtr | O76: 3rd Qtr | P76: 4th Qtr | Q76: Total
A78: NET REVENUES | C78: =REVENUE!E25 -> 2000000 | D78: =REVENUE!E29 -> 2500000 | E78: =REVENUE!E33 -> 2500000 | F78: =REVENUE!E37 -> 2750000 | G78: =SUM(C78:F78) -> 9750000 | H78: =REVENUE!F25 -> 3000000 | I78: =REVENUE!F29 -> 4000000 | J78: =REVENUE!F33 -> 4500000 | K78: =REVENUE!F37 -> 4750000 | L78: =SUM(H78:K78) -> 16250000 | M78: =REVENUE!G25 -> 5000000 | N78: =REVENUE!G29 -> 6000000 | O78: =REVENUE!G33 -> 7000000 | P78: =REVENUE!G37 -> 8000000 | Q78: =SUM(M78:P78) -> 26000000 | R78: =INCOME!E7 -> 9750000 | S78: =INCOME!F7 -> 16250000 | T78: =INCOME!G7 -> 26000000
R79: =INCOME!E8 -> 0 | S79: =INCOME!F8 -> 0 | T79: =INCOME!G8 -> 0
A80: COST OF REVENUE | C80: ='COST OF REV'!$E$33*C78 -> 1169113.553 | D80: ='COST OF REV'!$E$33*D78 -> 1461391.941 | E80: ='COST OF REV'!$E$33*E78 -> 1461391.941 | F80: ='COST OF REV'!$E$33*F78 -> 1607531.136 | G80: =SUM(C80:F80) -> 5699428.571 | H80: ='COST OF REV'!$F$33*H78 -> 1724175.824 | I80: ='COST OF REV'!$F$33*I78 -> 2298901.099 | J80: ='COST OF REV'!$F$33*J78 -> 2586263.736 | K80: ='COST OF REV'!$F$33*K78 -> 2729945.055 | L80: =SUM(H80:K80) -> 9339285.714 | M80: ='COST OF REV'!$G$33*M78 -> 2698681.319 | N80: ='COST OF REV'!$G$33*N78 -> 3238417.582 | O80: ='COST OF REV'!$G$33*O78 -> 3778153.846 | P80: ='COST OF REV'!$G$33*P78 -> 4317890.11 | Q80: =SUM(M80:P80) -> 14033142.86 | R80: =INCOME!E9 -> 5699428.571 | S80: =INCOME!F9 -> 9339285.714 | T80: =INCOME!G9 -> 14033142.86
A82: GROSS PROFIT | C82: =C78-C80 -> 830886.4469 | D82: 1038608.059 | E82: 1038608.059 | F82: 1142468.864 | G82: 4050571.429 | H82: 1275824.176 | I82: 1701098.901 | J82: 1913736.264 | K82: 2020054.945 | L82: 6910714.286 | M82: 2301318.681 | N82: 2761582.418 | O82: 3221846.154 | P82: 3682109.89 | Q82: =Q78-Q80 -> 11966857.14 | R82: =INCOME!E12 -> 4050571.429 | S82: =INCOME!F12 -> 6910714.286 | T82: =INCOME!G12 -> 11966857.14
A84: OPERATING EXPENSES
A85: Sales & Marketing | C85: ='OPER EXP'!E56 -> 370338.4615 | D85: ='OPER EXP'!E60 -> 462923.0769 | E85: ='OPER EXP'!E64 -> 462923.0769 | F85: ='OPER EXP'!E68 -> 509215.3846 | G85: ='OPER EXP'!E69 -> 1805400 | H85: ='OPER EXP'!F56 -> 537507.6923 | I85: ='OPER EXP'!F60 -> 716676.9231 | J85: ='OPER EXP'!F64 -> 806261.5385 | K85: ='OPER EXP'!F68 -> 851053.8462 | L85: ='OPER EXP'!F69 -> 2911500 | M85: ='OPER EXP'!G56 -> 899230.7692 | N85: ='OPER EXP'!G60 -> 1079076.923 | O85: ='OPER EXP'!G64 -> 1258923.077 | P85: ='OPER EXP'!G68 -> 1438769.231 | Q85: ='OPER EXP'!G69 -> 4676000 | R85: =INCOME!E16 -> 1805400 | S85: =INCOME!F16 -> 2911500 | T85: =INCOME!G16 -> 4676000
A86: Research & Development | C86: ='OPER EXP'!E78 -> 144112.8205 | D86: ='OPER EXP'!E82 -> 180141.0256 | E86: ='OPER EXP'!E86 -> 180141.0256 | F86: ='OPER EXP'!E90 -> 198155.1282 | G86: ='OPER EXP'!E91 -> 702550 | H86: ='OPER EXP'!F78 -> 229200 | I86: ='OPER EXP'!F82 -> 305600 | J86: ='OPER EXP'!F86 -> 343800 | K86: ='OPER EXP'!F90 -> 362900 | L86: ='OPER EXP'!F91 -> 1241500 | M86: ='OPER EXP'!G78 -> 336923.0769 | N86: ='OPER EXP'!G82 -> 404307.6923 | O86: ='OPER EXP'!G86 -> 471692.3077 | P86: ='OPER EXP'!G90 -> 539076.9231 | Q86: ='OPER EXP'!G91 -> 1752000 | R86: =INCOME!E17 -> 702550 | S86: =INCOME!F17 -> 1241500 | T86: =INCOME!G17 -> 1752000
A87: General and Administration | C87: ='OPER EXP'!E100 -> 162073.1624 | D87: ='OPER EXP'!E104 -> 202591.453 | E87: ='OPER EXP'!E108 -> 202591.453 | F87: ='OPER EXP'!E112 -> 222850.5983 | G87: ='OPER EXP'!E113 -> 790106.6667 | H87: ='OPER EXP'!F100 -> 220049.2308 | I87: ='OPER EXP'!F104 -> 293398.9744 | J87: ='OPER EXP'!F108 -> 330073.8462 | K87: ='OPER EXP'!F112 -> 348411.2821 | L87: ='OPER EXP'!F113 -> 1191933.333 | M87: ='OPER EXP'!G100 -> 340666.6667 | N87: ='OPER EXP'!G104 -> 408800 | O87: ='OPER EXP'!G108 -> 476933.3333 | P87: ='OPER EXP'!G112 -> 545066.6667 | Q87: ='OPER EXP'!G113 -> 1771466.667 | R87: =INCOME!E18 -> 790106.6667 | S87: =INCOME!F18 -> 1191933.333 | T87: =INCOME!G18 -> 1771466.667
A88: Total Operating Expenses | C88: =SUM(C85:C87) -> 676524.4444 | D88: =SUM(D85:D87) -> 845655.5556 | E88: 845655.5556 | F88: 930221.1111 | G88: =SUM(C88:F88) -> 3298056.667 | H88: 986756.9231 | I88: 1315675.897 | J88: 1480135.385 | K88: 1562365.128 | L88: =SUM(H88:K88) -> 5344933.333 | M88: 1576820.513 | N88: 1892184.615 | O88: 2207548.718 | P88: 2522912.821 | Q88: =SUM(M88:P88) -> 8199466.667 | R88: =INCOME!E19 -> 3298056.667 | S88: =INCOME!F19 -> 5344933.333 | T88: =INCOME!G19 -> 8199466.667
A90: EARNINGS FROM OPERATIONS | C90: =C82-C88 -> 154362.0024 | D90: =D82-D88 -> 192952.5031 | E90: =E82-E88 -> 192952.5031 | F90: =F82-F88 -> 212247.7534 | G90: =SUM(C90:F90) -> 752514.7619 | H90: =H82-H88 -> 289067.2527 | I90: =I82-I88 -> 385423.0037 | J90: =J82-J88 -> 433600.8791 | K90: =K82-K88 -> 457689.8168 | L90: =SUM(H90:K90) -> 1565780.952 | M90: =M82-M88 -> 724498.1685 | N90: =N82-N88 -> 869397.8022 | O90: =O82-O88 -> 1014297.436 | P90: =P82-P88 -> 1159197.07 | Q90: =SUM(M90:P90) -> 3767390.476 | R90: =INCOME!E22 -> 752514.7619 | S90: =INCOME!F22 -> 1565780.952 | T90: =INCOME!G22 -> 3767390.476
A92: EXTRAORDINARY INCOME / (EXPENSE) | C92: =EXTRA!E27 -> 0 | D92: =EXTRA!E31 -> 0 | E92: =EXTRA!E35 -> 0 | F92: =EXTRA!E39 -> 0 | G92: =EXTRA!E40 -> 0 | H92: =EXTRA!F27 -> 0 | I92: =EXTRA!F31 -> 0 | J92: =EXTRA!F35 -> 0 | K92: =EXTRA!F39 -> 0 | L92: =EXTRA!F40 -> 0 | M92: =EXTRA!G27 -> 0 | N92: =EXTRA!G31 -> 0 | O92: =EXTRA!G35 -> 0 | P92: =EXTRA!G39 -> 0 | Q92: =EXTRA!G40 -> 0 | R92: =INCOME!E24 -> 0 | S92: =INCOME!F24 -> 0 | T92: =INCOME!G24 -> 0
A94: EARNINGS BEFORE INTEREST & TAXES | C94: =C90+C92 -> 154362.0024 | D94: =D90+D92 -> 192952.5031 | E94: =E90+E92 -> 192952.5031 | F94: =F90+F92 -> 212247.7534 | G94: =SUM(C94:F94) -> 752514.7619 | H94: =H90+H92 -> 289067.2527 | I94: =I90+I92 -> 385423.0037 | J94: =J90+J92 -> 433600.8791 | K94: =K90+K92 -> 457689.8168 | L94: =SUM(H94:K94) -> 1565780.952 | M94: =M90+M92 -> 724498.1685 | N94: =N90+N92 -> 869397.8022 | O94: =O90+O92 -> 1014297.436 | P94: =P90+P92 -> 1159197.07 | Q94: =SUM(M94:P94) -> 3767390.476 | R94: =INCOME!E26 -> 752514.7619 | S94: =INCOME!F26 -> 1565780.952 | T94: =INCOME!G26 -> 3767390.476
A96: INTEREST INCOME / (EXPENSE) | C96: =$D$122 -> -12000 | D96: =$D$122 -> -12000 | E96: =$D$122 -> -12000 | F96: =$D$122 -> -12000 | G96: =SUM(C96:F96) -> -48000 | H96: =$D$123 -> -11250 | I96: =$D$123 -> -11250 | J96: =$D$123 -> -11250 | K96: =$D$123 -> -11250 | L96: =SUM(H96:K96) -> -45000 | M96: =$D$124 -> -3500 | N96: =$D$124 -> -3500 | O96: =$D$124 -> -3500 | P96: =$D$124 -> -3500 | Q96: =SUM(M96:P96) -> -14000 | R96: =INCOME!E28 -> -48000 | S96: =INCOME!F28 -> -45000 | T96: =INCOME!G28 -> -14000
A98: NET EARNINGS BEFORE TAXES | C98: =C94+C96 -> 142362.0024 | D98: 180952.5031 | E98: 180952.5031 | F98: 200247.7534 | G98: =SUM(C98:F98) -> 704514.7619 | H98: 277817.2527 | I98: 374173.0037 | J98: 422350.8791 | K98: 446439.8168 | L98: =SUM(H98:K98) -> 1520780.952 | M98: 720998.1685 | N98: 865897.8022 | O98: 1010797.436 | P98: 1155697.07 | Q98: =SUM(M98:P98) -> 3753390.476 | R98: =INCOME!E30 -> 704514.7619 | S98: =INCOME!F30 -> 1520780.952 | T98: =INCOME!G30 -> 3753390.476
A100: TAXES | C100: =-IF(TAXES!$E12>=0,IF(TAXES!$E12<=TAXES!$E11,(TAXES!$E9*'INCOME-MOS'!C98)*TAXES!$E12/TAXES!$E11,TAXES!$E9*'INCOME-MOS'!C98),0) -> 0 | D100: =-IF(TAXES!$E12>=0,IF(TAXES!$E12<=TAXES!$E11,(TAXES!$E9*'INCOME-MOS'!D98)*TAXES!$E12/TAXES!$E11,TAXES!$E9*'INCOME-MOS'!D98),0) -> 0 | E100: =-IF(TAXES!$E12>=0,IF(TAXES!$E12<=TAXES!$E11,(TAXES!$E9*'INCOME-MOS'!E98)*TAXES!$E12/TAXES!$E11,TAXES!$E9*'INCOME-MOS'!E98),0) -> 0 | F100: =-IF(TAXES!$E12>=0,IF(TAXES!$E12<=TAXES!$E11,(TAXES!$E9*'INCOME-MOS'!F98)*TAXES!$E12/TAXES!$E11,TAXES!$E9*'INCOME-MOS'!F98),0) -> 0 | G100: =SUM(C100:F100) -> 0 | H100: =-IF(TAXES!$F12>=0,IF(TAXES!$F12<=TAXES!$F11,(TAXES!$F9*'INCOME-MOS'!H98)*TAXES!$F12/TAXES!$F11,TAXES!$F9*'INCOME-MOS'!H98),0) -> -94635.90771 | I100: =-IF(TAXES!$F12>=0,IF(TAXES!$F12<=TAXES!$F11,(TAXES!$F9*'INCOME-MOS'!I98)*TAXES!$F12/TAXES!$F11,TAXES!$F9*'INCOME-MOS'!I98),0) -> -127458.6135 | J100: =-IF(TAXES!$F12>=0,IF(TAXES!$F12<=TAXES!$F11,(TAXES!$F9*'INCOME-MOS'!J98)*TAXES!$F12/TAXES!$F11,TAXES!$F9*'INCOME-MOS'!J98),0) -> -143869.9664 | K100: =-IF(TAXES!$F12>=0,IF(TAXES!$F12<=TAXES!$F11,(TAXES!$F9*'INCOME-MOS'!K98)*TAXES!$F12/TAXES!$F11,TAXES!$F9*'INCOME-MOS'!K98),0) -> -152075.6429 | L100: =SUM(H100:K100) -> -518040.1305 | M100: =-IF(TAXES!$G12>=0,IF(TAXES!$G12<=TAXES!$G11,(TAXES!$G9*'INCOME-MOS'!M98)*TAXES!$G12/TAXES!$G11,TAXES!$G9*'INCOME-MOS'!M98),0) -> -288399.2674 | N100: =-IF(TAXES!$G12>=0,IF(TAXES!$G12<=TAXES!$G11,(TAXES!$G9*'INCOME-MOS'!N98)*TAXES!$G12/TAXES!$G11,TAXES!$G9*'INCOME-MOS'!N98),0) -> -346359.1209 | O100: =-IF(TAXES!$G12>=0,IF(TAXES!$G12<=TAXES!$G11,(TAXES!$G9*'INCOME-MOS'!O98)*TAXES!$G12/TAXES!$G11,TAXES!$G9*'INCOME-MOS'!O98),0) -> -404318.9744 | P100: =-IF(TAXES!$G12>=0,IF(TAXES!$G12<=TAXES!$G11,(TAXES!$G9*'INCOME-MOS'!P98)*TAXES!$G12/TAXES!$G11,TAXES!$G9*'INCOME-MOS'!P98),0) -> -462278.8278 | Q100: =SUM(M100:P100) -> -1501356.19 | R100: =INCOME!E32 -> 0 | S100: =INCOME!F32 -> -518040.1305 | T100: =INCOME!G32 -> -1501356.19
A102: NET EARNINGS | C102: =C98+C100 -> 142362.0024 | D102: =D98+D100 -> 180952.5031 | E102: 180952.5031 | F102: 200247.7534 | G102: =SUM(C102:F102) -> 704514.7619 | H102: 183181.345 | I102: 246714.3902 | J102: 278480.9127 | K102: 294364.174 | L102: =SUM(H102:K102) -> 1002740.822 | M102: 432598.9011 | N102: 519538.6813 | O102: 606478.4615 | P102: 693418.2418 | Q102: =SUM(M102:P102) -> 2252034.286 | R102: =INCOME!E34 -> 704514.7619 | S102: =INCOME!F34 -> 1002740.822 | T102: =INCOME!G34 -> 2252034.286
H106: Do Not Delete
H107: Calculation Area
G108: Tax Loss Carry Forward
G109: Interest Income/(Expense)
A110: Tax Loss Carry Forward
A111: Cumulative Net Earning Before Taxes | C111: Month 1 | D111: Month 2 | E111: Month 3 | F111: Month 4 | G111: Month 5 | H111: Month 6 | I111: Month 7 | J111: Month 8 | K111: Month 9 | L111: Month 10 | M111: Month 11 | N111: Month 12
A112: Year 1 | C112: =C31 -> -25000 | D112: =C112+D31 -> -45000 | E112: -45000 | F112: -78356.55512 | G112: -131727.0433 | H112: -198440.1535 | I112: -265153.2638 | J112: -345208.9961 | K112: -445278.6614 | L112: -525334.3937 | M112: -612061.437 | N112: -712131.1024
A113: Year 2 | C113: =N112+C64 -> -725034.3167 | D113: =C113+D64 -> -737937.531 | E113: -754002.031 | F113: -768485.8881 | G113: -784550.3881 | H113: -800614.8881 | I113: -818260.031 | J113: -839066.4595 | K113: -859872.8881 | L113: -882259.9595 | M113: -906227.6738 | N113: -930195.3881
A115: Cumulative Net Earning Before Taxes | C115: Year 3 | H115: Year 4 | M115: Year 5
C116: Quarter 1 | D116: Quarter 2 | E116: Quarter 3 | F116: Quarter 4 | H116: Quarter 1 | I116: Quarter 2 | J116: Quarter 3 | K116: Quarter 4 | M116: Quarter 1 | N116: Quarter 2 | O116: Quarter 3 | P116: Quarter 4
C117: =N113+C98 -> -787833.3857 | D117: =C117+D98 -> -606880.8826 | E117: =D117+E98 -> -425928.3795 | F117: =E117+F98 -> -225680.6262 | H117: =F117+H98 -> 52136.62656 | I117: =H117+I98 -> 426309.6302 | J117: =I117+J98 -> 848660.5093 | K117: =J117+K98 -> 1295100.326 | M117: =K117+M98 -> 2016098.495 | N117: =M117+N98 -> 2881996.297 | O117: =N117+O98 -> 3892793.733 | P117: =O117+P98 -> 5048490.802
A119: Interest Income/(Expense) | C119: Total Year | D119: Per Month/Qtr
A120: Year 1 | C120: =FUNDING!C45-FUNDING!C41 -> 0 | D120: =C120/12 -> 0
A121: Year 2 | C121: =FUNDING!D45-FUNDING!D41 -> -60000 | D121: =C121/12 -> -5000
A122: Year 3 | C122: =FUNDING!E45-FUNDING!E41 -> -48000 | D122: =C122/4 -> -12000
A123: Year 4 | C123: =FUNDING!F45-FUNDING!F41 -> -45000 | D123: =C123/4 -> -11250
A124: Year 5 | C124: =FUNDING!G45-FUNDING!G41 -> -14000 | D124: =C124/4 -> -3500

Sheet CASHFLOW-MOS
A1: =COMPS!A1 -> XYZ Company
A2: Cash Flow Statememt
A3: Year 1 by Months
A4: ($)
A7: =A1 -> XYZ Company
A8: Cash Flow Statement | P8: Year 1
A9: Year 1 by Months | O9: Estimated | P9: Annual
C10: Month 1 | D10: Month 2 | E10: Month 3 | F10: Month 4 | G10: Month 5 | H10: Month 6 | I10: Month 7 | J10: Month 8 | K10: Month 9 | L10: Month 10 | M10: Month 11 | N10: Month 12 | O10: Year 1 | P10: Projection
A11: OPERATING ACTIVITIES
A12: Net Earnings | C12: ='INCOME-MOS'!C35 -> -25000 | D12: ='INCOME-MOS'!D35 -> -20000 | E12: ='INCOME-MOS'!E35 -> 0 | F12: ='INCOME-MOS'!F35 -> -33356.55512 | G12: ='INCOME-MOS'!G35 -> -53370.48819 | H12: ='INCOME-MOS'!H35 -> -66713.11024 | I12: ='INCOME-MOS'!I35 -> -66713.11024 | J12: ='INCOME-MOS'!J35 -> -80055.73229 | K12: ='INCOME-MOS'!K35 -> -100069.6654 | L12: ='INCOME-MOS'!L35 -> -80055.73229 | M12: ='INCOME-MOS'!M35 -> -86727.04331 | N12: ='INCOME-MOS'!N35 -> -100069.6654 | O12: =SUM(C12:N12) -> -712131.1024 | P12: =CASHFLOW!C7 -> -712131.1024
A13: Depreciation | C13: ='PROP & EQUIP'!$C$47/12 -> 3615.079365 | D13: ='PROP & EQUIP'!$C$47/12 -> 3615.079365 | E13: ='PROP & EQUIP'!$C$47/12 -> 3615.079365 | F13: ='PROP & EQUIP'!$C$47/12 -> 3615.079365 | G13: ='PROP & EQUIP'!$C$47/12 -> 3615.079365 | H13: ='PROP & EQUIP'!$C$47/12 -> 3615.079365 | I13: ='PROP & EQUIP'!$C$47/12 -> 3615.079365 | J13: ='PROP & EQUIP'!$C$47/12 -> 3615.079365 | K13: ='PROP & EQUIP'!$C$47/12 -> 3615.079365 | L13: ='PROP & EQUIP'!$C$47/12 -> 3615.079365 | M13: ='PROP & EQUIP'!$C$47/12 -> 3615.079365 | N13: ='PROP & EQUIP'!$C$47/12 -> 3615.079365 | O13: =SUM(C13:N13) -> 43380.95238 | P13: =CASHFLOW!C8 -> 43380.95238
A14: Working Capital Changes
A15: (Increase)/Decrease Accounts Receivable | C15: =-WORKCAP!C67 -> 0 | D15: =-(WORKCAP!$C68-WORKCAP!$C67) -> 0 | E15: =-(WORKCAP!$C69-WORKCAP!$C68) -> 0 | F15: =-(WORKCAP!$C70-WORKCAP!$C69) -> -49800 | G15: =-(WORKCAP!$C71-WORKCAP!$C70) -> -29880 | H15: =-(WORKCAP!$C72-WORKCAP!$C71) -> -19920 | I15: =-(WORKCAP!$C73-WORKCAP!$C72) -> 0 | J15: =-(WORKCAP!$C74-WORKCAP!$C73) -> -19920 | K15: =-(WORKCAP!$C75-WORKCAP!$C74) -> -29880 | L15: =-(WORKCAP!$C76-WORKCAP!$C75) -> 29880 | M15: =-(WORKCAP!$C77-WORKCAP!$C76) -> -9960 | N15: =-(WORKCAP!$C78-WORKCAP!$C77) -> -19920 | O15: =SUM(C15:N15) -> -149400 | P15: =CASHFLOW!C10 -> -149400
A16: (Increase)/Decrease Inventories | C16: =-WORKCAP!C84 -> 0 | D16: =-(WORKCAP!$C85-WORKCAP!$C84) -> 0 | E16: =-(WORKCAP!$C86-WORKCAP!$C85) -> 0 | F16: =-(WORKCAP!$C87-WORKCAP!$C86) -> -49800 | G16: =-(WORKCAP!$C88-WORKCAP!$C87) -> -29880 | H16: =-(WORKCAP!$C89-WORKCAP!$C88) -> -19920 | I16: =-(WORKCAP!$C90-WORKCAP!$C89) -> 0 | J16: =-(WORKCAP!$C91-WORKCAP!$C90) -> -19920 | K16: =-(WORKCAP!$C92-WORKCAP!$C91) -> -29880 | L16: =-(WORKCAP!$C93-WORKCAP!$C92) -> 29880 | M16: =-(WORKCAP!$C94-WORKCAP!$C93) -> -9960 | N16: =-(WORKCAP!$C95-WORKCAP!$C94) -> -19920 | O16: =SUM(C16:N16) -> -149400 | P16: =CASHFLOW!C11 -> -149400
A17: (Increase)/Decrease Other Current Assets | C17: =-WORKCAP!$C101 -> 0 | D17: =-(WORKCAP!$C102-WORKCAP!$C101) -> 0 | E17: =-(WORKCAP!$C103-WORKCAP!$C102) -> 0 | F17: =-(WORKCAP!$C104-WORKCAP!$C103) -> -6000 | G17: =-(WORKCAP!$C105-WORKCAP!$C104) -> -3600 | H17: =-(WORKCAP!$C106-WORKCAP!$C105) -> -2400 | I17: =-(WORKCAP!$C107-WORKCAP!$C106) -> 0 | J17: =-(WORKCAP!$C108-WORKCAP!$C107) -> -2400 | K17: =-(WORKCAP!$C109-WORKCAP!$C108) -> -3600 | L17: =-(WORKCAP!$C110-WORKCAP!$C109) -> 3600 | M17: =-(WORKCAP!$C111-WORKCAP!$C110) -> -1200 | N17: =-(WORKCAP!$C112-WORKCAP!$C111) -> -2400 | O17: =SUM(C17:N17) -> -18000 | P17: =CASHFLOW!C12 -> -18000
A18: Increase/(Decrease) Accts Pay & Accrd Expenses | C18: =WORKCAP!$C118 -> 0 | D18: =(WORKCAP!$C119-WORKCAP!$C118) -> 0.087 | E18: =(WORKCAP!$C120-WORKCAP!$C119) -> 31.236828 | F18: =(WORKCAP!$C121-WORKCAP!$C120) -> 49968.67617 | G18: =(WORKCAP!$C122-WORKCAP!$C121) -> 32200 | H18: =(WORKCAP!$C123-WORKCAP!$C122) -> 21320 | I18: =(WORKCAP!$C124-WORKCAP!$C123) -> 880 | J18: =(WORKCAP!$C125-WORKCAP!$C124) -> 20000 | K18: =(WORKCAP!$C126-WORKCAP!$C125) -> 30880 | L18: =(WORKCAP!$C127-WORKCAP!$C126) -> -28680 | M18: =(WORKCAP!$C128-WORKCAP!$C127) -> 8680 | N18: =(WORKCAP!$C129-WORKCAP!$C128) -> 20440 | O18: =SUM(C18:N18) -> 155720 | P18: =CASHFLOW!C13 -> 155720
A19: Increase/(Decrease) Other Current Liab | C19: =WORKCAP!C135 -> 0 | D19: =(WORKCAP!$C136-WORKCAP!$C135) -> 0 | E19: =(WORKCAP!$C137-WORKCAP!$C136) -> 0 | F19: =(WORKCAP!$C138-WORKCAP!$C137) -> 6000 | G19: =(WORKCAP!$C139-WORKCAP!$C138) -> 3600 | H19: =(WORKCAP!$C140-WORKCAP!$C139) -> 2400 | I19: =(WORKCAP!$C141-WORKCAP!$C140) -> 0 | J19: =(WORKCAP!$C142-WORKCAP!$C141) -> 2400 | K19: =(WORKCAP!$C143-WORKCAP!$C142) -> 3600 | L19: =(WORKCAP!$C144-WORKCAP!$C143) -> -3600 | M19: =(WORKCAP!$C145-WORKCAP!$C144) -> 1200 | N19: =(WORKCAP!$C146-WORKCAP!$C145) -> 2400 | O19: =SUM(C19:N19) -> 18000 | P19: =CASHFLOW!C14 -> 18000
A20: Net Cash Provided/(Used) by Operating Activities | C20: =SUM(C12:C19) -> -21384.92063 | D20: -16384.83363 | E20: 3646.316193 | F20: -79372.79958 | G20: -77315.40883 | H20: -81618.03087 | I20: -62218.03087 | J20: -96280.65292 | K20: -125334.586 | L20: -45360.65292 | M20: -94351.96394 | N20: -115854.586 | O20: -811830.15 | P20: =CASHFLOW!C15 -> -811830.15
A22: INVESTING ACTIVITIES
A23: Property & Equipment | C23: =-'PROP & EQUIP'!$C61 -> -50000 | D23: =-'PROP & EQUIP'!$C62 -> -100000 | E23: =-'PROP & EQUIP'!$C63 -> -50000 | F23: =-'PROP & EQUIP'!$C65 -> -40000 | G23: =-'PROP & EQUIP'!$C66 -> 0 | H23: =-'PROP & EQUIP'!$C67 -> 0 | I23: =-'PROP & EQUIP'!$C69 -> -40000 | J23: =-'PROP & EQUIP'!$C70 -> 0 | K23: =-'PROP & EQUIP'!$C71 -> 0 | L23: =-'PROP & EQUIP'!$C73 -> 0 | M23: =-'PROP & EQUIP'!$C74 -> 0 | N23: =-'PROP & EQUIP'!$C75 -> 0 | O23: =SUM(C23:N23) -> -280000 | P23: =CASHFLOW!C18 -> -280000
A24: Other | O24: =SUM(C24:N24) -> 0 | P24: =CASHFLOW!C19 -> 0
A25: Net Cash Used in Investing Activities | C25: =SUM(C23:C24) -> -50000 | D25: =SUM(D23:D24) -> -100000 | E25: -50000 | F25: -40000 | G25: 0 | H25: 0 | I25: -40000 | J25: 0 | K25: 0 | L25: 0 | M25: 0 | N25: 0 | O25: -280000 | P25: =CASHFLOW!C20 -> -280000
A27: FINANCING ACTIVITIES
A28: Increase/(Decrease) Short Term Debt | C28: =IF(FUNDING!C19>=0,FUNDING!C19,0) -> 0 | N28: =IF(FUNDING!C19<0,FUNDING!C19,0) -> 0 | O28: =SUM(C28:N28) -> 0 | P28: =CASHFLOW!C23 -> 0
A29: Increase/(Decrease) Curr. Portion LTD | C29: =IF(FUNDING!C27>=0,FUNDING!C27,0) -> 0 | N29: =IF(FUNDING!C27<0,FUNDING!C27,0) -> 0 | O29: =SUM(C29:N29) -> 0 | P29: =CASHFLOW!C24 -> 0
A30: Increase/(Decrease) Long Term Debt | C30: =IF(FUNDING!C28>=0,FUNDING!C28,0) -> 0 | N30: =IF(FUNDING!C28<0,FUNDING!C28,0) -> 0 | O30: 0 | P30: =CASHFLOW!C25 -> 0
A31: Increase/(Decrease) Common Stock | C31: =IF(FUNDING!C9>=0,FUNDING!C9,0) -> 0 | N31: =IF(FUNDING!C9<0,FUNDING!C9,0) -> 0 | O31: 0 | P31: =CASHFLOW!C26 -> 0
A32: Increase/(Decrease) Preferred Stock | C32: =IF(FUNDING!C14>=0,FUNDING!C14,0) -> 0 | N32: =IF(FUNDING!C14<0,FUNDING!C14,0) -> 0 | O32: 0 | P32: =CASHFLOW!C27 -> 0
A33: Dividends Declared | N33: =-FUNDING!C49 -> 0 | O33: 0 | P33: =CASHFLOW!C28 -> 0
A34: Net Cash Provided / (Used) by Financing | C34: =SUM(C28:C33) -> 0 | D34: =SUM(D28:D33) -> 0 | E34: 0 | F34: 0 | G34: 0 | H34: 0 | I34: 0 | J34: 0 | K34: 0 | L34: 0 | M34: 0 | N34: 0 | O34: 0 | P34: =CASHFLOW!C29 -> 0
A36: INCREASE/(DECREASE) IN CASH | C36: =C20+C25+C34 -> -71384.92063 | D36: =D20+D25+D34 -> -116384.8336 | E36: -46353.68381 | F36: -119372.7996 | G36: -77315.40883 | H36: -81618.03087 | I36: -102218.0309 | J36: -96280.65292 | K36: -125334.586 | L36: -45360.65292 | M36: -94351.96394 | N36: -115854.586 | O36: =SUM(C36:N36) -> -1091830.15 | P36: =CASHFLOW!C31 -> -1091830.15
A38: CASH AT BEGINNING OF PERIOD | C38: =BALANCE!B9 -> 1500000 | D38: =C39 -> 1428615.079 | E38: =D39 -> 1312230.246 | F38: 1265876.562 | G38: 1146503.762 | H38: 1069188.354 | I38: 987570.3226 | J38: 885352.2918 | K38: 789071.6388 | L38: 663737.0529 | M38: 618376.3999 | N38: 524024.436 | P38: =CASHFLOW!C33 -> 1500000
A39: CASH AT END OF PERIOD | B39: =BALANCE!Cash_Begin ->  | C39: =C38+C36 -> 1428615.079 | D39: =D38+D36 -> 1312230.246 | E39: =E38+E36 -> 1265876.562 | F39: 1146503.762 | G39: 1069188.354 | H39: 987570.3226 | I39: 885352.2918 | J39: 789071.6388 | K39: 663737.0529 | L39: 618376.3999 | M39: 524024.436 | N39: 408169.85 | P39: =CASHFLOW!C34 -> 408169.85
A43: =A1 -> XYZ Company
A44: Cash Flow Statement | P44: Year 2
A45: Year 2 by Months | O45: Estimated | P45: Annual
C46: Month 1 | D46: Month 2 | E46: Month 3 | F46: Month 4 | G46: Month 5 | H46: Month 6 | I46: Month 7 | J46: Month 8 | K46: Month 9 | L46: Month 10 | M46: Month 11 | N46: Month 12 | O46: Year 2 | P46: Projection
A47: OPERATING ACTIVITIES
A48: Net Earnings | C48: ='INCOME-MOS'!C68 -> -12903.21429 | D48: ='INCOME-MOS'!D68 -> -12903.21429 | E48: ='INCOME-MOS'!E68 -> -16064.5 | F48: ='INCOME-MOS'!F68 -> -14483.85714 | G48: ='INCOME-MOS'!G68 -> -16064.5 | H48: ='INCOME-MOS'!H68 -> -16064.5 | I48: ='INCOME-MOS'!I68 -> -17645.14286 | J48: ='INCOME-MOS'!J68 -> -20806.42857 | K48: ='INCOME-MOS'!K68 -> -20806.42857 | L48: ='INCOME-MOS'!L68 -> -22387.07143 | M48: ='INCOME-MOS'!M68 -> -23967.71429 | N48: ='INCOME-MOS'!N68 -> -23967.71429 | O48: =SUM(C48:N48) -> -218064.2857 | P48: =CASHFLOW!D7 -> -218064.2857
A49: Depreciation | C49: ='PROP & EQUIP'!$D$47/12 -> 10976.19048 | D49: ='PROP & EQUIP'!$D$47/12 -> 10976.19048 | E49: ='PROP & EQUIP'!$D$47/12 -> 10976.19048 | F49: ='PROP & EQUIP'!$D$47/12 -> 10976.19048 | G49: ='PROP & EQUIP'!$D$47/12 -> 10976.19048 | H49: ='PROP & EQUIP'!$D$47/12 -> 10976.19048 | I49: ='PROP & EQUIP'!$D$47/12 -> 10976.19048 | J49: ='PROP & EQUIP'!$D$47/12 -> 10976.19048 | K49: ='PROP & EQUIP'!$D$47/12 -> 10976.19048 | L49: ='PROP & EQUIP'!$D$47/12 -> 10976.19048 | M49: ='PROP & EQUIP'!$D$47/12 -> 10976.19048 | N49: ='PROP & EQUIP'!$D$47/12 -> 10976.19048 | O49: =SUM(C49:N49) -> 131714.2857 | P49: =CASHFLOW!D8 -> 131714.2857
A50: Working Capital Changes | P50: =CASHFLOW!D9 -> 0
A51: (Increase)/Decrease Accounts Receivable | C51: =-(WORKCAP!$D67-WORKCAP!$C78) -> -112050 | D51: =-(WORKCAP!$D68-WORKCAP!$D67) -> 0 | E51: =-(WORKCAP!$D69-WORKCAP!$D68) -> -104580 | F51: =-(WORKCAP!$D70-WORKCAP!$D69) -> 52290 | G51: =-(WORKCAP!$D71-WORKCAP!$D70) -> -52290 | H51: =-(WORKCAP!$D72-WORKCAP!$D71) -> 0 | I51: =-(WORKCAP!$D73-WORKCAP!$D72) -> -52290 | J51: =-(WORKCAP!$D74-WORKCAP!$D73) -> -104580 | K51: =-(WORKCAP!$D75-WORKCAP!$D74) -> 0 | L51: =-(WORKCAP!$D76-WORKCAP!$D75) -> -52290 | M51: =-(WORKCAP!$D77-WORKCAP!$D76) -> -52290 | N51: =-(WORKCAP!$D78-WORKCAP!$D77) -> 0 | O51: =SUM(C51:N51) -> -478080 | P51: =CASHFLOW!D10 -> -478080
A52: (Increase)/Decrease Inventories | C52: =-(WORKCAP!$D84-WORKCAP!$C95) -> -112050 | D52: =-(WORKCAP!$D85-WORKCAP!$D84) -> 0 | E52: =-(WORKCAP!$D86-WORKCAP!$D85) -> -104580 | F52: =-(WORKCAP!$D87-WORKCAP!$D86) -> 52290 | G52: =-(WORKCAP!$D88-WORKCAP!$D87) -> -52290 | H52: =-(WORKCAP!$D89-WORKCAP!$D88) -> 0 | I52: =-(WORKCAP!$D90-WORKCAP!$D89) -> -52290 | J52: =-(WORKCAP!$D91-WORKCAP!$D90) -> -104580 | K52: =-(WORKCAP!$D92-WORKCAP!$D91) -> 0 | L52: =-(WORKCAP!$D93-WORKCAP!$D92) -> -52290 | M52: =-(WORKCAP!$D94-WORKCAP!$D93) -> -52290 | N52: =-(WORKCAP!$D95-WORKCAP!$D94) -> 0 | O52: -478080 | P52: =CASHFLOW!D11 -> -478080
A53: (Increase)/Decrease Other Current Assets | C53: =-(WORKCAP!$D101-WORKCAP!$C112) -> -13500 | D53: =-(WORKCAP!$D102-WORKCAP!$D101) -> 0 | E53: =-(WORKCAP!$D103-WORKCAP!$D102) -> -12600 | F53: =-(WORKCAP!$D104-WORKCAP!$D103) -> 6300 | G53: =-(WORKCAP!$D105-WORKCAP!$D104) -> -6300 | H53: =-(WORKCAP!$D106-WORKCAP!$D105) -> 0 | I53: =-(WORKCAP!$D107-WORKCAP!$D106) -> -6300 | J53: =-(WORKCAP!$D108-WORKCAP!$D107) -> -12600 | K53: =-(WORKCAP!$D109-WORKCAP!$D108) -> 0 | L53: =-(WORKCAP!$D110-WORKCAP!$D109) -> -6300 | M53: =-(WORKCAP!$D111-WORKCAP!$D110) -> -6300 | N53: =-(WORKCAP!$D112-WORKCAP!$D111) -> 0 | O53: -57600 | P53: =CASHFLOW!D12 -> -57600
A54: Increase/(Decrease) Accts Pay & Accrd Expenses | C54: =(WORKCAP!$D118-WORKCAP!$C129) -> -149120 | D54: =(WORKCAP!$D119-WORKCAP!$D118) -> -6599.913 | E54: =(WORKCAP!$D120-WORKCAP!$D119) -> 31.236828 | F54: =(WORKCAP!$D121-WORKCAP!$D120) -> 331138.6762 | G54: =(WORKCAP!$D122-WORKCAP!$D121) -> 50190 | H54: =(WORKCAP!$D123-WORKCAP!$D122) -> 2310 | I54: =(WORKCAP!$D124-WORKCAP!$D123) -> 52500 | J54: =(WORKCAP!$D125-WORKCAP!$D124) -> 107310 | K54: =(WORKCAP!$D126-WORKCAP!$D125) -> 4620 | L54: =(WORKCAP!$D127-WORKCAP!$D126) -> 52500 | M54: =(WORKCAP!$D128-WORKCAP!$D127) -> 54810 | N54: =(WORKCAP!$D129-WORKCAP!$D128) -> 2310 | O54: 502000 | P54: =CASHFLOW!D13 -> 502000
A55: Increase/(Decrease) Other Current Liab | C55: =(WORKCAP!$D135-WORKCAP!$C146) -> 13500 | D55: =(WORKCAP!$D136-WORKCAP!$D135) -> 0 | E55: =(WORKCAP!$D137-WORKCAP!$D136) -> 12600 | F55: =(WORKCAP!$D138-WORKCAP!$D137) -> -6300 | G55: =(WORKCAP!$D139-WORKCAP!$D138) -> 6300 | H55: =(WORKCAP!$D140-WORKCAP!$D139) -> 0 | I55: =(WORKCAP!$D141-WORKCAP!$D140) -> 6300 | J55: =(WORKCAP!$D142-WORKCAP!$D141) -> 12600 | K55: =(WORKCAP!$D143-WORKCAP!$D142) -> 0 | L55: =(WORKCAP!$D144-WORKCAP!$D143) -> 6300 | M55: =(WORKCAP!$D145-WORKCAP!$D144) -> 6300 | N55: =(WORKCAP!$D146-WORKCAP!$D145) -> 0 | O55: 57600 | P55: =CASHFLOW!D14 -> 57600
A56: Net Cash Provided/(Used) by Operating Activities | C56: =SUM(C48:C55) -> -375147.0238 | D56: -8526.93681 | E56: -214217.0727 | F56: 432211.0095 | G56: -59478.30952 | H56: -2778.309524 | I56: -58748.95238 | J56: -111680.2381 | K56: -5210.238095 | L56: -63490.88095 | M56: -62761.52381 | N56: -10681.52381 | O56: -540510 | P56: =CASHFLOW!D15 -> -540510
P57: =CASHFLOW!D16 -> 0
A58: INVESTING ACTIVITIES | P58: =CASHFLOW!D17 -> 0
A59: Property & Equipment | C59: =-'PROP & EQUIP'!$D61 -> -100000 | D59: =-'PROP & EQUIP'!$D62 -> -100000 | E59: =-'PROP & EQUIP'!$D63 -> 0 | F59: =-'PROP & EQUIP'!$D65 -> 0 | G59: =-'PROP & EQUIP'!$D66 -> 0 | H59: =-'PROP & EQUIP'!$D67 -> -100000 | I59: =-'PROP & EQUIP'!$D69 -> 0 | J59: =-'PROP & EQUIP'!$D70 -> 0 | K59: =-'PROP & EQUIP'!$D71 -> -100000 | L59: =-'PROP & EQUIP'!$D73 -> 0 | M59: =-'PROP & EQUIP'!$D74 -> 0 | N59: =-'PROP & EQUIP'!$D75 -> -100000 | O59: =SUM(C59:N59) -> -500000 | P59: =CASHFLOW!D18 -> -500000
A60: Other | O60: =SUM(C60:N60) -> 0 | P60: =CASHFLOW!D19 -> 0
A61: Net Cash Used in Investing Activities | C61: =SUM(C59:C60) -> -100000 | D61: -100000 | E61: 0 | F61: 0 | G61: 0 | H61: -100000 | I61: 0 | J61: 0 | K61: -100000 | L61: 0 | M61: 0 | N61: -100000 | O61: =SUM(C61:N61) -> -500000 | P61: =CASHFLOW!D20 -> -500000
P62: =CASHFLOW!D21 -> 0
A63: FINANCING ACTIVITIES | P63: =CASHFLOW!D22 -> 0
A64: Increase/(Decrease) Short Term Debt | C64: =IF(FUNDING!D19>=0,FUNDING!D19,0) -> 0 | N64: =IF(FUNDING!D19<0,FUNDING!D19,0) -> 0 | O64: =SUM(C64:N64) -> 0 | P64: =CASHFLOW!D23 -> 0
A65: Increase/(Decrease) Curr. Portion LTD | C65: =IF(FUNDING!D27>=0,FUNDING!D27,0) -> 100000 | N65: =IF(FUNDING!D27<0,FUNDING!D27,0) -> 0 | O65: 100000 | P65: =CASHFLOW!D24 -> 100000
A66: Increase/(Decrease) Long Term Debt | C66: =IF(FUNDING!D28>=0,FUNDING!D28,0) -> 400000 | N66: =IF(FUNDING!D28<0,FUNDING!D28,0) -> 0 | O66: 400000 | P66: =CASHFLOW!D25 -> 400000
A67: Increase/(Decrease) Common Stock | C67: =IF(FUNDING!D9>=0,FUNDING!D9,0) -> 0 | N67: =IF(FUNDING!D9<0,FUNDING!CD9,0) -> 0 | O67: 0 | P67: =CASHFLOW!D26 -> 0
A68: Increase/(Decrease) Preferred Stock | C68: =IF(FUNDING!D14>=0,FUNDING!D14,0) -> 500000 | N68: =IF(FUNDING!D14<0,FUNDING!D14,0) -> 0 | O68: 500000 | P68: =CASHFLOW!D27 -> 500000
A69: Dividends Declared | N69: =-FUNDING!D49 -> 0 | O69: 0 | P69: =CASHFLOW!D28 -> 0
A70: Net Cash Provided / (Used) by Financing | C70: =SUM(C64:C69) -> 1000000 | D70: 0 | E70: 0 | F70: 0 | G70: 0 | H70: 0 | I70: 0 | J70: 0 | K70: 0 | L70: 0 | M70: 0 | N70: 0 | O70: 1000000 | P70: =CASHFLOW!D29 -> 1000000
P71: =CASHFLOW!D30 -> 0
A72: INCREASE/(DECREASE) IN CASH | C72: =C56+C61+C70 -> 524852.9762 | D72: =D56+D61+D70 -> -108526.9368 | E72: -214217.0727 | F72: 432211.0095 | G72: -59478.30952 | H72: -102778.3095 | I72: -58748.95238 | J72: -111680.2381 | K72: -105210.2381 | L72: -63490.88095 | M72: -62761.52381 | N72: -110681.5238 | O72: =SUM(C72:N72) -> -40510 | P72: =CASHFLOW!D31 -> -40510
A74: CASH AT BEGINNING OF PERIOD | C74: =N39 -> 408169.85 | D74: =C75 -> 933022.8262 | E74: 824495.8894 | F74: 610278.8167 | G74: 1042489.826 | H74: 983011.5167 | I74: 880233.2071 | J74: 821484.2548 | K74: 709804.0167 | L74: 604593.7786 | M74: 541102.8976 | N74: 478341.3738 | P74: =CASHFLOW!D33 -> 408169.85
A75: CASH AT END OF PERIOD | B75: =BALANCE!Cash_Begin ->  | C75: =C74+C72 -> 933022.8262 | D75: 824495.8894 | E75: 610278.8167 | F75: 1042489.826 | G75: 983011.5167 | H75: 880233.2071 | I75: 821484.2548 | J75: 709804.0167 | K75: 604593.7786 | L75: 541102.8976 | M75: 478341.3738 | N75: 367659.85 | P75: =CASHFLOW!D34 -> 367659.85
A78: =A1 -> XYZ Company
A79: Cash Flow Statement | R79: Year 3 | S79: Year 4 | T79: Year 5
A80: Years 3, 4 & 5 by Quarters | R80: Annual | S80: Annual | T80: Annual
C81: Year 3 | H81: Year 4 | M81: Year 5 | R81: Projection | S81: Projection | T81: Projection
C82: 1st Qtr | D82: 2nd Qrtr | E82: 3rd Qrtr | F82: 4th Qrtr | G82: Total | H82: 1st Qtr | I82: 2nd Qtr | J82: 3rd Qtr | K82: 4th Qtr | L82: Total | M82: 1st Qtr | N82: 2nd Qtr | O82: 3rd Qtr | P82: 4th Qtr | Q82: Total
A83: OPERATING ACTIVITIES
A84: Net Earnings | C84: ='INCOME-MOS'!C102 -> 142362.0024 | D84: ='INCOME-MOS'!D102 -> 180952.5031 | E84: ='INCOME-MOS'!E102 -> 180952.5031 | F84: ='INCOME-MOS'!F102 -> 200247.7534 | G84: =SUM(C84:F84) -> 704514.7619 | H84: ='INCOME-MOS'!H102 -> 183181.345 | I84: ='INCOME-MOS'!I102 -> 246714.3902 | J84: ='INCOME-MOS'!J102 -> 278480.9127 | K84: ='INCOME-MOS'!K102 -> 294364.174 | L84: =SUM(H84:K84) -> 1002740.822 | M84: ='INCOME-MOS'!M102 -> 432598.9011 | N84: ='INCOME-MOS'!N102 -> 519538.6813 | O84: ='INCOME-MOS'!O102 -> 606478.4615 | P84: ='INCOME-MOS'!P102 -> 693418.2418 | Q84: =SUM(M84:P84) -> 2252034.286 | R84: =CASHFLOW!E7 -> 704514.7619 | S84: =CASHFLOW!F7 -> 1002740.822 | T84: =CASHFLOW!G7 -> 2252034.286
A85: Depreciation | C85: ='PROP & EQUIP'!$E$47/4 -> 61023.80952 | D85: ='PROP & EQUIP'!$E$47/4 -> 61023.80952 | E85: ='PROP & EQUIP'!$E$47/4 -> 61023.80952 | F85: ='PROP & EQUIP'!$E$47/4 -> 61023.80952 | G85: =SUM(C85:F85) -> 244095.2381 | H85: ='PROP & EQUIP'!$F$47/4 -> 93404.7619 | I85: ='PROP & EQUIP'!$F$47/4 -> 93404.7619 | J85: ='PROP & EQUIP'!$F$47/4 -> 93404.7619 | K85: ='PROP & EQUIP'!$F$47/4 -> 93404.7619 | L85: =SUM(H85:K85) -> 373619.0476 | M85: ='PROP & EQUIP'!$G$47/4 -> 127452.381 | N85: ='PROP & EQUIP'!$G$47/4 -> 127452.381 | O85: ='PROP & EQUIP'!$G$47/4 -> 127452.381 | P85: ='PROP & EQUIP'!$G$47/4 -> 127452.381 | Q85: =SUM(M85:P85) -> 509809.5238 | R85: =CASHFLOW!E8 -> 244095.2381 | S85: =CASHFLOW!F8 -> 373619.0476 | T85: =CASHFLOW!G8 -> 509809.5238
A86: Working Capital Changes
A87: (Increase)/Decrease Accounts Receivable | C87: =-(WORKCAP!$E69-WORKCAP!$D78) -> -36520 | D87: =-(WORKCAP!$E72-WORKCAP!$E69) -> -166000 | E87: =-(WORKCAP!$E75-WORKCAP!$E72) -> 0 | F87: =-(WORKCAP!$E78-WORKCAP!$E75) -> -83000 | G87: =SUM(C87:F87) -> -285520 | H87: =-(WORKCAP!$F69-WORKCAP!$E78) -> -83000 | I87: =-(WORKCAP!$F72-WORKCAP!$F69) -> -332000 | J87: =-(WORKCAP!$F75-WORKCAP!$F72) -> -166000 | K87: =-(WORKCAP!$F78-WORKCAP!$F75) -> -83000 | L87: =SUM(H87:K87) -> -664000 | M87: =-(WORKCAP!$G69-WORKCAP!$F78) -> -83000 | N87: =-(WORKCAP!$G72-WORKCAP!$G69) -> -332000 | O87: =-(WORKCAP!$G75-WORKCAP!$G72) -> -332000 | P87: =-(WORKCAP!$G78-WORKCAP!$G75) -> -332000 | Q87: =SUM(M87:P87) -> -1079000 | R87: =CASHFLOW!E10 -> -285520 | S87: =CASHFLOW!F10 -> -664000 | T87: =CASHFLOW!G10 -> -1079000
A88: (Increase)/Decrease Inventories | C88: =-(WORKCAP!E86-WORKCAP!D95) -> 91480 | D88: =-(WORKCAP!E89-WORKCAP!E86) -> -134000 | E88: =-(WORKCAP!E92-WORKCAP!E89) -> 0 | F88: =-(WORKCAP!E95-WORKCAP!E92) -> -67000 | G88: -109520 | H88: =-(WORKCAP!F86-WORKCAP!E95) -> -67000 | I88: =-(WORKCAP!F89-WORKCAP!F86) -> -268000 | J88: =-(WORKCAP!F92-WORKCAP!F89) -> -134000 | K88: =-(WORKCAP!F95-WORKCAP!F92) -> -67000 | L88: -536000 | M88: =-(WORKCAP!G86-WORKCAP!F95) -> -67000 | N88: =-(WORKCAP!G89-WORKCAP!G86) -> -268000 | O88: =-(WORKCAP!G92-WORKCAP!G89) -> -268000 | P88: =-(WORKCAP!G95-WORKCAP!G92) -> -268000 | Q88: -871000 | R88: =CASHFLOW!E11 -> -109520 | S88: =CASHFLOW!F11 -> -536000 | T88: =CASHFLOW!G11 -> -871000
A89: (Increase)/Decrease Other Current Assets | C89: =-(WORKCAP!E103-WORKCAP!D112) -> -4400 | D89: =-(WORKCAP!E106-WORKCAP!E103) -> -20000 | E89: =-(WORKCAP!E109-WORKCAP!E106) -> 0 | F89: =-(WORKCAP!E112-WORKCAP!E109) -> -10000 | G89: -34400 | H89: =-(WORKCAP!F103-WORKCAP!E112) -> -10000 | I89: =-(WORKCAP!F106-WORKCAP!F103) -> -40000 | J89: =-(WORKCAP!F109-WORKCAP!F106) -> -20000 | K89: =-(WORKCAP!F112-WORKCAP!F109) -> -10000 | L89: -80000 | M89: =-(WORKCAP!G103-WORKCAP!F112) -> -10000 | N89: =-(WORKCAP!G106-WORKCAP!G103) -> -40000 | O89: =-(WORKCAP!G109-WORKCAP!G106) -> -40000 | P89: =-(WORKCAP!G112-WORKCAP!G109) -> -40000 | Q89: -130000 | R89: =CASHFLOW!E12 -> -34400 | S89: =CASHFLOW!F12 -> -80000 | T89: =CASHFLOW!G12 -> -130000
A90: Increase/(Decrease) Accts Pay & Accrd Expenses | C90: =(WORKCAP!E120-WORKCAP!D129) -> 38280 | D90: =(WORKCAP!E123-WORKCAP!E120) -> 174000 | E90: =(WORKCAP!E126-WORKCAP!E123) -> 0 | F90: =(WORKCAP!E129-WORKCAP!E126) -> 87000 | G90: 299280 | H90: =(WORKCAP!F120-WORKCAP!E129) -> 87000 | I90: =(WORKCAP!F123-WORKCAP!F120) -> 348000 | J90: =(WORKCAP!F126-WORKCAP!F123) -> 174000 | K90: =(WORKCAP!F129-WORKCAP!F126) -> 87000 | L90: 696000 | M90: =(WORKCAP!G120-WORKCAP!F129) -> 87000 | N90: =(WORKCAP!G123-WORKCAP!G120) -> 348000 | O90: =(WORKCAP!G126-WORKCAP!G123) -> 348000 | P90: =(WORKCAP!G129-WORKCAP!G126) -> 348000 | Q90: 1131000 | R90: =CASHFLOW!E13 -> 299280 | S90: =CASHFLOW!F13 -> 696000 | T90: =CASHFLOW!G13 -> 1131000
A91: Increase/(Decrease) Other Current Liab | C91: =(WORKCAP!E137-WORKCAP!D146) -> 4400 | D91: =(WORKCAP!E140-WORKCAP!E137) -> 20000 | E91: =(WORKCAP!E143-WORKCAP!E140) -> 0 | F91: =(WORKCAP!E146-WORKCAP!E143) -> 10000 | G91: 34400 | H91: =(WORKCAP!F137-WORKCAP!E146) -> 10000 | I91: =(WORKCAP!F140-WORKCAP!F137) -> 40000 | J91: =(WORKCAP!F143-WORKCAP!F140) -> 20000 | K91: =(WORKCAP!F146-WORKCAP!F143) -> 10000 | L91: 80000 | M91: =(WORKCAP!G137-WORKCAP!F146) -> 10000 | N91: =(WORKCAP!G140-WORKCAP!G137) -> 40000 | O91: =(WORKCAP!G143-WORKCAP!G140) -> 40000 | P91: =(WORKCAP!G146-WORKCAP!G143) -> 40000 | Q91: 130000 | R91: =CASHFLOW!E14 -> 34400 | S91: =CASHFLOW!F14 -> 80000 | T91: =CASHFLOW!G14 -> 130000
A92: Net Cash Provided/(Used) by Operating Activities | C92: =SUM(C84:C91) -> 296625.812 | D92: =SUM(D84:D91) -> 115976.3126 | E92: =SUM(E84:E91) -> 241976.3126 | F92: =SUM(F84:F91) -> 198271.5629 | G92: 852850 | H92: =SUM(H84:H91) -> 213586.1069 | I92: =SUM(I84:I91) -> 88119.15206 | J92: =SUM(J84:J91) -> 245885.6746 | K92: =SUM(K84:K91) -> 324768.9359 | L92: 872359.8695 | M92: =SUM(M84:M91) -> 497051.2821 | N92: =SUM(N84:N91) -> 394991.0623 | O92: =SUM(O84:O91) -> 481930.8425 | P92: =SUM(P84:P91) -> 568870.6227 | Q92: 1942843.81 | R92: =CASHFLOW!E15 -> 852850 | S92: =CASHFLOW!F15 -> 872359.8695 | T92: =CASHFLOW!G15 -> 1942843.81
A94: INVESTING ACTIVITIES
A95: Property & Equipment | C95: =-'PROP & EQUIP'!E64 -> -100000 | D95: =-'PROP & EQUIP'!E68 -> -200000 | E95: =-'PROP & EQUIP'!E72 -> -100000 | F95: =-'PROP & EQUIP'!E76 -> -150000 | G95: =SUM(C95:F95) -> -550000 | H95: =-'PROP & EQUIP'!F64 -> -200000 | I95: =-'PROP & EQUIP'!F68 -> -200000 | J95: =-'PROP & EQUIP'!F72 -> -100000 | K95: =-'PROP & EQUIP'!F76 -> -150000 | L95: =SUM(H95:K95) -> -650000 | M95: =-'PROP & EQUIP'!G64 -> -200000 | N95: =-'PROP & EQUIP'!G68 -> -200000 | O95: =-'PROP & EQUIP'!G72 -> -200000 | P95: =-'PROP & EQUIP'!G76 -> -150000 | Q95: =SUM(M95:P95) -> -750000 | R95: =CASHFLOW!E18 -> -550000 | S95: =CASHFLOW!F18 -> -650000 | T95: =CASHFLOW!G18 -> -750000
A96: Other | G96: =SUM(C96:F96) -> 0 | L96: =SUM(H96:K96) -> 0 | R96: =CASHFLOW!E19 -> 0 | S96: =CASHFLOW!F19 -> 0 | T96: =CASHFLOW!G19 -> 0
A97: Net Cash Used in Investing Activities | C97: =SUM(C95:C96) -> -100000 | D97: =SUM(D95:D96) -> -200000 | E97: =SUM(E95:E96) -> -100000 | F97: =SUM(F95:F96) -> -150000 | G97: =SUM(C97:F97) -> -550000 | H97: =SUM(H95:H96) -> -200000 | I97: =SUM(I95:I96) -> -200000 | J97: =SUM(J95:J96) -> -100000 | K97: =SUM(K95:K96) -> -150000 | L97: =SUM(H97:K97) -> -650000 | M97: =SUM(M95:M96) -> -200000 | N97: =SUM(N95:N96) -> -200000 | O97: =SUM(O95:O96) -> -200000 | P97: =SUM(P95:P96) -> -150000 | Q97: =SUM(M97:P97) -> -750000 | R97: =CASHFLOW!E20 -> -550000 | S97: =CASHFLOW!F20 -> -650000 | T97: =CASHFLOW!G20 -> -750000
A99: FINANCING ACTIVITIES
A100: Increase/(Decrease) Short Term Debt | C100: =IF(FUNDING!E19>=0,FUNDING!E19,0) -> 0 | F100: =IF(FUNDING!E19<0,FUNDING!E19,0) -> 0 | G100: =SUM(C100:F100) -> 0 | H100: =IF(FUNDING!F19>=0,FUNDING!F19,0) -> 100000 | K100: =IF(FUNDING!F19<0,FUNDING!F19,0) -> 0 | L100: =SUM(H100:K100) -> 100000 | M100: =IF(FUNDING!G19>=0,FUNDING!G19,0) -> 0 | P100: =IF(FUNDING!G19<0,FUNDING!G19,0) -> -100000 | Q100: =SUM(M100:P100) -> -100000 | R100: =CASHFLOW!E23 -> 0 | S100: =CASHFLOW!F23 -> 100000 | T100: =CASHFLOW!G23 -> -100000
A101: Increase/(Decrease) Curr. Portion LTD | C101: =IF(FUNDING!E27>=0,FUNDING!E27,0) -> 0 | F101: =IF(FUNDING!E27<0,FUNDING!E27,0) -> 0 | G101: 0 | H101: =IF(FUNDING!F27>=0,FUNDING!F27,0) -> 0 | K101: =IF(FUNDING!F27<0,FUNDING!F27,0) -> 0 | L101: 0 | M101: =IF(FUNDING!G27>=0,FUNDING!G27,0) -> 0 | P101: =IF(FUNDING!G27<0,FUNDING!G27,0) -> 0 | Q101: 0 | R101: =CASHFLOW!E24 -> 0 | S101: =CASHFLOW!F24 -> 0 | T101: =CASHFLOW!G24 -> 0
A102: Increase/(Decrease) Long Term Debt | C102: =IF(FUNDING!E28>=0,FUNDING!E28,0) -> 0 | F102: =IF(FUNDING!E28<0,FUNDING!E28,0) -> -100000 | G102: -100000 | H102: =IF(FUNDING!F28>=0,FUNDING!F28,0) -> 0 | K102: =IF(FUNDING!F28<0,FUNDING!F28,0) -> -100000 | L102: -100000 | M102: =IF(FUNDING!G28>=0,FUNDING!G28,0) -> 0 | P102: =IF(FUNDING!G28<0,FUNDING!G28,0) -> -100000 | Q102: -100000 | R102: =CASHFLOW!E25 -> -100000 | S102: =CASHFLOW!F25 -> -100000 | T102: =CASHFLOW!G25 -> -100000
A103: Increase/(Decrease) Common Stock | C103: =IF(FUNDING!E9>=0,FUNDING!E9,0) -> 0 | F103: =IF(FUNDING!E9<0,FUNDING!E9,0) -> 0 | G103: 0 | H103: =IF(FUNDING!F9>=0,FUNDING!F9,0) -> 0 | K103: =IF(FUNDING!F9<0,FUNDING!F9,0) -> 0 | L103: 0 | M103: =IF(FUNDING!G9>=0,FUNDING!G9,0) -> 0 | P103: =IF(FUNDING!G9<0,FUNDING!G9,0) -> 0 | Q103: 0 | R103: =CASHFLOW!E26 -> 0 | S103: =CASHFLOW!F26 -> 0 | T103: =CASHFLOW!G26 -> 0
A104: Increase/(Decrease) Preferred Stock | C104: =IF(FUNDING!E14>=0,FUNDING!E14,0) -> 0 | F104: =IF(FUNDING!E14<0,FUNDING!E14,0) -> 0 | G104: 0 | H104: =IF(FUNDING!F14>=0,FUNDING!F14,0) -> 0 | K104: =IF(FUNDING!F14<0,FUNDINGf14,0) -> 0 | L104: 0 | M104: =IF(FUNDING!G14>=0,FUNDING!G14,0) -> 0 | P104: =IF(FUNDING!G14<0,FUNDING!G14,0) -> 0 | Q104: 0 | R104: =CASHFLOW!E27 -> 0 | S104: =CASHFLOW!F27 -> 0 | T104: =CASHFLOW!G27 -> 0
A105: Dividends Declared | F105: =-FUNDING!E49 -> 0 | G105: 0 | K105: =-FUNDING!F49 -> 0 | L105: 0 | P105: =-FUNDING!G49 -> -50000 | Q105: -50000 | R105: =CASHFLOW!E28 -> 0 | S105: =CASHFLOW!F28 -> 0 | T105: =CASHFLOW!G28 -> -50000
A106: Net Cash Provided / (Used) by Financing | C106: =SUM(C100:C105) -> 0 | D106: =SUM(D100:D105) -> 0 | E106: =SUM(E100:E105) -> 0 | F106: =SUM(F100:F105) -> -100000 | G106: =SUM(C106:F106) -> -100000 | H106: =SUM(H100:H105) -> 100000 | I106: =SUM(I100:I105) -> 0 | J106: =SUM(J100:J105) -> 0 | K106: =SUM(K100:K105) -> -100000 | L106: =SUM(H106:K106) -> 0 | M106: =SUM(M100:M105) -> 0 | N106: =SUM(N100:N105) -> 0 | O106: =SUM(O100:O105) -> 0 | P106: =SUM(P100:P105) -> -250000 | Q106: =SUM(P106) -> -250000 | R106: =CASHFLOW!E29 -> -100000 | S106: =CASHFLOW!F29 -> 0 | T106: =CASHFLOW!G29 -> -250000
A108: INCREASE/(DECREASE) IN CASH | C108: =C92+C97+C106 -> 196625.812 | D108: =D92+D97+D106 -> -84023.68742 | E108: 141976.3126 | F108: -51728.43712 | G108: =SUM(C108:F108) -> 202850 | H108: 113586.1069 | I108: -111880.8479 | J108: 145885.6746 | K108: 74768.9359 | L108: =SUM(H108:K108) -> 222359.8695 | M108: 297051.2821 | N108: 194991.0623 | O108: 281930.8425 | P108: 168870.6227 | Q108: =SUM(M108:P108) -> 942843.8095 | R108: =CASHFLOW!E31 -> 202850 | S108: =CASHFLOW!F31 -> 222359.8695 | T108: =CASHFLOW!G31 -> 942843.8095
A110: CASH AT BEGINNING OF PERIOD | C110: =N75 -> 367659.85 | D110: =C111 -> 564285.662 | E110: =D111 -> 480261.9745 | F110: =E111 -> 622238.2871 | H110: =F111 -> 570509.85 | I110: =H111 -> 684095.9569 | J110: =I111 -> 572215.109 | K110: =J111 -> 718100.7836 | M110: =K111 -> 792869.7195 | N110: =M111 -> 1089921.002 | O110: =N111 -> 1284912.064 | P110: =O111 -> 1566842.906 | R110: =CASHFLOW!E33 -> 367659.85 | S110: =CASHFLOW!F33 -> 570509.85 | T110: =CASHFLOW!G33 -> 792869.7195
A111: CASH AT END OF PERIOD | C111: =C108+C110 -> 564285.662 | D111: =D108+D110 -> 480261.9745 | E111: =E108+E110 -> 622238.2871 | F111: =F108+F110 -> 570509.85 | H111: =H108+H110 -> 684095.9569 | I111: =I108+I110 -> 572215.109 | J111: =J108+J110 -> 718100.7836 | K111: =K108+K110 -> 792869.7195 | M111: =M108+M110 -> 1089921.002 | N111: =N108+N110 -> 1284912.064 | O111: =O108+O110 -> 1566842.906 | P111: =P108+P110 -> 1735713.529 | R111: =CASHFLOW!E34 -> 570509.85 | S111: =CASHFLOW!F34 -> 792869.7195 | T111: =CASHFLOW!G34 -> 1735713.529

Sheet SUMMARY
A1: =COMPS!A1 -> XYZ Company
A2: Summary
A3: Years 1 to 5
C5: Year 1 | D5: Year 2 | E5: Year 3 | F5: Year 4 | G5: Year 5
A6: Summary Financials ($)
A7: Revenue | C7: =INCOME!C7 -> 1000000 | D7: =INCOME!D7 -> 5250000 | E7: =INCOME!E7 -> 9750000 | F7: =INCOME!F7 -> 16250000 | G7: =INCOME!G7 -> 26000000
A8: Gross Profit | C8: =INCOME!C12 -> -117464.2857 | D8: =INCOME!D12 -> 1717835.714 | E8: =INCOME!E12 -> 4050571.429 | F8: =INCOME!F12 -> 6910714.286 | G8: =INCOME!G12 -> 11966857.14
A9: EBIT | C9: =INCOME!C26 -> -712131.1024 | D9: =INCOME!D26 -> -158064.2857 | E9: =INCOME!E26 -> 752514.7619 | F9: =INCOME!F26 -> 1565780.952 | G9: =INCOME!G26 -> 3767390.476
A10: EBITDA | C10: =INCOME!C26+'PROP & EQUIP'!C47 -> -668750.15 | D10: =INCOME!D26+'PROP & EQUIP'!D47 -> -26350 | E10: =INCOME!E26+'PROP & EQUIP'!E47 -> 996610 | F10: =INCOME!F26+'PROP & EQUIP'!F47 -> 1939400 | G10: =INCOME!G26+'PROP & EQUIP'!G47 -> 4277200
A11: Net Earnings | C11: =INCOME!C34 -> -712131.1024 | D11: =INCOME!D34 -> -218064.2857 | E11: =INCOME!E34 -> 704514.7619 | F11: =INCOME!F34 -> 1002740.822 | G11: =INCOME!G34 -> 2252034.286
A12: Net Cash from Operating Activities | C12: =CASHFLOW!C15 -> -811830.15 | D12: =CASHFLOW!D15 -> -540510 | E12: =CASHFLOW!E15 -> 852850 | F12: =CASHFLOW!F15 -> 872359.8695 | G12: =CASHFLOW!G15 -> 1942843.81
A13: Capital Expenditures | C13: ='PROP & EQUIP'!C13 -> 280000 | D13: ='PROP & EQUIP'!D13 -> 500000 | E13: ='PROP & EQUIP'!E13 -> 550000 | F13: ='PROP & EQUIP'!F13 -> 650000 | G13: ='PROP & EQUIP'!G13 -> 750000
A14: Interest Income/(Expense) | C14: =FUNDING!C45-FUNDING!C41 -> 0 | D14: =FUNDING!D45-FUNDING!D41 -> -60000 | E14: =FUNDING!E45-FUNDING!E41 -> -48000 | F14: =FUNDING!F45-FUNDING!F41 -> -45000 | G14: =FUNDING!G45-FUNDING!G41 -> -14000
A15: Dividends | C15: =FUNDING!C49 -> 0 | D15: =FUNDING!D49 -> 0 | E15: =FUNDING!E49 -> 0 | F15: =FUNDING!F49 -> 0 | G15: =FUNDING!G49 -> 50000
A16: Cash | C16: =BALANCE!C9 -> 408169.85 | D16: =BALANCE!D9 -> 367659.85 | E16: =BALANCE!E9 -> 570509.85 | F16: =BALANCE!F9 -> 792869.7195 | G16: =BALANCE!G9 -> 1735713.529
A17: Total Equity | C17: =FUNDING!C52+FUNDING!C8+FUNDING!C10 -> -212131.1024 | D17: =FUNDING!D52+FUNDING!D8+FUNDING!D10 -> -430195.3881 | E17: =FUNDING!E52+FUNDING!E8+FUNDING!E10 -> 274319.3738 | F17: =FUNDING!F52+FUNDING!F8+FUNDING!F10 -> 1277060.196 | G17: =FUNDING!G52+FUNDING!G8+FUNDING!G10 -> 3479094.481
A18: Total Debt | C18: =FUNDING!C24 -> 0 | D18: =FUNDING!D24 -> 500000 | E18: =FUNDING!E24 -> 400000 | F18: =FUNDING!F24 -> 300000 | G18: =FUNDING!G24 -> 200000
A20: Growth
A21: Revenue Growth Rate - CAGR: | D21: =D7/C7-1 -> 4.25 | E21: =E7/D7-1 -> 0.8571428571 | F21: =F7/E7-1 -> 0.6666666667 | G21: =G7/F7-1 -> 0.6
A22: Net Earnings Growth Rate - CAGR: | D22: =IF((INCOME!D34/INCOME!C34-1)>0,(INCOME!D34/INCOME!C34-1),"Nil") -> Nil | E22: =IF((INCOME!E34/INCOME!D34-1)>0,(INCOME!E34/INCOME!D34-1),"Nil") -> Nil | F22: =IF((INCOME!F34/INCOME!E34-1)>0,(INCOME!F34/INCOME!E34-1),"Nil") -> 0.4233070421 | G22: =IF((INCOME!G34/INCOME!F34-1)>0,(INCOME!G34/INCOME!F34-1),"Nil") -> 1.245878732
A24: Ratios
A25: Current Ratio | C25: =BALANCE!C13/BALANCE!C23 -> 4.173208899 | D25: =BALANCE!D13/BALANCE!D23 -> 2.037896426 | E25: =BALANCE!E13/BALANCE!E23 -> 1.997009297 | F25: =BALANCE!F13/BALANCE!F23 -> 1.876098737 | G25: =BALANCE!G13/BALANCE!G23 -> 2.139735808
A26: Debt to Capital (LT Debt + Equity) | C26: =(BALANCE!C25+BALANCE!C22)/(BALANCE!C25+BALANCE!C22+BALANCE!C31) -> 0 | D26: =(BALANCE!D25+BALANCE!D22)/(BALANCE!D25+BALANCE!D22+BALANCE!D31) -> 0.3185109766 | E26: =(BALANCE!E25+BALANCE!E22)/(BALANCE!E25+BALANCE!E22+BALANCE!E31) -> 0.1839656146 | F26: =(BALANCE!F25+BALANCE!F22)/(BALANCE!F25+BALANCE!F22+BALANCE!F31) -> 0.09749565524 | G26: =(BALANCE!G25+BALANCE!G22)/(BALANCE!G25+BALANCE!G22+BALANCE!G31) -> 0.03861678923
A28: Profitability
A29: Gross Profit % | C29: =INCOME!C13 -> -0.1174642857 | D29: =INCOME!D13 -> 0.3272068027 | E29: =INCOME!E13 -> 0.4154432234 | F29: =INCOME!F13 -> 0.4252747253 | G29: =INCOME!G13 -> 0.4602637363
A30: Operating Expenses % | C30: =INCOME!C20 -> 0.5496668167 | D30: =INCOME!D20 -> 0.3573142857 | E30: =INCOME!E20 -> 0.3382622222 | F30: =INCOME!F20 -> 0.3289189744 | G30: =INCOME!G20 -> 0.3153641026
A31: Net Earnings % | C31: =C11/C7 -> -0.7121311024 | D31: =D11/D7 -> -0.04153605442 | E31: =E11/E7 -> 0.0722579243 | F31: =F11/F7 -> 0.0617071275 | G31: =G11/G7 -> 0.0866167033
A33: Returns
A34: Return on Assets | C34: =INCOME!C34/BALANCE!C15 -> -0.7405775006 | D34: =INCOME!D34/BALANCE!D15 -> -0.09468193105 | E34: =INCOME!E34/BALANCE!E15 -> 0.217354318 | F34: =INCOME!F34/BALANCE!F15 -> 0.1997467725 | G34: =INCOME!G34/BALANCE!G15 -> 0.2718832063
A35: Return on Equity | C35: =INCOME!C34/BALANCE!C31 -> -0.9038700532 | D35: =INCOME!D34/BALANCE!D31 -> -0.2038356194 | E35: =INCOME!E34/BALANCE!E31 -> 0.397061979 | F35: =INCOME!F34/BALANCE!F31 -> 0.3610799735 | G35: =INCOME!G34/BALANCE!G31 -> 0.4522979618
A36: Return on Capital (LT Debt + Equity) | C36: =INCOME!C34/(BALANCE!C22+BALANCE!C25+BALANCE!C31) -> -0.9038700532 | D36: =INCOME!D34/(BALANCE!D22+BALANCE!D25+BALANCE!D31) -> -0.1389117372 | E36: =INCOME!E34/(BALANCE!E22+BALANCE!E25+BALANCE!E31) -> 0.324016228 | F36: =INCOME!F34/(BALANCE!F22+BALANCE!F25+BALANCE!F31) -> 0.3258762449 | G36: =INCOME!G34/(BALANCE!G22+BALANCE!G25+BALANCE!G31) -> 0.4348316668

Sheet VAL-1
A1: =COMPS!A1 -> XYZ Company | H1: Notes
A2: Valuation
A3: Venture Capital Method
A4: Years 1 to 5
A6: Assumptions: | C6: REF
A7: Investor required IRR | B7: 0.6 | C7: A
A8: P/E ratio at IPO or acquisition | B8: 15 | C8: B
A9: Initial investment | B9: 1500000 | C9: C | E9: FV(A,C) | F9: G/F | I9: IRR(D,G)
A11: REF | B11: D | C11: E | D11: F | E11: G | F11: H | G11: I | H11: J | I11: K
A12: Valuation Calculation | B12: Year | C12: Net Income | D12: Market Capitalization | E12: Required Future Value (Investor) | F12: Investor's Share | G12: Investor's Return | H12: Investor's ROI | I12: Investor's IRR | J12: IRR Calculation Workspace
A13: Calculation | C13: Income Stmt | D13: B * E | E13: FV(F,D) | F13: C / G | G13: F * H | H13: I / C | I13: IRR(I,C,D) | J13: Start | K13: Year 1 | L13: Year 2 | M13: Year 3 | N13: Year 4 | O13: Year 5
A14: Liquidity Event in Year 1 | B14: 1 | C14: =INCOME!C34 -> -712131.1024 | D14: =C14*B$8 -> -10681966.54 | E14: =B$9*(1+B$7)^B14 -> 2400000 | F14: =IF(C14<=0,1,E14/D14) -> 1 | G14: =IF(D14<0,0,IF(E14>D14,D14,E14)) -> 0 | H14: =G14/B$9 -> 0 | I14: =IF(D14<=0,NA(),IRR(J14:O14)) ->  | J14: =-B$9 -> -1500000 | K14: =G14 -> 0
A15: Liquidity Event in Year 2 | B15: 2 | C15: =INCOME!D34 -> -218064.2857 | D15: =C15*B$8 -> -3270964.286 | E15: =B$9*(1+B$7)^B15 -> 3840000 | F15: =IF(C15<=0,1,E15/D15) -> 1 | G15: =IF(D15<0,0,IF(E15>D15,D15,E15)) -> 0 | H15: =G15/B$9 -> 0 | I15: =IF(D15<=0,NA(),IRR(J15:O15)) ->  | J15: =-B$9 -> -1500000 | K15: 0 | L15: =G15 -> 0
A16: Liquidity Event in Year 3 | B16: 3 | C16: =INCOME!E34 -> 704514.7619 | D16: =C16*B$8 -> 10567721.43 | E16: =B$9*(1+B$7)^B16 -> 6144000 | F16: =IF(C16<=0,1,E16/D16) -> 0.5813930696 | G16: =IF(D16<0,0,IF(E16>D16,D16,E16)) -> 6144000 | H16: =G16/B$9 -> 4.096 | I16: =IF(D16<=0,NA(),IRR(J16:O16)) -> 0.6 | J16: =-B$9 -> -1500000 | K16: 0 | L16: 0 | M16: =G16 -> 6144000
A17: Liquidity Event in Year 4 | B17: 4 | C17: =INCOME!F34 -> 1002740.822 | D17: =C17*B$8 -> 15041112.33 | E17: =B$9*(1+B$7)^B17 -> 9830400 | F17: =IF(C17<=0,1,E17/D17) -> 0.6535686846 | G17: =IF(D17<0,0,IF(E17>D17,D17,E17)) -> 9830400 | H17: =G17/B$9 -> 6.5536 | I17: =IF(D17<=0,NA(),IRR(J17:O17)) -> 0.6 | J17: =-B$9 -> -1500000 | K17: 0 | L17: 0 | M17: 0 | N17: =G17 -> 9830400
A18: Liquidity Event in Year 5 | B18: 5 | C18: =INCOME!G34 -> 2252034.286 | D18: =C18*B$8 -> 33780514.29 | E18: =B$9*(1+B$7)^B18 -> 15728640 | F18: =IF(C18<=0,1,E18/D18) -> 0.4656128047 | G18: =IF(D18<0,0,IF(E18>D18,D18,E18)) -> 15728640 | H18: =G18/B$9 -> 10.48576 | I18: =IF(D18<=0,NA(),IRR(J18:O18)) -> 0.6 | J18: =-B$9 -> -1500000 | K18: 0 | L18: 0 | M18: 0 | N18: 0 | O18: =G18 -> 15728640
F21: Negotiation Workspace
E22: Year | F22: Investor's Share | G22: Investor's Return | H22: Investor's ROI | I22: Investor's IRR
E23: 1 | F23: 0.25 | G23: =IF(D14<0,0,F23*D14) -> 0 | H23: =G23/B$9 -> 0 | I23: =IF(G23=0,NA(),IRR(J23:O23)) ->  | J23: =-B$9 -> -1500000 | K23: =G23 -> 0
E24: 2 | F24: 0.25 | G24: =IF(D15<0,0,F24*D15) -> 0 | H24: =G24/B$9 -> 0 | I24: =IF(G24=0,NA(),IRR(J24:O24)) ->  | J24: =-B$9 -> -1500000 | K24: 0 | L24: =G24 -> 0
E25: 3 | F25: 0.25 | G25: =IF(D16<0,0,F25*D16) -> 2641930.357 | H25: =G25/B$9 -> 1.761286905 | I25: =IF(G25=0,NA(),IRR(J25:O25)) -> 0.2076563484 | J25: =-B$9 -> -1500000 | K25: 0 | L25: 0 | M25: =G25 -> 2641930.357
E26: 4 | F26: 0.25 | G26: =IF(D17<0,0,F26*D17) -> 3760278.082 | H26: =G26/B$9 -> 2.506852055 | I26: =IF(G26=0,NA(),IRR(J26:O26)) -> 0.2582941458 | J26: =-B$9 -> -1500000 | K26: 0 | L26: 0 | M26: 0 | N26: =G26 -> 3760278.082
E27: 5 | F27: 0.4 | G27: =IF(D18<0,0,F27*D18) -> 13512205.71 | H27: =G27/B$9 -> 9.008137143 | I27: =IF(G27=0,NA(),IRR(J27:O27)) -> 0.5521260856 | J27: =-B$9 -> -1500000 | K27: 0 | L27: 0 | M27: 0 | N27: 0 | O27: =G27 -> 13512205.71

Sheet VAL-2
A1: =COMPS!A1 -> XYZ Company | G1: Notes
A2: Valuation
A3: Venture Capital Method
A4: Years 1 to 5
A5: Multiple Rounds
A8: Assumptions | E8: Ref | F8: Calculation
A9: Month of IPO | B9: 60 | E9: A
A10: Forecast annualized earnings at IPO | B10: =INCOME!G34 -> 2252034.286 | E10: B
A11: P/E ratio at IPO | B11: 15 | E11: C
A13: Investment Round | B13: First | C13: Second | D13: Third
A14: Month of Investment | B14: 0 | C14: 24 | E14: C
A15: Investor required IRR | B15: 0.6 | C15: 0.5 | E15: D
A16: Amount of Investment | B16: 1500000 | C16: 500000 | E16: E
A17: Required Monthly IRR | B17: =B15/12 -> 0.05 | C17: =C15/12 -> 0.04166666667 | D17: =D15/12 -> 0 | E17: F | F17: D/12
A18: Duration of Investment | B18: =$B$9-B14 -> 60 | C18: =$B$9-C14 -> 36 | D18: =$B$9-D14 -> 60 | E18: G | F18: A-C
A20: Calculations
A21: Market Capitalization at IPO | B21: =B11*B10 -> 33780514.29 | E21: H | F21: B*C
B23: First | C23: Second | D23: Third
A24: Required FV for Investor at IPO | B24: =B16*(1+B15)^(B18/12) -> 15728640 | C24: =C16*(1+C15)^(C18/12) -> 1687500 | D24: =D16*(1+D15)^(D18/12) -> 0 | E24: I | F24: E*(1+F)^G
A25: Individual Investor's Share | B25: =B24/$B$21 -> 0.4656128047 | C25: =C24/$B$21 -> 0.04995483449 | D25: =D24/$B$21 -> 0 | E25: J | F25: I/H
A26: Individual Investor's ROI | B26: =B24/B16 -> 10.48576 | C26: =C24/C16 -> 3.375 | D26: =D24/D16 ->  | E26: K | F26: I/E
A27: Individual Investor's IRR | B27: =(B24/B16)^(12/B18)-1 -> 0.6 | C27: =(C24/C16)^(12/C18)-1 -> 0.5 | D27: =(D24/D16)^(12/D18)-1 ->  | E27: L | F27: (I/E)^(12/G)-1
A29: Cumulative Investors' Share | B29: =B25 -> 0.4656128047 | C29: =SUM(B25:C25) -> 0.5155676392 | D29: =SUM(B25:D25) -> 0.5155676392 | E29: M | F29: sum(J)
A30: Cumulative Founders' Share | B30: =1-B29 -> 0.5343871953 | C30: =1-C29 -> 0.4844323608 | D30: =1-D29 -> 0.4844323608 | E30: N | F30: 1-M
A33: Negotiations Round | B33: First | C33: Second | D33: Third
A34: Individual Investor's Share | B34: 0.15 | C34: 0.05 | D34: 0.03
A35: FV for Investor at IPO | B35: =B34*$B$21 -> 5067077.143 | C35: =C34*$B$21 -> 1689025.714 | D35: =D34*$B$21 -> 1013415.429
A36: Individual Investor's ROI | B36: =B35/B16 -> 3.378051429 | C36: =C35/C16 -> 3.378051429 | D36: =D35/D16 -> 
A37: Individual Investor's IRR | B37: =(B35/B16)^(12/B18)-1 -> 0.2756550464 | C37: =(C35/C16)^(12/C18)-1 -> 0.5004519273 | D37: =(D35/D16)^(12/D18)-1 -> 
